{"text_format":"2","workbook":"xlsx","n_sheets":15,"sheets":["变更记录","通讯协议","Sheet1","多媒体","行车电脑","交通信号","ADAS","交通信号灯","调试信息","调试信息1","(中间区)TBT导航","(中间区)蓝牙电话","(中间区)媒体","媒体消息文字  ","导航信息"],"not_rendered":{"charts":0,"images":131,"macros":0,"external_links":0,"defined_names":0,"comments":0,"pivot_tables":0},"unopened":[],"bounds":{"document_bytes":16777216,"sheet_cells":100000,"run_cost":"one","rows_first":2000,"rows_last":500,"rows_between":2000,"halvings":0,"cell_chars":16384,"cell_head_chars":4096},"cells_cut":0,"cells_raw":0,"read":"whole","date_system":"1900"}

{"sheet":"变更记录","index":0,"n_rows":3,"n_cols":3,"rows_kept":3,"cut":false,"hidden":false,"merged":[]}
["序号","版本号","版本记录"]
[1,"V1.0","初版"]
[null,"V1.1","修改id 0x12内容，添加经典蓝牙连接状态发送。"]

{"sheet":"通讯协议","index":1,"n_rows":74,"n_cols":10,"rows_kept":74,"cut":false,"hidden":false,"merged":[[62,1,62,2],[62,3,62,4],[63,1,69,2],[63,3,69,4],[63,5,69,5],[61,1,61,4],[73,5,80,5],[71,1,71,5],[31,5,37,5],[31,6,37,6],[19,3,25,4],[51,3,51,4],[52,5,58,5],[52,3,58,4],[41,1,41,2],[41,3,41,4],[42,1,48,2],[42,3,48,4],[7,2,7,3],[19,1,25,2],[7,8,7,9],[8,2,8,3],[8,8,8,9],[17,1,17,6],[13,1,13,2],[13,3,13,4],[14,1,15,2],[14,3,15,4],[18,1,18,2],[18,3,18,4],[30,1,30,2],[30,3,30,4],[31,1,37,2],[31,3,37,4],[81,1,81,6],[72,1,72,2],[73,3,80,4],[73,1,80,2],[72,3,72,4],[50,1,50,4],[51,1,51,2],[52,1,58,2]]}
["1. 串口配置"]
["波特率为"]
["115200bps 、 1 个起始位、 1 个停止位、 8 位数据位、无奇偶校验位。"]
["协议版本：V1.0","串口波特率暂定115200，8N1"]
["校验位由Byte2~ByteN-1生成"]
["2. 基本格式"]
[null,"序号",0,1,2,3,4,"5~(N-1)","N~","(N+1)"]
[null,"字节数",2,null,1,1,1,"0-255",2]
[null,"定义","Head",null,"Lenght","Counter","ID","Data Byte n","CHKSUM(CRC16)"]
[null,"示意","0xEB","0x90","数据长度\n(Byte3-ByteN+1)","数据包编号\n0~255\n（预留占位）","Bit0~5传输类型（ID）",null,"高8位","低8位"]
[]
["ID定义"]
["0x10","蓝牙模组启动发送0x10（50ms周期），收到底板回复0x20后，停止发送此报文"]
[null,"Byte4",null,"Byte5",null,"ESP32----to------MCU"]
[null,"Bit0~Bit5：ID\n0x10",null,"Bit6~7：蓝牙模组启动状态\n0：启动中\n1：启动完成"]
[]
[]
["0x20","底板收到蓝牙模组0x10，且状态为启动完成，回复0x20，开始正式通讯。收到ID0X12心跳报文后停发0x20."]
[null,"Byte4",null,"MCU----to------ESP32"]
[null,"Bit0~Bit5：ID\n0x20"]
{"$rows_empty":7}
["蓝牙模组给底板发送的信息："]
[]
["0x01","导航信息（100ms）"]
[null,"Byte4",null,"Byte5",null,"Byte6","Byte7-Byte10","将蓝牙收到的值直接透传给MCU"]
[null,"Bit0~Bit5：ID\n0x01\n",null,"导航状态\n0x35： 未导航或导航结束\n0x33： 正在导航",null,"导航转向编码（参考蓝牙BLE互联通讯协议(开源)----3.2.3. 导航转向编码）","剩余里程","ESP32----to------MCU"]
{"$rows_empty":8}
["0x02","重启命令"]
[null,"Byte4",null,"Byte5",null,"ESP32----to------MCU"]
[null,"Bit0~Bit5：ID\n0x02\n",null,"0：无重启命令\n1：重启\n"]
{"$rows_empty":7}
["0x03","UUID"]
[null,"Byte4",null,"Byte5-ByteN（32字节）",null,"MCU----to------ESP32"]
[null,"Bit0~Bit5：ID\n0x03\n",null,"UUID"]
{"$rows_empty":8}
["0x04","复位重启信号"]
[null,"Byte4",null,"Byte5",null,"MCU----to------ESP32"]
[null,"Bit0~Bit5：ID\n0x03\n",null,"0：无\n1：重启\n"]
{"$rows_empty":7}
["0x12","蓝牙模组启动完成，收到底板的0x20回复后，给底板周期性发送此心跳信息（100ms）"]
[null,"Byte4",null,"Byte5",null,"Byte5-ByteN","ESP32----to------MCU"]
[null,"Bit0~Bit5：ID\n0x12\n",null,"bit0~bit3：低功耗蓝牙状态：\n0：未连接；\n其他：连接。\n",null,"蓝牙名称"]

{"sheet":"Sheet1","index":2,"n_rows":358,"n_cols":22,"rows_kept":358,"cut":false,"hidden":true,"merged":[]}
[null,null," POPUP_TYPE_EXCEPTION"," 0u","   0u","   POPUP_IGN_ON","      POPUP_ID_Oil_Pressure","                       NULL","                               0u","   POPUP_MSG_Oil_Pressure","                      POPUP_MODE_SINGLE","   SND_NONE","                       POPUP_MODE_SINGLE","     POPUP_DISP_2S","      POPUP_DISP_8S","}","    ",null," 001  F1   W2   是  机油压力异常"]
[null,null," POPUP_TYPE_HINT","      0u","   0u","   POPUP_IGN_ON","      POPUP_ID_SafetyBelt_F1","                      NULL","                               0u","   POPUP_MSG_SafetyBelt_F1","                     POPUP_MODE_SINGLE","   SND_NONE","                       POPUP_MODE_SINGLE","     POPUP_DISP_2S","      POPUP_DISP_3S","}","    ",null," 002  F1   OP2  否  主驾安全带未系"]
[null,null," POPUP_TYPE_HINT","      0u","   0u","   POPUP_IGN_ON","      POPUP_ID_Brake_IdleStartStop","                NULL","                               0u","   POPUP_MSG_Brake_IdleStartStop","               POPUP_MODE_SINGLE","   SND_NONE","                       POPUP_MODE_SINGLE","     POPUP_DISP_2S","      POPUP_DISP_3S","}","    ",null," 003  F1   OP3  否  请深踩刹车，启用怠速起停"]
[null,null," POPUP_TYPE_HINT","      0u","   0u","   POPUP_IGN_ON","      POPUP_ID_STTQuit_Display","                    NULL","                               0u","   POPUP_MSG_STTQuit_Display","                   POPUP_MODE_SINGLE","   SND_NONE","                       POPUP_MODE_SINGLE","     POPUP_DISP_2S","      POPUP_DISP_3S"," }","   ",null," 004  F1   OP3  否  起停系统已退出，请手动点火"]
[null,null," POPUP_TYPE_HINT","      0u","   0u","   POPUP_IGN_ON","      POPUP_ID_Cruise_ungratified","                 NULL","                               0u","   POPUP_MSG_Cruise_ungratified","                POPUP_MODE_MULTI","    SND_NONE","                       POPUP_MODE_MULTI","      POPUP_DISP_2S","      POPUP_DISP_3S","}","    ",null," 005  F1   OP3  否  不满足巡航条件"]
[null,null," POPUP_TYPE_EXCEPTION"," 0u","   0u","   POPUP_IGN_ON","      POPUP_ID_GPF_Fault","                          NULL","                               0u","   POPUP_MSG_GPF_Fault","                         POPUP_MODE_SINGLE","   SND_NONE","                       POPUP_MODE_SINGLE","     POPUP_DISP_2S","      POPUP_DISP_5S","}","    ",null," 006  F1   OP2  是  GPF达到限值，请检查维护"]
[null,null," POPUP_TYPE_HINT","      0u","   0u","   POPUP_IGN_ON_OFF","  POPUP_ID_TankCap_NotTightend","                NULL","                               0u","   POPUP_MSG_TankCap_NotTightend","               POPUP_MODE_SINGLE","   SND_NONE","                       POPUP_MODE_SINGLE","     POPUP_DISP_2S","      POPUP_DISP_8S","}","    ",null," 007  F1   OP1  否  油箱盖未拧紧"]
[null,null," POPUP_TYPE_HINT","      0u","   0u","   POPUP_IGN_ON_OFF","  POPUP_ID_GeneralMT_ClutchBrake_To_Start","     NULL","                               0u","   POPUP_MSG_GeneralMT_ClutchBrake_To_Start","    POPUP_MODE_SINGLE","   SND_NONE","                       POPUP_MODE_SINGLE","     POPUP_DISP_2S","      POPUP_DISP_3S","}","    ",null," 008  F1   OP3  否  普通MT车型起动  启动请踩离合和刹车"]
[null,null," POPUP_TYPE_HINT","      0u","   0u","   POPUP_IGN_ON_OFF","  POPUP_ID_GeneralMT_Clutch_To_Start","          NULL","                               0u","   POPUP_MSG_GeneralMT_Clutch_To_Start","         POPUP_MODE_SINGLE","   SND_NONE","                       POPUP_MODE_SINGLE","     POPUP_DISP_2S","      POPUP_DISP_3S","}","    ",null," 009  F1   OP3  否  普通MT车型起动  启动请踩离合"]
[null,null," POPUP_TYPE_EXCEPTION"," 0u","   0u","   POPUP_IGN_ON","      POPUP_ID_SpdLimit_Fault","                     NULL","                               0u","   POPUP_MSG_SpdLimit_Fault","                    POPUP_MODE_SINGLE","   SND_New_ID_0","                   POPUP_MODE_SINGLE","     POPUP_DISP_2S","      POPUP_DISP_5S","}","    ",null," 010  F1   OP2  是  限速功能故障"]
[null,null," POPUP_TYPE_HINT","      0u","   0u","   POPUP_IGN_ON","      POPUP_ID_LAUNCH_CONTROL_Activation","          NULL","                               0u","   POPUP_MSG_LAUNCH_CONTROL_Activation","         POPUP_MODE_SINGLE","   SND_New_ID_153","                 POPUP_MODE_SINGLE","     POPUP_DISP_2S","      POPUP_DISP_3S","}","    ",null," 011  F1   OP3  否  弹射起步已激活"]
[null,null," POPUP_TYPE_HINT","      0u","   0u","   POPUP_IGN_ON","      POPUP_ID_LAUNCH_CONTROL_Activation_LSDE","     NULL","                               0u","   POPUP_MSG_LAUNCH_CONTROL_Activation_LSDE","    POPUP_MODE_SINGLE","   SND_NONE","                       POPUP_MODE_SINGLE","     POPUP_DISP_2S","      POPUP_DISP_3S","}","    ",null," 012  F1   OP3  否  未按提示操作，弹射起步激活失败"]
[null,null," POPUP_TYPE_HINT","      0u","   0u","   POPUP_IGN_ON","      POPUP_ID_Car_Meet_Launch","                    NULL","                               0u","   POPUP_MSG_Car_Meet_Launch","                   POPUP_MODE_SINGLE","   SND_NONE","                       POPUP_MODE_SINGLE","     POPUP_DISP_2S","      POPUP_DISP_5S","}","    ",null," 013  F1   OP2  否  车辆状态满足条件，请按操作步骤激活弹射起步"]
[null,null," POPUP_TYPE_HINT","      0u","   0u","   POPUP_IGN_ON","      POPUP_ID_BREAKDOEN_DontPopup","                NULL","                               0u","   POPUP_MSG_BREAKDOEN_DontPopup","               POPUP_MODE_SINGLE","   SND_NONE","                       POPUP_MODE_SINGLE","     POPUP_DISP_2S","      POPUP_DISP_5S","}","    ",null," 014  F1   OP2  否  车辆存在故障，请勿使用弹射起步"]
[null,null," POPUP_TYPE_EXCEPTION"," 0u","   0u","   POPUP_IGN_ON","      POPUP_ID_AGS_ERROR","                          NULL","                               0u","   POPUP_MSG_AGS_ERROR","                         POPUP_MODE_SINGLE","   SND_NONE","                       POPUP_MODE_SINGLE","     POPUP_DISP_2S","      POPUP_DISP_5S","}","    ",null," 015  F1   OP2  是  主动进气格栅故障，请检查维修"]
[null,null," POPUP_TYPE_EXCEPTION"," 0u","   0u","   POPUP_IGN_ON","      POPUP_ID_Fault_CareDrive","                    NULL","                               0u","   POPUP_MSG_Fault_CareDrive","                   POPUP_MODE_SINGLE","   SND_NONE","                       POPUP_MODE_SINGLE","     POPUP_DISP_2S","      POPUP_DISP_8S","}","    ",null," 016  F2   W2   是  变速器功能限制，请检查维修"]
[null,null," POPUP_TYPE_EXCEPTION"," 0u","   0u","   POPUP_IGN_ON","      POPUP_ID_TransmissionFault","                  NULL","                               0u","   POPUP_MSG_TransmissionFault","                 POPUP_MODE_SINGLE","   SND_NONE","                       POPUP_MODE_SINGLE","     POPUP_DISP_2S","      POPUP_DISP_8S","}","    ",null," 017  F2   W2   是  变速器故障，请检查维修"]
[null,null," POPUP_TYPE_EXCEPTION"," 0u","   0u","   POPUP_IGN_ON","      POPUP_ID_Fault_StopCarCheck","                 NULL","                               0u","   POPUP_MSG_Fault_StopCarCheck","                POPUP_MODE_MULTI","    SND_NONE","                       POPUP_MODE_MULTI","      POPUP_DISP_2S","      POPUP_DISP_2S","}","    ",null," 018  F2   W1   是  变速器故障，请靠边停车"]
[null,null," POPUP_TYPE_EXCEPTION"," 0u","   0u","   POPUP_IGN_ON","      POPUP_ID_Transmission_OilTempHigh1","          NULL","                               0u","   POPUP_MSG_Transmission_OilTempHigh1","         POPUP_MODE_SINGLE","   SND_NONE","                       POPUP_MODE_SINGLE","     POPUP_DISP_2S","      POPUP_DISP_8S","}","    ",null," 019  F2   OP3  是  变速器温度高，动力受限"]
[null,null," POPUP_TYPE_EXCEPTION"," 0u","   0u","   POPUP_IGN_ON","      POPUP_ID_Transmission_OilTempHigh2","          NULL","                               0u","   POPUP_MSG_Transmission_OilTempHigh2","         POPUP_MODE_MULTI","    SND_NONE","                       POPUP_MODE_SINGLE","     POPUP_DISP_2S","      POPUP_DISP_2S","}","    ",null," 020  F2   W1   是  变速器温度过高，请靠边停车"]
[null,null," POPUP_TYPE_HINT","      0u","   0u","   POPUP_IGN_ON","      POPUP_ID_Shift_Right","                        NULL","                               0u","   POPUP_MSG_Shift_Right","                       POPUP_MODE_SINGLE","   SND_NONE","                       POPUP_MODE_SINGLE","     POPUP_DISP_2S","      POPUP_DISP_3S","}","    ",null," 021  F2   OP3  否  请将换挡杆拨至右侧"]
[null,null," POPUP_TYPE_HINT","      0u","   0u","   POPUP_IGN_ON","      POPUP_ID_Shift_Right_To_Start","               NULL","                               0u","   POPUP_MSG_Shift_Right_To_Start","              POPUP_MODE_SINGLE","   SND_NONE","                       POPUP_MODE_SINGLE","     POPUP_DISP_2S","      POPUP_DISP_3S","}","    ",null," 022  F2   OP3  否  请将换挡杆拨至右侧后启动发动机"]
[null,null," POPUP_TYPE_HINT","      0u","   0u","   POPUP_IGN_ON","      POPUP_ID_Stop_To_Gear","                       NULL","                               0u","   POPUP_MSG_Stop_To_Gear","                      POPUP_MODE_SINGLE","   SND_NONE","                       POPUP_MODE_SINGLE","     POPUP_DISP_2S","      POPUP_DISP_3S","}","    ",null," 023  F2   OP3  否  请车辆停稳后再切换挡位"]
[null,null," POPUP_TYPE_HINT","      0u","   0u","   POPUP_IGN_ON","      POPUP_ID_Stop_Shift_TO_P","                    NULL","                               0u","   POPUP_MSG_Stop_Shift_TO_P","                   POPUP_MODE_SINGLE","   SND_NONE","                       POPUP_MODE_SINGLE","     POPUP_DISP_2S","      POPUP_DISP_3S"," }","   ",null," 024  F2   OP3  否  请车辆停稳后再切花至P挡"]
[null,null," POPUP_TYPE_HINT","      0u","   0u","   POPUP_IGN_ON","      POPUP_ID_Break_To_Gear","                      NULL","                               0u","   POPUP_MSG_Break_To_Gear","                     POPUP_MODE_SINGLE","   SND_NONE","                       POPUP_MODE_SINGLE","     POPUP_DISP_2S","      POPUP_DISP_3S","}","    ",null," 025  F2   OP3  否  请踩下制动踏板以切换挡位"]
[null,null," POPUP_TYPE_HINT","      0u","   0u","   POPUP_IGN_ON","      POPUP_ID_Unlock_To_Gear","                     NULL","                               0u","   POPUP_MSG_Unlock_To_Gear","                    POPUP_MODE_SINGLE","   SND_NONE","                       POPUP_MODE_SINGLE","     POPUP_DISP_2S","      POPUP_DISP_3S","}","    ",null," 026  F2   OP3  否  请按下解锁按钮以切换挡位"]
[null,null," POPUP_TYPE_HINT","      0u","   0u","   POPUP_IGN_ON","      POPUP_ID_Start_Engine_DR","                    NULL","                               0u","   POPUP_MSG_Start_Engine_DR","                   POPUP_MODE_SINGLE","   SND_NONE","                       POPUP_MODE_SINGLE","     POPUP_DISP_2S","      POPUP_DISP_3S","}","    ",null," 027  F2   OP3  否  请启动发动机以切换至D","R"]
[null,null," POPUP_TYPE_HINT","      0u","   0u","   POPUP_IGN_ON","      POPUP_ID_Engine_Start_To_Gear","               NULL","                               0u","   POPUP_MSG_Engine_Start_To_Gear","              POPUP_MODE_SINGLE","   SND_NONE","                       POPUP_MODE_SINGLE","     POPUP_DISP_2S","      POPUP_DISP_3S","}","    ",null," 028  F2   OP3  否  请等待发动机启动完成后切换挡位"]
[null,null," POPUP_TYPE_HINT","      0u","   0u","   POPUP_IGN_ON","      POPUP_ID_Car_Start_To_Gear","                  NULL","                               0u","   POPUP_MSG_Car_Start_To_Gear","                 POPUP_MODE_SINGLE","   SND_NONE","                       POPUP_MODE_SINGLE","     POPUP_DISP_2S","      POPUP_DISP_3S","}","    ",null," 029  F2   OP3  否  请等待车辆启动完成后切换挡位 PHEV"]
[null,null," POPUP_TYPE_EXCEPTION"," 0u","   0u","   POPUP_IGN_ON","      POPUP_ID_Shifter_Fault","                      NULL","                               0u","   POPUP_MSG_Shifter_Fault","                     POPUP_MODE_SINGLE","   SND_NONE","                       POPUP_MODE_SINGLE","     POPUP_DISP_2S","      POPUP_DISP_8S","}","    ",null," 030  F2   W2   是  换挡器故障，请检查维修"]
[null,null," POPUP_TYPE_EXCEPTION"," 0u","   0u","   POPUP_IGN_ON","      POPUP_ID_P_Fault","                            NULL","                               0u","   POPUP_MSG_P_Fault","                           POPUP_MODE_SINGLE","   SND_NONE","                       POPUP_MODE_SINGLE","     POPUP_DISP_2S","      POPUP_DISP_8S","}","    ",null," 031  F2   W2   是  P挡故障，请检查维修"]
[null,null," POPUP_TYPE_EXCEPTION"," 0U","   0U","   POPUP_IGN_ON","      POPUP_ID_Tranmission_PressureFault","          NULL","                               0U","   POPUP_MSG_Tranmission_PressureFault","         POPUP_MODE_MULTI","    SND_NONE","                       POPUP_MODE_SINGLE","     POPUP_DISP_2S","      POPUP_DISP_2S","}","    ",null," 032  F2   W2   是  变速器主压异常，请检查维修"]
[null,null," POPUP_TYPE_HINT","      0u","   0u","   POPUP_IGN_ON","      POPUP_ID_SafetyBelt","                         NULL","                               0u","   POPUP_MSG_SafetyBelt","                        POPUP_MODE_MULTI","    SND_NONE","                       POPUP_MODE_SINGLE","     POPUP_DISP_2S","      POPUP_DISP_5S","}","    ",null," 033  F3   OP2  否  主驾安全带未系"]
[null,null," POPUP_TYPE_EXCEPTION"," 0u","   0u","   POPUP_IGN_ON","      POPUP_ID_LowBrakeFluidLevel","                 NULL","                               0u","   POPUP_MSG_LowBrakeFluidLevel","                POPUP_MODE_SINGLE","   SND_NONE","                       POPUP_MODE_SINGLE","     POPUP_DISP_2S","      POPUP_DISP_8S","}","    ",null," 034  F6   W2   是  制动液位低请检查维修"]
[null,null," POPUP_TYPE_HINT","      0u","   0u","   POPUP_IGN_ON","      POPUP_ID_ESC_OFF","                            NULL","                               0u","   POPUP_MSG_ESC_OFF","                           POPUP_MODE_SINGLE","   SND_NONE","                       POPUP_MODE_SINGLE","     POPUP_DISP_2S","      POPUP_DISP_3S","}","    ",null," 035  F6   OP3  否  电子稳定控制功能已关闭"]
[null,null," POPUP_TYPE_HINT","      0u","   0u","   POPUP_IGN_ON","      POPUP_ID_ESC_ON","                             NULL","                               0u","   POPUP_MSG_ESC_ON","                            POPUP_MODE_SINGLE","   SND_NONE","                       POPUP_MODE_SINGLE","     POPUP_DISP_2S","      POPUP_DISP_3S","}","    ",null," 036  F6   OP4  否  电子稳定控制功能已开启"]
[null,null," POPUP_TYPE_EXCEPTION"," 0u","   0u","   POPUP_IGN_ON","      POPUP_ID_ElectricParking_SystemFault","        NULL","                               0u","   POPUP_MSG_ElectricParking_SystemFault","       POPUP_MODE_SINGLE","   SND_NONE","                       POPUP_MODE_SINGLE","     POPUP_DISP_2S","      POPUP_DISP_8S","}","    ",null," 037  F6   W2   是  电子驻车制动系统故障，请检查维修"]
[null,null," POPUP_TYPE_HINT","      0u","   0u","   POPUP_IGN_ON","      POPUP_ID_ParkSlope_TooLarge","                 NULL","                               0u","   POPUP_MSG_ParkSlope_TooLarge","                POPUP_MODE_SINGLE","   SND_NONE","                       POPUP_MODE_SINGLE","     POPUP_DISP_2S","      POPUP_DISP_5S","}","    ",null," 038  F6   OP2  否  驻车坡度过大"]
[null,null," POPUP_TYPE_HINT","      0u","   0u","   POPUP_IGN_ON","      POPUP_ID_EPB_Clamp_Force_Low","                NULL","                               0u","   POPUP_MSG_EPB_Clamp_Force_Low","               POPUP_MODE_SINGLE","   SND_NONE","                       POPUP_MODE_SINGLE","     POPUP_DISP_2S","      POPUP_DISP_5S","}","    ",null," 039  F6   OP2  否  电子驻车夹紧力不足"]
[null,null," POPUP_TYPE_HINT","      0u","   0u","   POPUP_IGN_ON","      POPUP_ID_Wear_seatBelt","                      NULL","                               0u","   POPUP_MSG_Wear_seatBelt","                     POPUP_MODE_MULTI","    SND_NONE","                       POPUP_MODE_MULTI","      POPUP_DISP_2S","      POPUP_DISP_3S","}","    ",null," 040  F6   OP3  否  请系安全带"]
[null,null," POPUP_TYPE_HINT","      0u","   0u","   POPUP_IGN_ON","      POPUP_ID_EPB_Brake","                          NULL","                               0u","   POPUP_MSG_EPB_Brake","                         POPUP_MODE_SINGLE","   SND_NONE","                       POPUP_MODE_SINGLE","     POPUP_DISP_2S","      POPUP_DISP_3S","}","    ",null," 041  F6   OP3  否  电子驻车未释放"]
[null,null," POPUP_TYPE_HINT","      0u","   0u","   POPUP_IGN_ON","      POPUP_ID_EPB_Not_Open","                       NULL","                               0u","   POPUP_MSG_EPB_Not_Open","                      POPUP_MODE_SINGLE","   SND_NONE","                       POPUP_MODE_SINGLE","     POPUP_DISP_2S","      POPUP_DISP_3S","}","    ",null," 042  F6   OP3  否  电子驻车未拉起"]
[null,null," POPUP_TYPE_HINT","      0u","   0u","   POPUP_IGN_ON","      POPUP_ID_Park_TreadBreak","                    NULL","                               0u","   POPUP_MSG_Park_TreadBreak","                   POPUP_MODE_SINGLE","   SND_NONE","                       POPUP_MODE_SINGLE","     POPUP_DISP_2S","      POPUP_DISP_3S","}","    ",null," 043  F6   OP3  否  释放驻车时请踩刹车"]
[null,null," POPUP_TYPE_HINT","      0u","   0u","   POPUP_IGN_ON","      POPUP_ID_Tighten_Hand_Brake","                 NULL","                               0u","   POPUP_MSG_Tighten_Hand_Brake","                POPUP_MODE_SINGLE","   SND_NONE","                       POPUP_MODE_SINGLE","     POPUP_DISP_2S","      POPUP_DISP_3S","}","    ",null," 044  F6   OP3  否  请拉紧手刹"]
[null,null," POPUP_TYPE_HINT","      0u","   0u","   POPUP_IGN_ON","      POPUP_ID_Hand_Brake_Not_Loose","               NULL","                               0u","   POPUP_MSG_Hand_Brake_Not_Loose","              POPUP_MODE_SINGLE","   SND_NONE","                       POPUP_MODE_SINGLE","     POPUP_DISP_2S","      POPUP_DISP_3S","}","    ",null," 045  F6   OP3  否  手刹未松"]
[null,null," POPUP_TYPE_EXCEPTION"," 0u","   0u","   POPUP_IGN_ON_OFF","  POPUP_ID_BatteryLow_Level1","                  NULL","                               0u","   POPUP_MSG_BatteryLow_Level1","                 POPUP_MODE_SINGLE","   SND_New_ID_6","                   POPUP_MODE_SINGLE","     POPUP_DISP_2S","      POPUP_DISP_5S","}","    ",null," 043  F8   OP2  是  蓄电池电量低提示一级   为保证电量充足，请启动发动机"]
[null,null," POPUP_TYPE_EXCEPTION"," 0u","   0u","   POPUP_IGN_ON_OFF","  POPUP_ID_BatteryLow_Level2","                  NULL","                               0u","   POPUP_MSG_BatteryLow_Level2","                 POPUP_MODE_SINGLE","   SND_New_ID_7","                   POPUP_MODE_SINGLE","     POPUP_DISP_2S","      POPUP_DISP_8S","}","    ",null," 044  F8   OP1  是  蓄电池电量低提示二级   为保证电量充足，请启动发动机"]
[null,null," POPUP_TYPE_EXCEPTION"," 0u","   0u","   POPUP_IGN_ON_OFF","  POPUP_ID_FactoryMode","                        NULL","                               0u","   POPUP_MSG_FactoryMode","                       POPUP_MODE_SINGLE","   SND_NONE","                       POPUP_MODE_SINGLE","     POPUP_DISP_2S","      POPUP_DISP_3S","}","    ",null," 041  F8   OP5  是  工厂模式提示"]
[null,null," POPUP_TYPE_EXCEPTION"," 0u","   0u","   POPUP_IGN_ON_OFF","  POPUP_ID_TranSportMode","                      NULL","                               0u","   POPUP_MSG_TranSportMode","                     POPUP_MODE_SINGLE","   SND_NONE","                       POPUP_MODE_SINGLE","     POPUP_DISP_2S","      POPUP_DISP_3S","}","    ",null," 042  F8   OP5  是  运输模式提示"]
[null,null," POPUP_TYPE_HINT","      0u","   0u","   POPUP_IGN_ON_OFF","  POPUP_ID_SHIFT_TO_P","                         NULL","                               0u","   POPUP_MSG_SHIFT_TO_P","                        POPUP_MODE_SINGLE","   SND_NONE","                       POPUP_MODE_SINGLE","     POPUP_DISP_2S","      POPUP_DISP_3S","}","    ",null," 045  F9   OP3  否  切换到P档或空档  AT车型：请切换到P档"]
[null,null," POPUP_TYPE_HINT","      0u","   0u","   POPUP_IGN_ON_OFF","  POPUP_ID_SHIFT_TO_N","                         NULL","                               0u","   POPUP_MSG_SHIFT_TO_N","                        POPUP_MODE_SINGLE","   SND_NONE","                       POPUP_MODE_SINGLE","     POPUP_DISP_2S","      POPUP_DISP_3S","}","    ",null," 046  F9   OP3  否  切换到P档或空档  MT车型：请切换到空档"]
[null,null," POPUP_TYPE_HINT","      0u","   0u","   POPUP_IGN_ON_OFF","  POPUP_ID_Brake_To_Start","                     NULL","                               0u","   POPUP_MSG_Brake_To_Start","                    POPUP_MODE_SINGLE","   SND_NONE","                       POPUP_MODE_SINGLE","     POPUP_DISP_2S","      POPUP_DISP_3S","}","    ",null," 047  F9   OP3  否  启动请踩刹车或离合 AT车型：启动请踩刹车"]
[null,null," POPUP_TYPE_HINT","      0u","   0u","   POPUP_IGN_ON_OFF","  POPUP_ID_Clutch_To_Start","                    NULL","                               0u","   POPUP_MSG_Clutch_To_Start","                   POPUP_MODE_SINGLE","   SND_NONE","                       POPUP_MODE_SINGLE","     POPUP_DISP_2S","      POPUP_DISP_3S","}","    ",null," 048  F9   OP3  否  启动请踩刹车或离合 MT车型：启动请踩离合"]
[null,null," POPUP_TYPE_EXCEPTION"," 0u","   0u","   POPUP_IGN_ON_OFF","  POPUP_ID_NoKey_Fault","                        NULL","                               0u","   POPUP_MSG_NoKey_Fault","                       POPUP_MODE_SINGLE","   SND_NONE","                       POPUP_MODE_SINGLE","     POPUP_DISP_2S","      POPUP_DISP_5S","}","    ",null," 049  F9   OP2  是  无钥匙系统故障，请检查维修"]
[null,null," POPUP_TYPE_EXCEPTION"," 0u","   0u","   POPUP_IGN_ON_OFF","  POPUP_ID_PowerAllot_Fault","                   NULL","                               0u","   POPUP_MSG_PowerAllot_Fault","                  POPUP_MODE_SINGLE","   SND_NONE","                       POPUP_MODE_SINGLE","     POPUP_DISP_2S","      POPUP_DISP_5S","}","    ",null," 050  F9   OP2  是  电源分配故障，请检查维修"]
[null,null," POPUP_TYPE_HINT","      0u","   0u","   POPUP_IGN_ON","      POPUP_ID_Steering_NotRelieved","               NULL","                               0u","   POPUP_MSG_Steering_NotRelieved","              POPUP_MODE_SINGLE","   SND_NONE","                       POPUP_MODE_SINGLE","     POPUP_DISP_2S","      POPUP_DISP_5S","}","    ",null," 051  F9   OP2  否  转向锁止未解除"]
[null,null," POPUP_TYPE_EXCEPTION"," 0u","   0u","   POPUP_IGN_ON","      POPUP_ID_TheftPrevention_Auth_Fault","         NULL","                               0u","   POPUP_MSG_TheftPrevention_Auth_Fault","        POPUP_MODE_SINGLE","   SND_NONE","                       POPUP_MODE_SINGLE","     POPUP_DISP_2S","      POPUP_DISP_5S","}","    ",null," 052  F9   OP2  是  防盗认证失败 ，请检查维修"]
[null,null," POPUP_TYPE_EXCEPTION"," 0u","   0u","   POPUP_IGN_ON","      POPUP_ID_CheckReturnLockSys","                 NULL","                               0u","   POPUP_MSG_CheckReturnLockSys","                POPUP_MODE_SINGLE","   SND_NONE","                       POPUP_MODE_SINGLE","     POPUP_DISP_2S","      POPUP_DISP_5S","}","    ",null," 053  F9   OP2  是  转向锁止系统故障，请检查维修"]
[null,null," POPUP_TYPE_HINT","      0u","   0u","   POPUP_IGN_ON_OFF","  POPUP_ID_PowerNotDown","                       NULL","                               0u","   POPUP_MSG_PowerNotDown","                      POPUP_MODE_SINGLE","   SND_NONE","                       POPUP_MODE_SINGLE","     POPUP_DISP_2S","      POPUP_DISP_5S","}","    ",null," 054  F9   OP2  否  车辆未下电提示"]
[null,null," POPUP_TYPE_HINT","      0u","   0u","   POPUP_IGN_ON","      POPUP_ID_DoorOpen","           PopupMbrListDoorOpen","   sizeof(  PopupMbrListDoorOpen)","   POPUP_MSG_DoorOpen","                          POPUP_MODE_MULTI","    SND_NONE","                       POPUP_MODE_SINGLE","     POPUP_DISP_1S5","     POPUP_DISP_2S","}","    ",null," 055  F10  W1   否  车门未关文字提示"]
[null,null," POPUP_TYPE_HINT","      0u","   0u","   POPUP_IGN_ON","      POPUP_ID_DoorOpen","                           NULL","                               0U","   POPUP_MSG_DoorOpen","                          POPUP_MODE_MULTI","    SND_NONE","                       POPUP_MODE_SINGLE","     POPUP_DISP_1S5","     POPUP_DISP_2S","}","    ",null," 056  F10  W1   否  车门未关文字提示"]
[null,null," POPUP_TYPE_HINT","      0u","   0u","   POPUP_IGN_ON","      POPUP_ID_DoorOpen","                           NULL","                               0U","   POPUP_MSG_DoorOpen","                          POPUP_MODE_MULTI","    SND_NONE","                       POPUP_MODE_SINGLE","     POPUP_DISP_1S5","     POPUP_DISP_2S","}","    ",null," 057  F10  W1   否  车门未关文字提示"]
[null,null," POPUP_TYPE_HINT","      0u","   0u","   POPUP_IGN_ON","      POPUP_ID_DoorOpen","                           NULL","                               0U","   POPUP_MSG_DoorOpen","                          POPUP_MODE_MULTI","    SND_NONE","                       POPUP_MODE_SINGLE","     POPUP_DISP_1S5","     POPUP_DISP_2S","}","    ",null," 058  F10  W1   否  车门未关文字提示"]
[null,null," POPUP_TYPE_HINT","      0u","   0u","   POPUP_IGN_ON","      POPUP_ID_DoorOpen","                           NULL","                               0U","   POPUP_MSG_DoorOpen","                          POPUP_MODE_MULTI","    SND_NONE","                       POPUP_MODE_SINGLE","     POPUP_DISP_1S5","     POPUP_DISP_2S","}","    ",null," 059  F10  W1   否  车门未关文字提示"]
[null,null," POPUP_TYPE_HINT","      0u","   0u","   POPUP_IGN_ON","      POPUP_ID_HoodtOpen","                          NULL","                               0u","   POPUP_MSG_HoodtOpen","                         POPUP_MODE_MULTI","    SND_NONE","                       POPUP_MODE_SINGLE","     POPUP_DISP_1S5","     POPUP_DISP_2S","}","    ",null," 060  F10  W1   否  发动机舱盖打开"]
[null,null," POPUP_TYPE_HINT","      0u","   0u","   POPUP_IGN_ON","      POPUP_ID_TrunkOpen","                          NULL","                               0u","   POPUP_MSG_TrunkOpen","                         POPUP_MODE_SINGLE","   SND_NONE","                       POPUP_MODE_SINGLE","     POPUP_DISP_1S5","     POPUP_DISP_5S","}","    ",null," 061  F10  W1   否  行李箱门打开"]
[null,null," POPUP_TYPE_HINT","      0u","   0u","   POPUP_IGN_OFF","     POPUP_ID_CloseDoor_To_Lock","                  NULL","                               0u","   POPUP_MSG_CloseDoor_To_Lock","                 POPUP_MODE_SINGLE","   SND_New_ID_14","                  POPUP_MODE_SINGLE","     POPUP_DISP_2S","      POPUP_DISP_5S","}","    ",null," 062  F10  OP2  否  请关好车门再闭锁"]
[null,null," POPUP_TYPE_HINT","      0u","   0u","   POPUP_IGN_ON_OFF","  POPUP_ID_NO_KEY_FOUND","                       NULL","                               0u","   POPUP_MSG_NO_KEY_FOUND","                      POPUP_MODE_SINGLE","   SND_NONE","                       POPUP_MODE_SINGLE","     POPUP_DISP_2S","      POPUP_DISP_5S","}","    ",null," 063  F10  OP2  否  未检测到钥匙"]
[null,null," POPUP_TYPE_HINT","      0u","   0u","   POPUP_IGN_ON_OFF","  POPUP_ID_KEYINHUCUP","                         NULL","                               0u","   POPUP_MSG_KEYINHUCUP","                        POPUP_MODE_SINGLE","   SND_New_ID_16","                  POPUP_MODE_SINGLE","     POPUP_DISP_2S","      POPUP_DISP_5S","}","    ",null," 064  F10  OP2  否  请将钥匙放置在中控杯托内以启动车辆"]
[null,null," POPUP_TYPE_HINT","      0u","   0u","   POPUP_IGN_OFF","     POPUP_ID_LEFT_IN_CAR_Lock","                   NULL","                               0u","   POPUP_MSG_LEFT_IN_CAR_Lock","                  POPUP_MODE_SINGLE","   SND_New_ID_18","                  POPUP_MODE_SINGLE","     POPUP_DISP_2S","      POPUP_DISP_5S","}","    ",null," 065  F10  OP2  否  钥匙在车内"]
[null,null," POPUP_TYPE_HINT","      0u","   0u","   POPUP_IGN_ON_OFF","  POPUP_ID_KEY_LOW_BATT","                       NULL","                               0u","   POPUP_MSG_KEY_LOW_BATT","                      POPUP_MODE_SINGLE","   SND_NONE","                       POPUP_MODE_SINGLE","     POPUP_DISP_2S","      POPUP_DISP_5S","}","    ",null," 066  F10  OP2  否  钥匙电量低，请更换电池"]
[null,null," POPUP_TYPE_HINT","      0u","   0u","   POPUP_IGN_ON","      POPUP_ID_DigitalKeyExpired_Over","             NULL","                               0u","   POPUP_MSG_DigitalKeyExpired_Over","            POPUP_MODE_SINGLE","   SND_NONE","                       POPUP_MODE_SINGLE","     POPUP_DISP_2S","      POPUP_DISP_5S","}","    ",null," 067  F10  OP2  否  您的数字钥匙已过期，请尽快归还车辆"]
[null,null," POPUP_TYPE_HINT","      0u","   0u","   POPUP_IGN_ON","      POPUP_ID_DigitalKeyExpired_15","               NULL","                               0u","   POPUP_MSG_DigitalKeyExpired_15","              POPUP_MODE_SINGLE","   SND_NONE","                       POPUP_MODE_SINGLE","     POPUP_DISP_2S","      POPUP_DISP_5S","}","    ",null," 068  F10  OP2  否  您的数字钥匙剩余使用时间不足15分钟"]
[null,null," POPUP_TYPE_HINT","      0u","   0u","   POPUP_IGN_ON","      POPUP_ID_DigitalKeyExpired_30","               NULL","                               0u","   POPUP_MSG_DigitalKeyExpired_30","              POPUP_MODE_SINGLE","   SND_NONE","                       POPUP_MODE_SINGLE","     POPUP_DISP_2S","      POPUP_DISP_5S","}","    ",null," 069  F10  OP2  否  您的数字钥匙剩余使用时间不足30分钟"]
[null,null," POPUP_TYPE_HINT","      0u","   0u","   POPUP_IGN_ON_OFF","  POPUP_ID_BLE_Key_No_Auth","                    NULL","                               0u","   POPUP_MSG_BLE_Key_No_Auth","                   POPUP_MODE_SINGLE","   SND_New_ID_23","                  POPUP_MODE_SINGLE","     POPUP_DISP_2S","      POPUP_DISP_3S","}","    ",null," 070  F10  OP2  否  此蓝牙钥匙无启动权限"]
[null,null," POPUP_TYPE_HINT","      0u","   0u","   POPUP_IGN_ON_OFF","  POPUP_ID_Reconn_BLE_Key","                     NULL","                               0u","   POPUP_MSG_Reconn_BLE_Key","                    POPUP_MODE_SINGLE","   SND_New_ID_24","                  POPUP_MODE_SINGLE","     POPUP_DISP_2S","      POPUP_DISP_3S","}","    ",null," 071  F10  OP2  否  请通过手机APP重新连接蓝牙钥匙"]
[null,null," POPUP_TYPE_HINT","      0u","   0u","   POPUP_IGN_ON","      POPUP_ID_TrunkReleaseReqWarning","             NULL","                               0U","   POPUP_MSG_TrunkReleaseReqWarning","            POPUP_MODE_SINGLE","   SND_New_ID_26","                  POPUP_MODE_SINGLE","     POPUP_DISP_2S","      POPUP_DISP_3S","}","    ",null," 072  F10  OP3  否  请先解锁车辆，再打开后背门"]
[null,null," POPUP_TYPE_EXCEPTION"," 0u","   0u","   POPUP_IGN_ON","      POPUP_ID_Electric_Tail_BREAKDOEN","            NULL","                               0u","   POPUP_MSG_Electric_Tail_BREAKDOEN","           POPUP_MODE_SINGLE","   SND_NONE","                       POPUP_MODE_SINGLE","     POPUP_DISP_2S","      POPUP_DISP_5S","}","    ",null," 073  F10  OP2  是  电动尾翼系统故障，请检查维修"]
[null,null," POPUP_TYPE_EXCEPTION","      0u","   0u","   POPUP_IGN_ON","      POPUP_ID_Shut_Down_5S","                       NULL","                               0u","   POPUP_MSG_Shut_Down_5S","                      POPUP_MODE_SINGLE","   SND_NONE","                       POPUP_MODE_SINGLE","     POPUP_DISP_2S","      POPUP_DISP_3S","}","    ",null," 074  F10  OP2  是  如需熄火，请长按熄火开关5s"]
[null,null," POPUP_TYPE_HINT"," 0u","   0u","   POPUP_IGN_ON","      POPUP_ID_RainSensor_Fault","                   NULL","                               0u","   POPUP_MSG_RainSensor_Fault","                  POPUP_MODE_SINGLE","   SND_NONE","                       POPUP_MODE_SINGLE","     POPUP_DISP_2S","      POPUP_DISP_5S","}","    ",null," 075  F11  OP4  否  雨量传感器故障报警"]
[null,null," POPUP_TYPE_EXCEPTION"," 0u","   0u","   POPUP_IGN_ON","      POPUP_ID_WashLow","                            NULL","                               0u","   POPUP_MSG_WashLow","                           POPUP_MODE_SINGLE","   SND_NONE","                       POPUP_MODE_SINGLE","     POPUP_DISP_2S","      POPUP_DISP_5S","}","    ",null," 076  F11  OP3  是  洗涤液位低报警"]
[null,null," POPUP_TYPE_HINT","      0u","   0u","   POPUP_IGN_ON","      POPUP_ID_SkyLightOpen","                       NULL","                               0u","   POPUP_MSG_SkyLightOpen","                      POPUP_MODE_SINGLE","   SND_NONE","                       POPUP_MODE_MULTI","      POPUP_DISP_2S","      POPUP_DISP_3S","}","    ",null," 077  F12  OP4  否  天窗打开文字提示"]
[null,null," POPUP_TYPE_HINT","      0u","   0u","   POPUP_IGN_OFF","     POPUP_ID_SkyLightNotClose","                   NULL","                               0u","   POPUP_MSG_SkyLightNotClose","                  POPUP_MODE_MULTI","    SND_New_ID_27","                  POPUP_MODE_MULTI","      POPUP_DISP_2S","      POPUP_DISP_3S","}","    ",null," 078  F12  OP2  否  天窗未关文字提示"]
[null,null," POPUP_TYPE_HINT","      0u","   0u","   POPUP_IGN_ON","      POPUP_ID_Seat_Memory_Success","                NULL","                               0u","   POPUP_MSG_Seat_Memory_Success","               POPUP_MODE_SINGLE","   SND_New_ID_28","                  POPUP_MODE_SINGLE","     POPUP_DISP_2S","      POPUP_DISP_3S","}","    ",null," 079  F15  D2   否  座椅记忆设置成功"]
[null,null," POPUP_TYPE_HINT","      0u","   0u","   POPUP_IGN_ON","      POPUP_ID_Memory_Buttons_3S","                  NULL","                               0u","   POPUP_MSG_Memory_Buttons_3S","                 POPUP_MODE_SINGLE","   SND_New_ID_29","                  POPUP_MODE_SINGLE","     POPUP_DISP_2S","      POPUP_DISP_3S","}","    ",null," 080  F15  D2   否  请在3秒内按下记忆按键1或2"]
[null,null," POPUP_TYPE_HINT","      0u","   0u","   POPUP_IGN_ON","      POPUP_ID_LDW_Function_Limit","                 NULL","                               0u","   POPUP_MSG_LDW_Function_Limit","                POPUP_MODE_SINGLE","   SND_NONE","                       POPUP_MODE_SINGLE","     POPUP_DISP_2S","      POPUP_DISP_3S","}","    ",null," 081  F16  OP4  否  车道偏离功能受限"]
[null,null," POPUP_TYPE_EXCEPTION"," 0u","   0u","   POPUP_IGN_ON","      POPUP_ID_LDW_Camera_Fault","                   NULL","                               0u","   POPUP_MSG_LDW_Camera_Fault","                  POPUP_MODE_SINGLE","   SND_NONE","                       POPUP_MODE_SINGLE","     POPUP_DISP_2S","      POPUP_DISP_3S","}","    ",null," 082  F16  OP4  是  车道辅助摄像头故障"]
[null,null," POPUP_TYPE_EXCEPTION"," 0u","   0u","   POPUP_IGN_ON","      POPUP_ID_CameraObscured","                     NULL","                               0u","   POPUP_MSG_CameraObscured","                    POPUP_MODE_SINGLE","   SND_NONE","                       POPUP_MODE_SINGLE","     POPUP_DISP_2S","      POPUP_DISP_5S","}","    ",null," 083  F16  OP4  是  摄像头被遮挡"]
[null,null," POPUP_TYPE_EXCEPTION"," 0U","   0u","   POPUP_IGN_ON","      POPUP_ID_TireSystem_Failure"," PopupMbrListTPMSSysFault","sizeof(PopupMbrListTPMSSysFault)","POPUP_MSG_TireSystem_Failure","                POPUP_MODE_SINGLE","   SND_NONE","                       POPUP_MODE_SINGLE","     POPUP_DISP_2S","      POPUP_DISP_5S","}","    ",null," 084  F18  OP2  是  胎压监测系统故障，请检查维修"]
[null,null," POPUP_TYPE_EXCEPTION"," 0u","   0u","   POPUP_IGN_ON","      POPUP_ID_TireSystem_Failure","                 NULL","                               0u","   POPUP_MSG_TireSystem_Failure","                POPUP_MODE_SINGLE","   SND_NONE","                       POPUP_MODE_SINGLE","     POPUP_DISP_2S","      POPUP_DISP_5S","}","    ",null," 037  F18  OP2  是  胎压监测系统故障，请检查维修 左前"]
[null,null," POPUP_TYPE_EXCEPTION"," 0u","   0u","   POPUP_IGN_ON","      POPUP_ID_TireSystem_Failure","                 NULL","                               0u","   POPUP_MSG_TireSystem_Failure","                POPUP_MODE_SINGLE","   SND_NONE","                       POPUP_MODE_SINGLE","     POPUP_DISP_2S","      POPUP_DISP_5S","}","    ",null," 038  F18  OP2  是  胎压监测系统故障，请检查维修 右前"]
[null,null," POPUP_TYPE_EXCEPTION"," 0u","   0u","   POPUP_IGN_ON","      POPUP_ID_TireSystem_Failure","                 NULL","                               0u","   POPUP_MSG_TireSystem_Failure","                POPUP_MODE_SINGLE","   SND_NONE","                       POPUP_MODE_SINGLE","     POPUP_DISP_2S","      POPUP_DISP_5S","}","    ",null," 039  F18  OP2  是  胎压监测系统故障，请检查维修 左后"]
[null,null," POPUP_TYPE_EXCEPTION"," 0u","   0u","   POPUP_IGN_ON","      POPUP_ID_TireSystem_Failure","                 NULL","                               0u","   POPUP_MSG_TireSystem_Failure","                POPUP_MODE_SINGLE","   SND_NONE","                       POPUP_MODE_SINGLE","     POPUP_DISP_2S","      POPUP_DISP_5S","}","    ",null," 040  F18  OP2  是  胎压监测系统故障，请检查维修 右后"]
[null,null," POPUP_TYPE_EXCEPTION"," 0u","   0u","   POPUP_IGN_ON","      POPUP_ID_Right_Rear_Leakage_Leakage","         NULL","                               0u","   POPUP_MSG_Right_Rear_Leakage_Leakage","        POPUP_MODE_SINGLE","   SND_NONE","                       POPUP_MODE_SINGLE","     POPUP_DISP_2S","      POPUP_DISP_8S","}","    ",null," 085  F18  OP1  是  右后轮胎漏气，请谨慎驾驶至维修点处理"]
[null,null," POPUP_TYPE_EXCEPTION"," 0u","   0u","   POPUP_IGN_ON","      POPUP_ID_Right_Front_Leakage_Leakage","        NULL","                               0u","   POPUP_MSG_Right_Front_Leakage_Leakage","       POPUP_MODE_SINGLE","   SND_NONE","                       POPUP_MODE_SINGLE","     POPUP_DISP_2S","      POPUP_DISP_8S","}","    ",null," 086  F18  OP1  是  右前轮胎漏气，请谨慎驾驶至维修点处理"]
[null,null," POPUP_TYPE_EXCEPTION"," 0u","   0u","   POPUP_IGN_ON","      POPUP_ID_Left_Rear_Leakage_Leakage","          NULL","                               0u","   POPUP_MSG_Left_Rear_Leakage_Leakage","         POPUP_MODE_SINGLE","   SND_NONE","                       POPUP_MODE_SINGLE","     POPUP_DISP_2S","      POPUP_DISP_8S","}","    ",null," 087  F18  OP1  是  左后轮胎漏气，请谨慎驾驶至维修点处理"]
[null,null," POPUP_TYPE_EXCEPTION"," 0u","   0u","   POPUP_IGN_ON","      POPUP_ID_Left_Front_Leakage_Leakage","         NULL","                               0u","   POPUP_MSG_Left_Front_Leakage_Leakage","        POPUP_MODE_SINGLE","   SND_NONE","                       POPUP_MODE_SINGLE","     POPUP_DISP_2S","      POPUP_DISP_8S","}","    ",null," 088  F18  OP1  是  左前轮胎漏气，请谨慎驾驶至维修点处理"]
[null,null," POPUP_TYPE_EXCEPTION"," 0u","   0u","   POPUP_IGN_ON","      POPUP_ID_Right_Rear_Stop_Spare_Tire","         NULL","                               0u","   POPUP_MSG_Right_Rear_Stop_Spare_Tire","        POPUP_MODE_MULTI","    SND_NONE","                       POPUP_MODE_SINGLE","     POPUP_DISP_2S","      POPUP_DISP_2S","}","    ",null," 089  F18  W1   是  右后轮胎漏气，请靠边停车更换备胎"]
[null,null," POPUP_TYPE_EXCEPTION"," 0u","   0u","   POPUP_IGN_ON","      POPUP_ID_Right_Front_Stop_Spare_Tire","        NULL","                               0u","   POPUP_MSG_Right_Front_Stop_Spare_Tire","       POPUP_MODE_MULTI","    SND_NONE","                       POPUP_MODE_SINGLE","     POPUP_DISP_2S","      POPUP_DISP_2S","}","    ",null," 090  F18  W1   是  右前轮胎漏气，请靠边停车更换备胎"]
[null,null," POPUP_TYPE_EXCEPTION"," 0u","   0u","   POPUP_IGN_ON","      POPUP_ID_Left_Rear_Stop_Spare_Tire","          NULL","                               0u","   POPUP_MSG_Left_Rear_Stop_Spare_Tire","         POPUP_MODE_MULTI","    SND_NONE","                       POPUP_MODE_SINGLE","     POPUP_DISP_2S","      POPUP_DISP_2S","}","    ",null," 091  F18  W1   是  左后轮胎漏气，请靠边停车更换备胎"]
[null,null," POPUP_TYPE_EXCEPTION"," 0u","   0u","   POPUP_IGN_ON","      POPUP_ID_Left_Front_Stop_Spare_Tire","         NULL","                               0u","   POPUP_MSG_Left_Front_Stop_Spare_Tire","        POPUP_MODE_MULTI","    SND_NONE","                       POPUP_MODE_SINGLE","     POPUP_DISP_2S","      POPUP_DISP_2S","}","    ",null," 092  F18  W1   是  左前轮胎漏气，请靠边停车更换备胎"]
[null,null," POPUP_TYPE_EXCEPTION"," 0u","   0u","   POPUP_IGN_ON_OFF","  POPUP_ID_Right_Rear_examine_Tire","            NULL","                               0u","   POPUP_MSG_Right_Rear_examine_Tire","           POPUP_MODE_SINGLE","   SND_NONE","                       POPUP_MODE_SINGLE","     POPUP_DISP_2S","      POPUP_DISP_5S","}","    ",null," 093  F18  W2   是  右后轮胎漏气，请检查轮胎"]
[null,null," POPUP_TYPE_EXCEPTION"," 0u","   0u","   POPUP_IGN_ON_OFF","  POPUP_ID_Right_Front_examine_Tire","           NULL","                               0u","   POPUP_MSG_Right_Front_examine_Tire","          POPUP_MODE_SINGLE","   SND_NONE","                       POPUP_MODE_SINGLE","     POPUP_DISP_2S","      POPUP_DISP_5S","}","    ",null," 094  F18  W2   是  右前轮胎漏气，请检查轮胎"]
[null,null," POPUP_TYPE_EXCEPTION"," 0u","   0u","   POPUP_IGN_ON_OFF","  POPUP_ID_Left_Rear_examine_Tire","             NULL","                               0u","   POPUP_MSG_Left_Rear_examine_Tire","            POPUP_MODE_SINGLE","   SND_NONE","                       POPUP_MODE_SINGLE","     POPUP_DISP_2S","      POPUP_DISP_5S","}","    ",null," 095  F18  W2   是  左后轮胎漏气，请检查轮胎"]
[null,null," POPUP_TYPE_EXCEPTION"," 0u","   0u","   POPUP_IGN_ON_OFF","  POPUP_ID_Left_Front_examine_Tire","            NULL","                               0u","   POPUP_MSG_Left_Front_examine_Tire","           POPUP_MODE_SINGLE","   SND_NONE","                       POPUP_MODE_SINGLE","     POPUP_DISP_2S","      POPUP_DISP_5S","}","    ",null," 096  F18  W2   是  左前轮胎漏气，请检查轮胎"]
[null,null," POPUP_TYPE_EXCEPTION"," 0u","   0u","   POPUP_IGN_ON_OFF","  POPUP_ID_Right_Rear_Spare_Tire","              NULL","                               0u","   POPUP_MSG_Right_Rear_Spare_Tire","             POPUP_MODE_SINGLE","   SND_NONE","                       POPUP_MODE_SINGLE","     POPUP_DISP_2S","      POPUP_DISP_8S","}","    ",null," 097  F18  W2   是  右后轮胎漏气，请更换备胎"]
[null,null," POPUP_TYPE_EXCEPTION"," 0u","   0u","   POPUP_IGN_ON_OFF","  POPUP_ID_Right_Front_Spare_Tire","             NULL","                               0u","   POPUP_MSG_Right_Front_Spare_Tire","            POPUP_MODE_SINGLE","   SND_NONE","                       POPUP_MODE_SINGLE","     POPUP_DISP_2S","      POPUP_DISP_8S","}","    ",null," 098  F18  W2   是  右前轮胎漏气，请更换备胎"]
[null,null," POPUP_TYPE_EXCEPTION"," 0u","   0u","   POPUP_IGN_ON_OFF","  POPUP_ID_Left_Rear_Spare_Tire","               NULL","                               0u","   POPUP_MSG_Left_Rear_Spare_Tire","              POPUP_MODE_SINGLE","   SND_NONE","                       POPUP_MODE_SINGLE","     POPUP_DISP_2S","      POPUP_DISP_8S","}","    ",null," 099  F18  W2   是  左后轮胎漏气，请更换备胎"]
[null,null," POPUP_TYPE_EXCEPTION"," 0u","   0u","   POPUP_IGN_ON_OFF","  POPUP_ID_Left_Front_Spare_Tire","              NULL","                               0u","   POPUP_MSG_Left_Front_Spare_Tire","             POPUP_MODE_SINGLE","   SND_NONE","                       POPUP_MODE_SINGLE","     POPUP_DISP_2S","      POPUP_DISP_8S","}","    ",null," 100  F18  W2   是  左前轮胎漏气，请更换备胎"]
[null,null," POPUP_TYPE_HINT","      0u","   0u","   POPUP_IGN_OFF","     POPUP_ID_TPMS_Adjust_X_Bar","                  NULL","                               0u","   POPUP_MSG_TPMS_Adjust_X_Bar","                 POPUP_MODE_SINGLE","   SND_NONE","                       POPUP_MODE_SINGLE","     POPUP_DISP_2S","      POPUP_DISP_3S","}","    ",null," 101  F18  OP3  否  根据当前温度，推荐调整至XxBar"]
[null,null," POPUP_TYPE_EXCEPTION"," 0u","   0u","   POPUP_IGN_ON","      POPUP_ID_Tire_Pressure_Low","   PopupMbrListTPMSLow","      sizeof(PopupMbrListTPMSLow)","   POPUP_MSG_Tire_Pressure_Low","                 POPUP_MODE_SINGLE","   SND_NONE","                       POPUP_MODE_SINGLE","     POPUP_DISP_2S","      POPUP_DISP_5S","}","    ",null," 102  F18  OP2  是  胎压较低，请加气"]
[null,null," POPUP_TYPE_EXCEPTION"," 0u","   0u","   POPUP_IGN_ON","      POPUP_ID_Tire_Pressure_Low","                  NULL","                               0u","   POPUP_MSG_Tire_Pressure_Low","                 POPUP_MODE_SINGLE","   SND_NONE","                       POPUP_MODE_SINGLE","     POPUP_DISP_2S","      POPUP_DISP_5S","}","    ",null," 102  F18  OP2  是  胎压较低，请加气  左前"]
[null,null," POPUP_TYPE_EXCEPTION"," 0u","   0u","   POPUP_IGN_ON","      POPUP_ID_Tire_Pressure_Low","                  NULL","                               0u","   POPUP_MSG_Tire_Pressure_Low","                 POPUP_MODE_SINGLE","   SND_NONE","                       POPUP_MODE_SINGLE","     POPUP_DISP_2S","      POPUP_DISP_5S","}","    ",null," 102  F18  OP2  是  胎压较低，请加气  右前"]
[null,null," POPUP_TYPE_EXCEPTION"," 0u","   0u","   POPUP_IGN_ON","      POPUP_ID_Tire_Pressure_Low","                  NULL","                               0u","   POPUP_MSG_Tire_Pressure_Low","                 POPUP_MODE_SINGLE","   SND_NONE","                       POPUP_MODE_SINGLE","     POPUP_DISP_2S","      POPUP_DISP_5S","}","    ",null," 102  F18  OP2  是  胎压较低，请加气  左后"]
[null,null," POPUP_TYPE_EXCEPTION"," 0u","   0u","   POPUP_IGN_ON","      POPUP_ID_Tire_Pressure_Low","                  NULL","                               0u","   POPUP_MSG_Tire_Pressure_Low","                 POPUP_MODE_SINGLE","   SND_NONE","                       POPUP_MODE_SINGLE","     POPUP_DISP_2S","      POPUP_DISP_5S","}","    ",null," 102  F18  OP2  是  胎压较低，请加气  右后"]
[null,null," POPUP_TYPE_EXCEPTION"," 0u","   0u","   POPUP_IGN_ON","      POPUP_ID_Tire_Pressure_Low_Temp","             NULL","                               0u","   POPUP_MSG_Tire_Pressure_Low_Temp","            POPUP_MODE_SINGLE","   SND_NONE","                       POPUP_MODE_SINGLE","     POPUP_DISP_2S","      POPUP_DISP_5S","}","    ",null," 102  F18  OP2  是  胎压较低，请加气","温度低引起"]
[null,null," POPUP_TYPE_HINT","      0u","   0u","   POPUP_IGN_ON","      POPUP_ID_Radar","                              NULL","                               0u","   POPUP_MSG_Radar","                             POPUP_MODE_MULTI","    SND_NONE","                       POPUP_MODE_SINGLE","     POPUP_DISP_2S","      POPUP_DISP_AlWAYS","}",null,null," 103  F20  W1   否  普通倒车雷达"]
[null,null," POPUP_TYPE_EXCEPTION"," 0u","   0u","   POPUP_IGN_ON","      POPUP_ID_Radar_Fault","                        NULL","                               0u","   POPUP_MSG_Radar_Fault","                       POPUP_MODE_SINGLE","   SND_NONE","                       POPUP_MODE_SINGLE","     POPUP_DISP_2S","      POPUP_DISP_5S","}","    ",null," 104  F20  OP2  是  泊车雷达故障，请检查维修"]
[null,null," POPUP_TYPE_EXCEPTION"," 0u","   0u","   POPUP_IGN_ON","      POPUP_ID_Automatic_Parking_Front_Probe","      NULL","                               0u","   POPUP_MSG_Automatic_Parking_Front_Probe","     POPUP_MODE_SINGLE","   SND_New_ID_96","                  POPUP_MODE_SINGLE","     POPUP_DISP_2S","      POPUP_DISP_5S","}","    ",null," 105  F20  OP2  是  自动泊车前探头故障，请检查维修"]
[null,null," POPUP_TYPE_EXCEPTION"," 0u","   0u","   POPUP_IGN_ON","      POPUP_ID_Automatic_Parking_Rear_Probe","       NULL","                               0u","   POPUP_MSG_Automatic_Parking_Rear_Probe","      POPUP_MODE_SINGLE","   SND_New_ID_97","                  POPUP_MODE_SINGLE","     POPUP_DISP_2S","      POPUP_DISP_5S","}","    ",null," 106  F20  OP2  是  自动泊车后探头故障，请检查维修"]
[null,null," POPUP_TYPE_EXCEPTION"," 0u","   0u","   POPUP_IGN_ON","      POPUP_ID_Camera_Occlusion","                   NULL","                               0u","   POPUP_MSG_Camera_Occlusion","                  POPUP_MODE_SINGLE","   SND_New_ID_98","                  POPUP_MODE_SINGLE","     POPUP_DISP_2S","      POPUP_DISP_5S","}","    ",null," 107  F20  OP2  是  摄像头被遮挡，请检查维修"]
[null,null," POPUP_TYPE_EXCEPTION"," 0u","   0u","   POPUP_IGN_ON","      POPUP_ID_Camera_Fault","                       NULL","                               0u","   POPUP_MSG_Camera_Fault","                      POPUP_MODE_SINGLE","   SND_New_ID_99","                  POPUP_MODE_SINGLE","     POPUP_DISP_2S","      POPUP_DISP_5S","}","    ",null," 108  F20  OP2  是  摄像头故障，请检查维修"]
[null,null," POPUP_TYPE_EXCEPTION"," 0u","   0u","   POPUP_IGN_ON","      POPUP_ID_Parking_Fault","                      NULL","                               0u","   POPUP_MSG_Parking_Fault","                     POPUP_MODE_SINGLE","   SND_New_ID_103","                 POPUP_MODE_SINGLE","     POPUP_DISP_2S","      POPUP_DISP_5S","}","    ",null," 109  F20  OP2  是  自动泊车故障，请检查维修"]
[null,null," POPUP_TYPE_EXCEPTION"," 0u","   0u","   POPUP_IGN_ON","      POPUP_ID_Parking_Limited","                    NULL","                               0u","   POPUP_MSG_Parking_Limited","                   POPUP_MODE_SINGLE","   SND_New_ID_104","                 POPUP_MODE_SINGLE","     POPUP_DISP_2S","      POPUP_DISP_5S","}","    ",null," 110  F20  OP2  是  泊车功能受限，系统退出"]
[null,null," POPUP_TYPE_HINT","      0u","   0u","   POPUP_IGN_ON","      POPUP_ID_DVR_Not_Available","                  NULL","                               0u","   POPUP_MSG_DVR_Not_Available","                 POPUP_MODE_SINGLE","   SND_New_ID_114","                 POPUP_MODE_SINGLE","     POPUP_DISP_2S","      POPUP_DISP_5S","}","    ",null," 111  F20  OP2  否  DVR不可用，泊车退出"]
[null,null," POPUP_TYPE_EXCEPTION"," 0u","   0u","   POPUP_IGN_ON","      POPUP_ID_Low_Speed_Auto_Brak","                NULL","                               0u","   POPUP_MSG_Low_Speed_Auto_Brak","               POPUP_MODE_SINGLE","   SND_New_ID_115","                 POPUP_MODE_SINGLE","     POPUP_DISP_2S","      POPUP_DISP_5S","}","    ",null," 112  F20  OP2  是  低速自动紧急制动不可用，请检查维修"]
[null,null," POPUP_TYPE_EXCEPTION"," 0u","   0u","   POPUP_IGN_ON","      POPUP_ID_Self_Search_Parking","                NULL","                               0u","   POPUP_MSG_Self_Search_Parking","               POPUP_MODE_SINGLE","   SND_New_ID_116","                 POPUP_MODE_SINGLE","     POPUP_DISP_2S","      POPUP_DISP_5S","}","    ",null," 113  F20  OP2  是  自搜索泊车不可用，请检查维修"]
[null,null," POPUP_TYPE_EXCEPTION"," 0u","   0u","   POPUP_IGN_ON","      POPUP_ID_Side_Assist","                        NULL","                               0u","   POPUP_MSG_Side_Assist","                       POPUP_MODE_SINGLE","   SND_New_ID_117","                 POPUP_MODE_SINGLE","     POPUP_DISP_2S","      POPUP_DISP_5S","}","    ",null," 114  F20  OP2  是  侧视辅助不可用，请检查维修"]
[null,null," POPUP_TYPE_HINT","      0u","   0u","   POPUP_IGN_ON","      POPUP_ID_Low_Speed_Auto_Emergency_Brak","      NULL","                               0u","   POPUP_MSG_Low_Speed_Auto_Emergency_Brak","     POPUP_MODE_SINGLE","   SND_NONE","                       POPUP_MODE_SINGLE","     POPUP_DISP_2S","      POPUP_DISP_5S","}","    ",null," 115  F20  OP2  否  低速自动紧急制动"]
[null,null," POPUP_TYPE_HINT","      0u","   0u","   POPUP_IGN_ON","      POPUP_ID_Steering_Return_Left","               NULL","                               0u","   POPUP_MSG_Steering_Return_Left","              POPUP_MODE_SINGLE","   SND_NONE","                       POPUP_MODE_SINGLE","     POPUP_DISP_2S","      POPUP_DISP_3S","}","    ",null," 116  F24  OP3  否  转向回正提示  请向左打方向盘，调整轮胎"]
[null,null," POPUP_TYPE_HINT","      0u","   0u","   POPUP_IGN_ON","      POPUP_ID_Steering_Return_Right","              NULL","                               0u","   POPUP_MSG_Steering_Return_Right","             POPUP_MODE_SINGLE","   SND_NONE","                       POPUP_MODE_SINGLE","     POPUP_DISP_2S","      POPUP_DISP_3S","}","    ",null," 117  F24  OP3  否  转向回正提示  请向右打方向盘，调整轮胎"]
[null,null," POPUP_TYPE_HINT","      0u","   0u","   POPUP_IGN_OFF","     POPUP_ID_Steering_Return_Left_OFF","           NULL","                               0u","   POPUP_MSG_Steering_Return_Left_OFF","          POPUP_MODE_SINGLE","   SND_NONE","                       POPUP_MODE_SINGLE","     POPUP_DISP_2S","      POPUP_DISP_3S","}","    ",null," 118  F24  OP3  否  转向回正提示  请向左打方向盘，调整轮胎"]
[null,null," POPUP_TYPE_HINT","      0u","   0u","   POPUP_IGN_OFF","     POPUP_ID_Steering_Return_Right_OFF","          NULL","                               0u","   POPUP_MSG_Steering_Return_Right_OFF","         POPUP_MODE_SINGLE","   SND_NONE","                       POPUP_MODE_SINGLE","     POPUP_DISP_2S","      POPUP_DISP_3S","}","    ",null," 119  F24  OP3  否  转向回正提示  请向右打方向盘，调整轮胎"]
[null,null," POPUP_TYPE_EXCEPTION"," 0u","   0u","   POPUP_IGN_ON","      POPUP_ID_TempHigh","                           NULL","                               0u","   POPUP_MSG_TempHigh","                          POPUP_MODE_SINGLE","   SND_NONE","                       POPUP_MODE_SINGLE","     POPUP_DISP_2S","      POPUP_DISP_8S","}","    ",null," 120  F24  W2   是  水温高"]
[null,null," POPUP_TYPE_HINT","      0u","   0u","   POPUP_IGN_ON","      POPUP_ID_Screenshot_Succ","                    NULL","                               0u","   POPUP_MSG_Screenshot_Succ","                   POPUP_MODE_SINGLE","   SND_NONE","                       POPUP_MODE_SINGLE","     POPUP_DISP_2S","      POPUP_DISP_3S","}","    ",null," 121  F24  D2   否  仪表截屏成功"]
[null,null," POPUP_TYPE_HINT","      0u","   0u","   POPUP_IGN_ON","      POPUP_ID_Screenshot_Fail","                    NULL","                               0u","   POPUP_MSG_Screenshot_Fail","                   POPUP_MODE_SINGLE","   SND_NONE","                       POPUP_MODE_SINGLE","     POPUP_DISP_2S","      POPUP_DISP_3S","}","    ",null," 122  F24  D2   否  仪表截屏失败"]
[null,null," POPUP_TYPE_HINT","      0u","   0u","   POPUP_IGN_ON","      POPUP_ID_Screenshot_Trans_Fail","              NULL","                               0u","   POPUP_MSG_Screenshot_Trans_Fail","             POPUP_MODE_SINGLE","   SND_NONE","                       POPUP_MODE_SINGLE","     POPUP_DISP_2S","      POPUP_DISP_3S","}","    ",null," 123  F24  D2   否  仪表截屏传输失败，可稍后重试"]
[null,null," POPUP_TYPE_HINT","      0u","   0u","   POPUP_IGN_ON","      POPUP_ID_Screenshot_By_Holding_OK","           NULL","                               0u","   POPUP_MSG_Screenshot_By_Holding_OK","          POPUP_MODE_SINGLE","   SND_NONE","                       POPUP_MODE_SINGLE","     POPUP_DISP_2S","      POPUP_DISP_3S","}","    ",null," 124  F24  OP4  否  长按OK健截屏"]
[null,null," POPUP_TYPE_HINT","      0u","   0u","   POPUP_IGN_ON","      POPUP_ID_OverSpeed","                          NULL","                               0u","   POPUP_MSG_OverSpeed","                         POPUP_MODE_SINGLE","   SND_New_ID_143","                 POPUP_MODE_SINGLE","     POPUP_DISP_2S","      POPUP_DISP_5S","}","    ",null," 125  F24  OP2  否  超速报警"]
[null,null," POPUP_TYPE_HINT","      0u","   0u","   POPUP_IGN_ON","      POPUP_ID_IACC_Theme_Not_FullScreen_Navi","     NULL","                               0u","   POPUP_MSG_IACC_Theme_Not_FullScreen_Navi","    POPUP_MODE_SINGLE","   SND_NONE","                       POPUP_MODE_SINGLE","     POPUP_DISP_2S","      POPUP_DISP_3S","}","    ",null," 126  F25  OP4  否  智能驾驶专用主题，不能进入全屏导航"]
[null,null," POPUP_TYPE_HINT","      0u","   0u","   POPUP_IGN_ON","      POPUP_ID_No_Audio_Source_Is_Pplayed","         NULL","                               0u","   POPUP_MSG_No_Audio_Source_Is_Pplayed","        POPUP_MODE_SINGLE","   SND_NONE ","*no sound *",null,"         POPUP_MODE_SINGLE","     POPUP_DISP_2S","      POPUP_DISP_3S","}"," 127  F25  OP4  否  当前无播放音源"]
[null,null," POPUP_TYPE_HINT","      0u","   0u","   POPUP_IGN_ON","      POPUP_ID_CHANGE_THEME","                       NULL","                               0u","   POPUP_MSG_CHANGE_THEME","                      POPUP_MODE_SINGLE","   SND_NONE ","*no sound *",null,"         POPUP_MODE_SINGLE","     POPUP_DISP_2S","      POPUP_DISP_3S","}"," 128  F25  OP4  否  报警已解除，即将为您切换主题"]
[null,null," POPUP_TYPE_HINT","      0u","   0u","   POPUP_IGN_OFF","     POPUP_ID_Follow_GoHome","                      NULL","                               0u","   POPUP_MSG_Follow_GoHome","                     POPUP_MODE_SINGLE","   SND_NONE","                       POPUP_MODE_SINGLE","     POPUP_DISP_2S","      POPUP_DISP_3S","}","    ",null," 129  F27  D2   否  跟随回家开启提示"]
[null,null," POPUP_TYPE_EXCEPTION"," 0u","   0u","   POPUP_IGN_ON","      POPUP_ID_AmbientSensor_Fault","                NULL","                               0u","   POPUP_MSG_AmbientSensor_Fault","               POPUP_MODE_SINGLE","   SND_NONE","                       POPUP_MODE_SINGLE","     POPUP_DISP_2S","      POPUP_DISP_5S","}","    ",null," 130  F27  OP4  是  环境光传感器故障报警"]
[null,null," POPUP_TYPE_HINT","      1u","   0u","   POPUP_IGN_OFF","     POPUP_ID_PositionLamp_NotShut","               NULL","                               0u","   POPUP_MSG_PositionLamp_NotShut","              POPUP_MODE_SINGLE","   SND_NONE","                       POPUP_MODE_SINGLE","     POPUP_DISP_2S","      POPUP_DISP_3S","}","    ",null," 131  F27  OP3  否  位置灯未关提示"]
[null,null," POPUP_TYPE_EXCEPTION"," 0u","   0u","   POPUP_IGN_ON","      POPUP_ID_FrontPositionLampFault","             NULL","                               0u","   POPUP_MSG_FrontPositionLampFault","            POPUP_MODE_SINGLE","   SND_New_ID_126","                 POPUP_MODE_SINGLE","     POPUP_DISP_2S","      POPUP_DISP_5S","}","    ",null," 132  F27  OP2  是  前位置灯故障状态"]
[null,null," POPUP_TYPE_EXCEPTION"," 0u","   0u","   POPUP_IGN_ON","      POPUP_ID_RearPositionLampFault","              NULL","                               0u","   POPUP_MSG_RearPositionLampFault","             POPUP_MODE_SINGLE","   SND_New_ID_127","                 POPUP_MODE_SINGLE","     POPUP_DISP_2S","      POPUP_DISP_5S","}","    ",null," 133  F27  OP2  是  后位置灯故障状态"]
[null,null," POPUP_TYPE_EXCEPTION"," 0u","   0u","   POPUP_IGN_ON","      POPUP_ID_LeftPositionLampFault","              NULL","                               0u","   POPUP_MSG_LeftPositionLampFault","             POPUP_MODE_SINGLE","   SND_New_ID_128","                 POPUP_MODE_SINGLE","     POPUP_DISP_2S","      POPUP_DISP_5S","}","    ",null," 134  F27  OP2  是  左位置灯故障状态"]
[null,null," POPUP_TYPE_EXCEPTION"," 0u","   0u","   POPUP_IGN_ON","      POPUP_ID_RightPositionLampFault","             NULL","                               0u","   POPUP_MSG_RightPositionLampFault","            POPUP_MODE_SINGLE","   SND_New_ID_129","                 POPUP_MODE_SINGLE","     POPUP_DISP_2S","      POPUP_DISP_5S","}","    ",null," 135  F27  OP2  是  右位置灯故障状态"]
[null,null," POPUP_TYPE_EXCEPTION"," 0u","   0u","   POPUP_IGN_ON","      POPUP_ID_LeftLowLampFault","                   NULL","                               0u","   POPUP_MSG_LeftLowLampFault","                  POPUP_MODE_SINGLE","   SND_New_ID_130","                 POPUP_MODE_SINGLE","     POPUP_DISP_2S","      POPUP_DISP_5S","}","    ",null," 136  F27  OP2  是  左近光灯故障状态"]
[null,null," POPUP_TYPE_EXCEPTION"," 0u","   0u","   POPUP_IGN_ON","      POPUP_ID_RightLowLampFault","                  NULL","                               0u","   POPUP_MSG_RightLowLampFault","                 POPUP_MODE_SINGLE","   SND_New_ID_131","                 POPUP_MODE_SINGLE","     POPUP_DISP_2S","      POPUP_DISP_5S","}","    ",null," 137  F27  OP2  是  右近光灯故障状态"]
[null,null," POPUP_TYPE_EXCEPTION"," 0u","   0u","   POPUP_IGN_ON","      POPUP_ID_LeftFrontFogLampFault","              NULL","                               0u","   POPUP_MSG_LeftFrontFogLampFault","             POPUP_MODE_SINGLE","   SND_New_ID_132","                 POPUP_MODE_SINGLE","     POPUP_DISP_2S","      POPUP_DISP_5S","}","    ",null," 138  F27  OP2  是  左前雾灯故障状态"]
[null,null," POPUP_TYPE_EXCEPTION"," 0u","   0u","   POPUP_IGN_ON","      POPUP_ID_RightFrontFogLampFault","             NULL","                               0u","   POPUP_MSG_RightFrontFogLampFault","            POPUP_MODE_SINGLE","   SND_New_ID_133","                 POPUP_MODE_SINGLE","     POPUP_DISP_2S","      POPUP_DISP_5S","}","    ",null," 139  F27  OP2  是  右前雾灯故障状态"]
[null,null," POPUP_TYPE_EXCEPTION"," 0u","   0u","   POPUP_IGN_ON","      POPUP_ID_LeftRearFogLampFault","               NULL","                               0u","   POPUP_MSG_LeftRearFogLampFault","              POPUP_MODE_SINGLE","   SND_New_ID_134","                 POPUP_MODE_SINGLE","     POPUP_DISP_2S","      POPUP_DISP_5S","}","    ",null," 140  F27  OP2  是  左后雾灯故障状态"]
[null,null," POPUP_TYPE_EXCEPTION"," 0u","   0u","   POPUP_IGN_ON","      POPUP_ID_RightRearFogLampFault","              NULL","                               0u","   POPUP_MSG_RightRearFogLampFault","             POPUP_MODE_SINGLE","   SND_New_ID_135","                 POPUP_MODE_SINGLE","     POPUP_DISP_2S","      POPUP_DISP_5S","}","    ",null," 141  F27  OP2  是  右后雾灯故障状态"]
[null,null," POPUP_TYPE_EXCEPTION"," 0u","   0u","   POPUP_IGN_ON","      POPUP_ID_TurnIndicatorLeftFault","             NULL","                               0u","   POPUP_MSG_TurnIndicatorLeftFault","            POPUP_MODE_SINGLE","   SND_New_ID_136","                 POPUP_MODE_SINGLE","     POPUP_DISP_2S","      POPUP_DISP_5S","}","    ",null," 142  F27  OP2  是  左转向灯故障状态"]
[null,null," POPUP_TYPE_EXCEPTION"," 0u","   0u","   POPUP_IGN_ON","      POPUP_ID_TurnIndicatorRightFault","            NULL","                               0u","   POPUP_MSG_TurnIndicatorRightFault","           POPUP_MODE_SINGLE","   SND_New_ID_137","                 POPUP_MODE_SINGLE","     POPUP_DISP_2S","      POPUP_DISP_5S","}","    ",null," 143  F27  OP2  是  右转向灯故障状态"]
[null,null," POPUP_TYPE_EXCEPTION"," 0u","   0u","   POPUP_IGN_ON","      POPUP_ID_BrakeLampFault","                     NULL","                               0u","   POPUP_MSG_BrakeLampFault","                    POPUP_MODE_SINGLE","   SND_New_ID_138","                 POPUP_MODE_SINGLE","     POPUP_DISP_2S","      POPUP_DISP_5S","}","    ",null," 144  F27  OP2  是  刹车灯故障状态"]
[null,null," POPUP_TYPE_EXCEPTION"," 0u","   0u","   POPUP_IGN_ON","      POPUP_ID_CHMLampFault","                       NULL","                               0u","   POPUP_MSG_CHMLampFault","                      POPUP_MODE_SINGLE","   SND_New_ID_139","                 POPUP_MODE_SINGLE","     POPUP_DISP_2S","      POPUP_DISP_5S","}","    ",null," 145  F27  OP2  是  高位制动灯灯故障状态"]
[null,null," POPUP_TYPE_EXCEPTION"," 0u","   0u","   POPUP_IGN_ON","      POPUP_ID_ReverseLampFault","                   NULL","                               0u","   POPUP_MSG_ReverseLampFault","                  POPUP_MODE_SINGLE","   SND_New_ID_140","                 POPUP_MODE_SINGLE","     POPUP_DISP_2S","      POPUP_DISP_5S","}","    ",null," 146  F27  OP2  是  倒车灯故障状态"]
[null,null," POPUP_TYPE_EXCEPTION"," 0u","   0u","   POPUP_IGN_ON","      POPUP_ID_LeftDayLampFault","                   NULL","                               0u","   POPUP_MSG_LeftDayLampFault","                  POPUP_MODE_SINGLE","   SND_New_ID_141","                 POPUP_MODE_SINGLE","     POPUP_DISP_2S","      POPUP_DISP_5S","}","    ",null," 147  F27  OP2  是  左日间行车灯故障状态"]
[null,null," POPUP_TYPE_EXCEPTION"," 0u","   0u","   POPUP_IGN_ON","      POPUP_ID_RightDayLampFault","                  NULL","                               0u","   POPUP_MSG_RightDayLampFault","                 POPUP_MODE_SINGLE","   SND_New_ID_142","                 POPUP_MODE_SINGLE","     POPUP_DISP_2S","      POPUP_DISP_5S","}","    ",null," 148  F27  OP2  是  右日间行车灯故障状态"]
[null,null," POPUP_TYPE_HINT","      0u","   0u","   POPUP_IGN_ON","      POPUP_ID_Fuel_Tank_Door_UnLock","              NULL","                               0u","   POPUP_MSG_Fuel_Tank_Door_UnLock","             POPUP_MODE_SINGLE","   SND_NONE ","*no sound *",null,"         POPUP_MODE_SINGLE","     POPUP_DISP_2S","      POPUP_DISP_3S","}","    ",null," 149  F28  OP3  否  正在解锁油箱门，请等待"]
[null,null," POPUP_TYPE_HINT","      0u","   0u","   POPUP_IGN_ON","      POPUP_ID_Failde_UnLock_Failed","               NULL","                               0u","   POPUP_MSG_Failde_UnLock_Failed","              POPUP_MODE_SINGLE","   SND_NONE ","*no sound *",null,"         POPUP_MODE_SINGLE","     POPUP_DISP_2S","      POPUP_DISP_3S","}","    ",null," 150  F28  OP3  否  邮箱门解锁失败，请联系客服"]
[null,null," POPUP_TYPE_HINT","      0u","   0u","   POPUP_IGN_ON","      POPUP_ID_Failde_UnLock_Over","                 NULL","                               0u","   POPUP_MSG_Failde_UnLock_Over","                POPUP_MODE_SINGLE","   SND_NONE ","*no sound *",null,"         POPUP_MODE_SINGLE","     POPUP_DISP_2S","      POPUP_DISP_3S","}","    ",null," 151  F28  OP3  否  油箱门解锁完成，请加注燃油"]
[null,null," POPUP_TYPE_EXCEPTION"," 0u","   0u","   POPUP_IGN_ON","      POPUP_ID_AdaptiveCruiseFault","PopupMbrListAdpCruiseFault","sizeof(PopupMbrListAdpCruiseFault)","POPUP_MSG_AdaptiveCruiseFault","           POPUP_MODE_SINGLE","   SND_New_ID_157","                 POPUP_MODE_SINGLE","     POPUP_DISP_2S","      POPUP_DISP_3S","}","    ",null," 152  L2.9 OP3  否  自适应巡航系统故障"]
[null,null," POPUP_TYPE_EXCEPTION"," 0u","   0u","   POPUP_IGN_ON","      POPUP_ID_AdaptiveCruiseFault","                NULL","                               0u","   POPUP_MSG_AdaptiveCruiseFault","               POPUP_MODE_SINGLE","   SND_New_ID_157","                 POPUP_MODE_SINGLE","     POPUP_DISP_2S","      POPUP_DISP_3S","}","    ",null," 152  L2.9 OP3  否  自适应巡航系统故障"]
[null,null," POPUP_TYPE_EXCEPTION"," 0u","   0u","   POPUP_IGN_ON","      POPUP_ID_AdaptiveCruiseFault","                NULL","                               0u","   POPUP_MSG_AdaptiveCruiseFault","               POPUP_MODE_SINGLE","   SND_New_ID_157","                 POPUP_MODE_SINGLE","     POPUP_DISP_2S","      POPUP_DISP_3S","}","    ",null," 152  L2.9 OP3  否  自适应巡航系统故障"]
[null,null," POPUP_TYPE_HINT","      0u","   0u","   POPUP_IGN_ON","      POPUP_ID_Function_Unavailable","PopupMbrListFuncUnavaibl","sizeof(PopupMbrListFuncUnavaibl)","POPUP_MSG_Function_Unavailable","             POPUP_MODE_SINGLE","   SND_New_ID_158","                 POPUP_MODE_SINGLE","     POPUP_DISP_1S5","     POPUP_DISP_3S","}","    ",null," 153  L2.9 OP3  否  功能暂不可用"]
[null,null," POPUP_TYPE_HINT","      0u","   0u","   POPUP_IGN_ON","      POPUP_ID_Function_Unavailable","               NULL","                               0u","   POPUP_MSG_Function_Unavailable","              POPUP_MODE_SINGLE","   SND_New_ID_158","                 POPUP_MODE_SINGLE","     POPUP_DISP_1S5","     POPUP_DISP_3S","}","    ",null," 153  L2.9 OP3  否  功能暂不可用 1"]
[null,null," POPUP_TYPE_HINT","      0u","   0u","   POPUP_IGN_ON","      POPUP_ID_Function_Unavailable","               NULL","                               0u","   POPUP_MSG_Function_Unavailable","              POPUP_MODE_SINGLE","   SND_New_ID_158","                 POPUP_MODE_SINGLE","     POPUP_DISP_1S5","     POPUP_DISP_3S","}","    ",null," 153  L2.9 OP3  否  功能暂不可用 4"]
[null,null," POPUP_TYPE_HINT","      0u","   0u","   POPUP_IGN_ON","      POPUP_ID_Function_Unavailable","               NULL","                               0u","   POPUP_MSG_Function_Unavailable","              POPUP_MODE_SINGLE","   SND_New_ID_158","                 POPUP_MODE_SINGLE","     POPUP_DISP_1S5","     POPUP_DISP_3S","}","    ",null," 153  L2.9 OP3  否  功能暂不可用 E"]
[null,null," POPUP_TYPE_HINT","      0u","   0u","   POPUP_IGN_ON","      POPUP_ID_Activation_Failed_Rele_HandBreak","   NULL","                               0u","   POPUP_MSG_Activation_Failed_Rele_HandBreak","  POPUP_MODE_SINGLE","   SND_New_ID_159","                 POPUP_MODE_SINGLE","     POPUP_DISP_2S","      POPUP_DISP_3S","}","    ",null," 154  L2.9 OP3  否  激活失败，请先松手刹"]
[null,null," POPUP_TYPE_HINT","      0u","   0u","   POPUP_IGN_ON","      POPUP_ID_Activation_Failed_Hang_D","           NULL","                               0u","   POPUP_MSG_Activation_Failed_Hang_D","          POPUP_MODE_SINGLE","   SND_New_ID_160","                 POPUP_MODE_SINGLE","     POPUP_DISP_2S","      POPUP_DISP_3S","}","    ",null," 155  L2.9 OP3  否  激活失败，请先挂D挡"]
[null,null," POPUP_TYPE_HINT","      0u","   0u","   POPUP_IGN_ON","      POPUP_ID_Activation_Failed_Seat_Belt","        NULL","                               0u","   POPUP_MSG_Activation_Failed_Seat_Belt","       POPUP_MODE_SINGLE","   SND_New_ID_161","                 POPUP_MODE_SINGLE","     POPUP_DISP_2S","      POPUP_DISP_3S","}","    ",null," 156  L2.9 OP3  否  激活失败","请先系安全带"]
[null,null," POPUP_TYPE_HINT","      0u","   0u","   POPUP_IGN_ON","      POPUP_ID_Activation_Failed_Start","            NULL","                               0u","   POPUP_MSG_Activation_Failed_Start","           POPUP_MODE_SINGLE","   SND_New_ID_162","                 POPUP_MODE_SINGLE","     POPUP_DISP_2S","      POPUP_DISP_3S","}","    ",null," 157  L2.9 OP3  否  激活失败","请先启动车辆"]
[null,null," POPUP_TYPE_HINT","      0u","   0u","   POPUP_IGN_ON","      POPUP_ID_Activation_Failed_Open_ESC","         NULL","                               0u","   POPUP_MSG_Activation_Failed_Open_ESC","        POPUP_MODE_SINGLE","   SND_New_ID_163","                 POPUP_MODE_SINGLE","     POPUP_DISP_2S","      POPUP_DISP_3S","}","    ",null," 158  L2.9 OP3  否  激活失败","请先开启ESC"]
[null,null," POPUP_TYPE_HINT","      0u","   0u","   POPUP_IGN_ON","      POPUP_ID_Activation_Failed_Close_Hood","       NULL","                               0u","   POPUP_MSG_Activation_Failed_Close_Hood","      POPUP_MODE_SINGLE","   SND_New_ID_164","                 POPUP_MODE_SINGLE","     POPUP_DISP_1S5","     POPUP_DISP_3S","}","    ",null," 159  L2.9 OP3  否  激活失败","请先关闭引擎盖"]
[null,null," POPUP_TYPE_HINT","      0u","   0u","   POPUP_IGN_ON","      POPUP_ID_Activation_Failed_120KM_ACC","        NULL","                               0u","   POPUP_MSG_Activation_Failed_120KM_ACC","       POPUP_MODE_SINGLE","   SND_New_ID_165","                 POPUP_MODE_SINGLE","     POPUP_DISP_2S","      POPUP_DISP_3S","}","    ",null," 160  L2.9 OP3  否  激活失败","请先减速到120km"]
[null,null," POPUP_TYPE_HINT","      0u","   0u","   POPUP_IGN_ON","      POPUP_ID_Activation_Failed_120KM_IACC","       NULL","                               0u","   POPUP_MSG_Activation_Failed_120KM_IACC","      POPUP_MODE_SINGLE","   SND_New_ID_165","                 POPUP_MODE_SINGLE","     POPUP_DISP_2S","      POPUP_DISP_3S","}","    ",null," 160  L2.9 OP3  否  激活失败","请先减速到120km"]
[null,null," POPUP_TYPE_HINT","      0u","   0u","   POPUP_IGN_ON","      POPUP_ID_Dynamical_System_Nonsupport","        NULL","                               0u","   POPUP_MSG_Dynamical_System_Nonsupport","       POPUP_MODE_SINGLE","   SND_New_ID_166","                 POPUP_MODE_SINGLE","     POPUP_DISP_2S","      POPUP_DISP_3S","}","    ",null," 161  L2.9 OP3  否  功能暂不可用","动力系统不支持"]
[null,null," POPUP_TYPE_HINT","      0u","   0u","   POPUP_IGN_ON","      POPUP_ID_Snow_Mode","                          NULL","                               0u","   POPUP_MSG_Snow_Mode","                         POPUP_MODE_SINGLE","   SND_New_ID_168","                 POPUP_MODE_SINGLE","     POPUP_DISP_2S","      POPUP_DISP_3S","}","    ",null," 162  L2.9 OP3  否  雪地模式下，功能无法激活"]
[null,null," POPUP_TYPE_HINT","      0u","   0u","   POPUP_IGN_ON","      POPUP_ID_The_Circuit_Model","                  NULL","                               0u","   POPUP_MSG_The_Circuit_Model","                 POPUP_MODE_SINGLE","   SND_New_ID_169","                 POPUP_MODE_SINGLE","     POPUP_DISP_2S","      POPUP_DISP_3S","}","    ",null," 163  L2.9 OP3  否  赛道模式下，功能无法激活"]
[null,null," POPUP_TYPE_HINT","      0u","   0u","   POPUP_IGN_ON","      POPUP_ID_Passable_Dtart","                     NULL","                               0u","   POPUP_MSG_Passable_Dtart","                    POPUP_MODE_SINGLE","   SND_New_ID_170","                 POPUP_MODE_SINGLE","     POPUP_DISP_2S","      POPUP_DISP_3S","}","    ",null," 164  L2.9 OP3  否  车辆前方可通行，请起步"]
[null,null," POPUP_TYPE_HINT","      0u","   0u","   POPUP_IGN_ON","      POPUP_ID_Activation_Failed_Close_All_Door","   NULL","                               0u","   POPUP_MSG_Activation_Failed_Close_All_Door","  POPUP_MODE_SINGLE","   SND_New_ID_171","                 POPUP_MODE_SINGLE","     POPUP_DISP_1S5","     POPUP_DISP_3S","}","    ",null," 165  L2.9 OP3  否  激活失败","请先关闭所有车门"]
[null,null," POPUP_TYPE_HINT","      0u","   0u","   POPUP_IGN_ON","      POPUP_ID_Breaking_Disable_Activation","        NULL","                               0u","   POPUP_MSG_Breaking_Disable_Activation","       POPUP_MODE_SINGLE","   SND_New_ID_172","                 POPUP_MODE_SINGLE","     POPUP_DISP_2S","      POPUP_DISP_3S","}","    ",null," 166  L2.9 OP3  否  您正在踩刹车，功能无法激活"]
[null,null," POPUP_TYPE_HINT","      0u","   0u","   POPUP_IGN_ON","      POPUP_ID_Excessive_Rotation_Wheel","           NULL","                               0u","   POPUP_MSG_Excessive_Rotation_Wheel","          POPUP_MODE_SINGLE","   SND_New_ID_174","                 POPUP_MODE_SINGLE","     POPUP_DISP_2S","      POPUP_DISP_3S","}","    ",null," 167  L2.9 OP3  否  方向盘转向过大，功能无法激活"]
[null,null," POPUP_TYPE_HINT","      0u","   0u","   POPUP_IGN_ON","      POPUP_ID_Lane_Line_Unable_Activate","          NULL","                               0u","   POPUP_MSG_Lane_Line_Unable_Activate","         POPUP_MODE_SINGLE","   SND_New_ID_176","                 POPUP_MODE_SINGLE","     POPUP_DISP_2S","      POPUP_DISP_3S","}","    ",null," 168  L2.9 OP3  否  车道线不满足激活条件，功能无法激活"]
[null,null," POPUP_TYPE_HINT","      0u","   0u","   POPUP_IGN_ON","      POPUP_ID_Activation_Failed_Recorder","         NULL","                               0u","   POPUP_MSG_Activation_Failed_Recorder","        POPUP_MODE_SINGLE","   SND_New_ID_177","                 POPUP_MODE_SINGLE","     POPUP_DISP_2S","      POPUP_DISP_3S","}","    ",null," 169  L2.9 OP3  否  激活失败","请检查环视行车记录仪"]
[null,null," POPUP_TYPE_HINT","      0u","   0u","   POPUP_IGN_ON","      POPUP_ID_Turn_Wheel_Unable_Activate","         NULL","                               0u","   POPUP_MSG_Turn_Wheel_Unable_Activate","        POPUP_MODE_SINGLE","   SND_New_ID_180","                 POPUP_MODE_SINGLE","     POPUP_DISP_2S","      POPUP_DISP_3S","}","    ",null," 170  L2.9 OP3  否  正在转动方向盘，功能无法激活"]
[null,null," POPUP_TYPE_HINT","      0u","   0u","   POPUP_IGN_ON","      POPUP_ID_Function_Disabled","                  NULL","                               0u","   POPUP_MSG_Function_Disabled","                 POPUP_MODE_SINGLE","   SND_New_ID_181","                 POPUP_MODE_SINGLE","     POPUP_DISP_2S","      POPUP_DISP_3S","}","    ",null," 171  L2.9 OP3  否  功能已禁用，请稍后再试"]
[null,null," POPUP_TYPE_HINT","      0u","   0u","   POPUP_IGN_ON","      POPUP_ID_Function_Disabled_Ignition","         NULL","                               0u","   POPUP_MSG_Function_Disabled_Ignition","        POPUP_MODE_SINGLE","   SND_New_ID_182","                 POPUP_MODE_SINGLE","     POPUP_DISP_2S","      POPUP_DISP_3S","}","    ",null," 172  L2.9 OP3  否  功能已禁用","本次点火周期不可用"]
[null,null," POPUP_TYPE_HINT","      0u","   0u","   POPUP_IGN_ON","      POPUP_ID_Activation_Failed_Turn","             NULL","                               0u","   POPUP_MSG_Activation_Failed_Turn","            POPUP_MODE_SINGLE","   SND_New_ID_183","                 POPUP_MODE_SINGLE","     POPUP_DISP_2S","      POPUP_DISP_3S","}","    ",null," 173  L2.9 OP3  否  激活失败","请先关闭转向灯"]
[null,null," POPUP_TYPE_HINT","      0u","   0u","   POPUP_IGN_ON","      POPUP_ID_Activation_Failed_Hands_Wheel","      NULL","                               0u","   POPUP_MSG_Activation_Failed_Hands_Wheel","     POPUP_MODE_SINGLE","   SND_New_ID_184","                 POPUP_MODE_SINGLE","     POPUP_DISP_2S","      POPUP_DISP_3S","}","    ",null," 174  L2.9 OP3  否  激活失败","请手握方向盘，观察路况"]
[null,null," POPUP_TYPE_HINT","      0u","   0u","   POPUP_IGN_ON","      POPUP_ID_Open_Self_Adaption","                 NULL","                               0u","   POPUP_MSG_Open_Self_Adaption","                POPUP_MODE_SINGLE","   SND_New_ID_185","                 POPUP_MODE_SINGLE","     POPUP_DISP_2S","      POPUP_DISP_3S","}","    ",null," 175  L2.9 OP3  否  请在车辆中心开启集成式自适应巡航","智能驾驶辅助"]
[null,null," POPUP_TYPE_HINT","      0u","   0u","   POPUP_IGN_ON","      POPUP_ID_Large_Camber_Unable_Activate","       NULL","                               0u","   POPUP_MSG_Large_Camber_Unable_Activate","      POPUP_MODE_SINGLE","   SND_New_ID_186","                 POPUP_MODE_SINGLE","     POPUP_DISP_2S","      POPUP_DISP_3S","}","    ",null," 176  L2.9 OP3  否  弯道过大，功能无法激活"]
[null,null," POPUP_TYPE_HINT","      0u","   0u","   POPUP_IGN_ON","      POPUP_ID_Activation_Failed","                  NULL","                               0u","   POPUP_MSG_Activation_Failed","                 POPUP_MODE_SINGLE","   SND_New_ID_187","                 POPUP_MODE_SINGLE","     POPUP_DISP_2S","      POPUP_DISP_3S","}","    ",null," 177  L2.9 OP3  否  激活失败","请保持在车道中行驶"]
[null,null," POPUP_TYPE_HINT","      0u","   0u","   POPUP_IGN_ON","      POPUP_ID_Fatigue_Driving_Unable_Activate","    NULL","                               0u","   POPUP_MSG_Fatigue_Driving_Unable_Activate","   POPUP_MODE_SINGLE","   SND_New_ID_188","                 POPUP_MODE_SINGLE","     POPUP_DISP_2S","      POPUP_DISP_3S","}","    ",null," 178  L2.9 OP3  否  疲劳驾驶，功能无法激活"]
[null,null," POPUP_TYPE_HINT","      0u","   0u","   POPUP_IGN_ON","      POPUP_ID_Bad_Weather_ACC","                    NULL","                               0u","   POPUP_MSG_Bad_Weather_ACC","                   POPUP_MODE_SINGLE","   SND_New_ID_189","                 POPUP_MODE_SINGLE","     POPUP_DISP_2S","      POPUP_DISP_3S"," }","   ",null," 179  L2.9 OP3  否  天气条件差，功能无法激活"]
[null,null," POPUP_TYPE_HINT","      0u","   0u","   POPUP_IGN_ON","      POPUP_ID_Bad_Weather_IACC","                   NULL","                               0u","   POPUP_MSG_Bad_Weather_IACC","                  POPUP_MODE_SINGLE","   SND_New_ID_189","                 POPUP_MODE_SINGLE","     POPUP_DISP_2S","      POPUP_DISP_3S"," }","   ",null," 179  L2.9 OP3  否  天气条件差，功能无法激活"]
[null,null," POPUP_TYPE_HINT","      0u","   0u","   POPUP_IGN_ON","      POPUP_ID_Take_Over_12_1","                     NULL","                               0u","   POPUP_MSG_Take_Over_1","                       POPUP_MODE_MULTI","    SND_New_ID_191","                 POPUP_MODE_MULTI","      POPUP_DISP_2S","      POPUP_DISP_2S","}","    ",null," 180  L2.9 W1   否  请立即接管"]
[null,null," POPUP_TYPE_HINT","      0u","   0u","   POPUP_IGN_ON","      POPUP_ID_Take_Over_12_2","                     NULL","                               0u","   POPUP_MSG_Take_Over_2","                       POPUP_MODE_MULTI","    SND_New_ID_193","                 POPUP_MODE_MULTI","      POPUP_DISP_2S","      POPUP_DISP_2S","}","    ",null," 180  L2.9 W1   否  请立即接管"]
[null,null," POPUP_TYPE_HINT","      0u","   0u","   POPUP_IGN_ON","      POPUP_ID_Take_Over_12_1_ACC","                 NULL","                               0u","   POPUP_MSG_Take_Over_1","                       POPUP_MODE_MULTI","    SND_New_ID_191","                 POPUP_MODE_MULTI","      POPUP_DISP_2S","      POPUP_DISP_2S","}","    ",null," 180  L2.9 W1   否  请立即接管"]
[null,null," POPUP_TYPE_HINT","      0u","   0u","   POPUP_IGN_ON","      POPUP_ID_Take_Over_12_2_ACC","                 NULL","                               0u","   POPUP_MSG_Take_Over_2","                       POPUP_MODE_MULTI","    SND_New_ID_193","                 POPUP_MODE_MULTI","      POPUP_DISP_2S","      POPUP_DISP_2S","}","    ",null," 180  L2.9 W1   否  请立即接管"]
[null,null," POPUP_TYPE_HINT","      0u","   0u","   POPUP_IGN_ON","      POPUP_ID_Take_Over_12_1_IACC","                NULL","                               0u","   POPUP_MSG_Take_Over_1","                       POPUP_MODE_MULTI","    SND_New_ID_191","                 POPUP_MODE_MULTI","      POPUP_DISP_2S","      POPUP_DISP_2S","}","    ",null," 180  L2.9 W1   否  请立即接管"]
[null,null," POPUP_TYPE_HINT","      0u","   0u","   POPUP_IGN_ON","      POPUP_ID_Take_Over_12_2_IACC","                NULL","                               0u","   POPUP_MSG_Take_Over_2","                       POPUP_MODE_MULTI","    SND_New_ID_193","                 POPUP_MODE_MULTI","      POPUP_DISP_2S","      POPUP_DISP_2S","}","    ",null," 180  L2.9 W1   否  请立即接管"]
[null,null," POPUP_TYPE_HINT","      0u","   0u","   POPUP_IGN_ON","      POPUP_ID_Take_Over_Stoping_1","                NULL","                               0u","   POPUP_MSG_Take_Over_Stoping_1","               POPUP_MODE_MULTI","    SND_New_ID_192","                 POPUP_MODE_MULTI","      POPUP_DISP_2S","      POPUP_DISP_2S","}","    ",null," 181  L2.9 W1   否  请立即接管","正在停车"]
[null,null," POPUP_TYPE_HINT","      0u","   0u","   POPUP_IGN_ON","      POPUP_ID_Take_Over_Stoping_2","                NULL","                               0u","   POPUP_MSG_Take_Over_Stoping_2","               POPUP_MODE_MULTI","    SND_New_ID_194 ","*no sound *",null,"   POPUP_MODE_MULTI","      POPUP_DISP_2S","      POPUP_DISP_2S","}","    ",null," 182  L2.9 W1   否  请立即接管","正在停车"]
[null,null," POPUP_TYPE_HINT","      0u","   0u","   POPUP_IGN_ON","      POPUP_ID_Take_Over_Dysfunction","              NULL","                               0u","   POPUP_MSG_Take_Over_Dysfunction","             POPUP_MODE_MULTI","    SND_New_ID_195","                 POPUP_MODE_MULTI","      POPUP_DISP_2S","      POPUP_DISP_2S","}","    ",null," 183  L2.9 W1   否  请立即接管","功能异常"]
[null,null," POPUP_TYPE_HINT","      0u","   0u","   POPUP_IGN_ON","      POPUP_ID_Take_Over_Dysfunction_IACC","         NULL","                               0u","   POPUP_MSG_Take_Over_Dysfunction","             POPUP_MODE_MULTI","    SND_New_ID_195","                 POPUP_MODE_MULTI","      POPUP_DISP_2S","      POPUP_DISP_2S","}","    ",null," 183  L2.9 W1   否  请立即接管","功能异常"]
[null,null," POPUP_TYPE_HINT","      0u","   0u","   POPUP_IGN_ON","      POPUP_ID_Take_Over_Breakdown_1","              NULL","                               0u","   POPUP_MSG_Take_Over_Breakdown","               POPUP_MODE_MULTI","    SND_New_ID_198","                 POPUP_MODE_MULTI","      POPUP_DISP_2S","      POPUP_DISP_2S","}","    ",null," 184  L2.9 W1   否  请立即接管","系统故障"]
[null,null," POPUP_TYPE_HINT","      0u","   0u","   POPUP_IGN_ON","      POPUP_ID_Take_Over_Breakdown_2","              NULL","                               0u","   POPUP_MSG_Take_Over_Breakdown","               POPUP_MODE_MULTI","    SND_New_ID_199","                 POPUP_MODE_MULTI","      POPUP_DISP_2S","      POPUP_DISP_2S","}","    ",null," 184  L2.9 W1   否  请立即接管","系统故障"]
[null,null," POPUP_TYPE_HINT","      0u","   0u","   POPUP_IGN_ON","      POPUP_ID_Take_Over_TPMS_1","                   NULL","                               0u","   POPUP_MSG_Take_Over_TPMS","                    POPUP_MODE_MULTI","    SND_New_ID_200","                 POPUP_MODE_MULTI","      POPUP_DISP_2S","      POPUP_DISP_2S","}","    ",null," 185  L2.9 W1   否  请立即接管","胎压异常"]
[null,null," POPUP_TYPE_HINT","      0u","   0u","   POPUP_IGN_ON","      POPUP_ID_Take_Over_TPMS_2","                   NULL","                               0u","   POPUP_MSG_Take_Over_TPMS","                    POPUP_MODE_MULTI","    SND_New_ID_201","                 POPUP_MODE_MULTI","      POPUP_DISP_2S","      POPUP_DISP_2S","}","    ",null," 185  L2.9 W1   否  请立即接管","胎压异常"]
[null,null," POPUP_TYPE_HINT","      0u","   0u","   POPUP_IGN_ON","      POPUP_ID_Take_Over_Camera_1","                 NULL","                               0u","   POPUP_MSG_Take_Over_Camera","                  POPUP_MODE_MULTI","    SND_New_ID_202","                 POPUP_MODE_MULTI","      POPUP_DISP_2S","      POPUP_DISP_2S","}","    ",null," 186  L2.9 W1   否  请立即接管","前摄像头被遮挡"]
[null,null," POPUP_TYPE_HINT","      0u","   0u","   POPUP_IGN_ON","      POPUP_ID_Take_Over_Camera_2","                 NULL","                               0u","   POPUP_MSG_Take_Over_Camera","                  POPUP_MODE_MULTI","    SND_New_ID_203","                 POPUP_MODE_MULTI","      POPUP_DISP_2S","      POPUP_DISP_2S","}","    ",null," 186  L2.9 W1   否  请立即接管","前摄像头被遮挡"]
[null,null," POPUP_TYPE_HINT","      0u","   0u","   POPUP_IGN_ON","      POPUP_ID_Take_Over_Radar_1","                  NULL","                               0u","   POPUP_MSG_Take_Over_Radar","                   POPUP_MODE_MULTI","    SND_New_ID_204","                 POPUP_MODE_MULTI","      POPUP_DISP_2S","      POPUP_DISP_2S","}","    ",null," 187  L2.9 W1   否  请立即接管","雷达被遮挡"]
[null,null," POPUP_TYPE_HINT","      0u","   0u","   POPUP_IGN_ON","      POPUP_ID_Take_Over_Radar_2","                  NULL","                               0u","   POPUP_MSG_Take_Over_Radar","                   POPUP_MODE_MULTI","    SND_New_ID_205","                 POPUP_MODE_MULTI","      POPUP_DISP_2S","      POPUP_DISP_2S","}","    ",null," 187  L2.9 W1   否  请立即接管","雷达被遮挡"]
[null,null," POPUP_TYPE_HINT","      0u","   0u","   POPUP_IGN_ON","      POPUP_ID_Take_Over_OUT","                      NULL","                               0u","   POPUP_MSG_Take_Over_OUT","                     POPUP_MODE_SINGLE","   SND_New_ID_210","                 POPUP_MODE_MULTI","      POPUP_DISP_2S","      POPUP_DISP_3S","}","    ",null," 188  L2.9 W1   否  请立即接管","功能即将退出"]
[null,null," POPUP_TYPE_HINT","      0u","   0u","   POPUP_IGN_ON","      POPUP_ID_Take_Over_Lane_Line_1","              NULL","                               0u","   POPUP_MSG_Take_Over_Lane_Line","               POPUP_MODE_MULTI","    SND_New_ID_211","                 POPUP_MODE_MULTI","      POPUP_DISP_2S","      POPUP_DISP_2S","}","    ",null," 189  L2.9 W1   否  请立即接管","车道线不清晰"]
[null,null," POPUP_TYPE_HINT","      0u","   0u","   POPUP_IGN_ON","      POPUP_ID_Take_Over_Lane_Line_2","              NULL","                               0u","   POPUP_MSG_Take_Over_Lane_Line","               POPUP_MODE_MULTI","    SND_New_ID_212","                 POPUP_MODE_MULTI","      POPUP_DISP_2S","      POPUP_DISP_2S","}","    ",null," 189  L2.9 W1   否  请立即接管","车道线不清晰"]
[null,null," POPUP_TYPE_HINT","      0u","   0u","   POPUP_IGN_ON","      POPUP_ID_Take_Over_People_1","                 NULL","                               0u","   POPUP_MSG_Take_Over_People","                  POPUP_MODE_MULTI","    SND_New_ID_213","                 POPUP_MODE_MULTI","      POPUP_DISP_2S","      POPUP_DISP_2S","}","    ",null," 190  L2.9 W1   否  请立即接管","前方有行人"]
[null,null," POPUP_TYPE_HINT","      0u","   0u","   POPUP_IGN_ON","      POPUP_ID_Take_Over_People_2","                 NULL","                               0u","   POPUP_MSG_Take_Over_People","                  POPUP_MODE_MULTI","    SND_New_ID_214","                 POPUP_MODE_MULTI","      POPUP_DISP_2S","      POPUP_DISP_2S","}","    ",null," 190  L2.9 W1   否  请立即接管","前方有行人"]
[null,null," POPUP_TYPE_HINT","      0u","   0u","   POPUP_IGN_ON","      POPUP_ID_Take_Over_Dangerous_Vehicles_1","     NULL","                               0u","   POPUP_MSG_Take_Over_Dangerous_Vehicles","      POPUP_MODE_MULTI","    SND_New_ID_215","                 POPUP_MODE_MULTI","      POPUP_DISP_2S","      POPUP_DISP_2S","}","    ",null," 191  L2.9 W1   否  请立即接管","前方有危险车辆"]
[null,null," POPUP_TYPE_HINT","      0u","   0u","   POPUP_IGN_ON","      POPUP_ID_Take_Over_Dangerous_Vehicles_2","     NULL","                               0u","   POPUP_MSG_Take_Over_Dangerous_Vehicles","      POPUP_MODE_MULTI","    SND_New_ID_216","                 POPUP_MODE_MULTI","      POPUP_DISP_2S","      POPUP_DISP_2S","}","    ",null," 191  L2.9 W1   否  请立即接管","前方有危险车辆"]
[null,null," POPUP_TYPE_HINT","      0u","   0u","   POPUP_IGN_ON","      POPUP_ID_Take_Over_Weather_1","                NULL","                               0u","   POPUP_MSG_Take_Over_Weather","                 POPUP_MODE_MULTI","    SND_New_ID_217","                 POPUP_MODE_MULTI","      POPUP_DISP_2S","      POPUP_DISP_2S","}","    ",null," 192  L2.9 W1   否  请立即接管","天气条件较差"]
[null,null," POPUP_TYPE_HINT","      0u","   0u","   POPUP_IGN_ON","      POPUP_ID_Take_Over_Weather_2","                NULL","                               0u","   POPUP_MSG_Take_Over_Weather","                 POPUP_MODE_MULTI","    SND_New_ID_217","                 POPUP_MODE_MULTI","      POPUP_DISP_2S","      POPUP_DISP_2S","}","    ",null," 192  L2.9 W1   否  请立即接管","天气条件较差"]
[null,null," POPUP_TYPE_HINT","      0u","   0u","   POPUP_IGN_ON","      POPUP_ID_Take_Over_Build_1","                  NULL","                               0u","   POPUP_MSG_Take_Over_Build","                   POPUP_MODE_MULTI","    SND_New_ID_219","                 POPUP_MODE_MULTI","      POPUP_DISP_2S","      POPUP_DISP_2S","}","    ",null," 193  L2.9 W1   否  请立即接管","前方施工区域"]
[null,null," POPUP_TYPE_HINT","      0u","   0u","   POPUP_IGN_ON","      POPUP_ID_Take_Over_Build_2","                  NULL","                               0u","   POPUP_MSG_Take_Over_Build","                   POPUP_MODE_MULTI","    SND_New_ID_220","                 POPUP_MODE_MULTI","      POPUP_DISP_2S","      POPUP_DISP_2S","}","    ",null," 193  L2.9 W1   否  请立即接管","前方施工区域"]
[null,null," POPUP_TYPE_HINT","      0u","   0u","   POPUP_IGN_ON","      POPUP_ID_Take_Over_Size_1","                   NULL","                               0u","   POPUP_MSG_Take_Over_Size","                    POPUP_MODE_MULTI","    SND_New_ID_221","                 POPUP_MODE_MULTI","      POPUP_DISP_2S","      POPUP_DISP_2S","}","    ",null," 194  L2.9 W1   否  请立即接管","道路太宽或太窄"]
[null,null," POPUP_TYPE_HINT","      0u","   0u","   POPUP_IGN_ON","      POPUP_ID_Take_Over_Size_2","                   NULL","                               0u","   POPUP_MSG_Take_Over_Size","                    POPUP_MODE_MULTI","    SND_New_ID_222","                 POPUP_MODE_MULTI","      POPUP_DISP_2S","      POPUP_DISP_2S","}","    ",null," 194  L2.9 W1   否  请立即接管","道路太宽或太窄"]
[null,null," POPUP_TYPE_HINT","      0u","   0u","   POPUP_IGN_ON","      POPUP_ID_Auto_Cruise_Exit","                   NULL","                               0U","   POPUP_MSG_Auto_Cruise_Exit","                  POPUP_MODE_SINGLE","   SND_NONE","                       POPUP_MODE_SINGLE","     POPUP_DISP_2S","      POPUP_DISP_3S","}","    ",null," 195  L2.9 D2   否  自适应巡航已退出"]
[null,null," POPUP_TYPE_HINT","      0u","   0u","   POPUP_IGN_ON","      POPUP_ID_Auto_Cruise_Exit_Control_Speed","     NULL","                               0U","   POPUP_MSG_Auto_Cruise_Exit_Control_Speed","    POPUP_MODE_SINGLE","   SND_New_ID_223","                 POPUP_MODE_SINGLE","     POPUP_DISP_2S","      POPUP_DISP_5S","}","    ",null," 196  L2.9 OP2  否  自适应巡航已退出","请注意控制车速"]
[null,null," POPUP_TYPE_HINT","      0u","   0u","   POPUP_IGN_ON","      POPUP_ID_Self_Adaption_Before_Radar","         NULL","                               0u","   POPUP_MSG_Self_Adaption_Before_Radar","        POPUP_MODE_SINGLE","   SND_New_ID_224","                 POPUP_MODE_SINGLE","     POPUP_DISP_2S","      POPUP_DISP_5S","}","    ",null," 197  L2.9 OP2  否  自适应巡航已退出","前雷达不可用"]
[null,null," POPUP_TYPE_HINT","      0u","   0u","   POPUP_IGN_ON","      POPUP_ID_Self_Adaption_Before_Camera","        NULL","                               0u","   POPUP_MSG_Self_Adaption_Before_Camera","       POPUP_MODE_SINGLE","   SND_New_ID_225","                 POPUP_MODE_SINGLE","     POPUP_DISP_2S","      POPUP_DISP_5S","}","    ",null," 198  L2.9 OP2  否  自适应巡航已退出","前摄像头不可用"]
[null,null," POPUP_TYPE_EXCEPTION"," 0u","   0u","   POPUP_IGN_ON","      POPUP_ID_Cruise_EXIT","                        NULL","                               0u","   POPUP_MSG_Cruise_EXIT","                       POPUP_MODE_SINGLE","   SND_New_ID_226","                 POPUP_MODE_SINGLE","     POPUP_DISP_2S","      POPUP_DISP_3S","}","    ",null," 199  L2.9 D2   否  集成式自适应巡航已退出"]
[null,null," POPUP_TYPE_EXCEPTION"," 0u","   0u","   POPUP_IGN_ON","      POPUP_ID_Adaptive_Cruise_Failure","PopupMbrListIACCSysFault","sizeof(PopupMbrListIACCSysFault)","POPUP_MSG_Adaptive_Cruise_Failure","       POPUP_MODE_SINGLE","   SND_New_ID_227","                 POPUP_MODE_SINGLE","     POPUP_DISP_2S","      POPUP_DISP_3S","}","    ",null," 200  L2.9 D2   否  集成式自适应巡航系统故障"]
[null,null," POPUP_TYPE_EXCEPTION"," 0u","   0u","   POPUP_IGN_ON","      POPUP_ID_Adaptive_Cruise_Failure","            NULL","                               0u","   POPUP_MSG_Adaptive_Cruise_Failure","           POPUP_MODE_SINGLE","   SND_New_ID_227","                 POPUP_MODE_SINGLE","     POPUP_DISP_2S","      POPUP_DISP_3S","}","    ",null," 200  L2.9 D2   否  集成式自适应巡航系统故障"]
[null,null," POPUP_TYPE_EXCEPTION"," 0u","   0u","   POPUP_IGN_ON","      POPUP_ID_Adaptive_Cruise_Failure","            NULL","                               0u","   POPUP_MSG_Adaptive_Cruise_Failure","           POPUP_MODE_SINGLE","   SND_New_ID_227","                 POPUP_MODE_SINGLE","     POPUP_DISP_2S","      POPUP_DISP_3S","}","    ",null," 200  L2.9 D2   否  集成式自适应巡航系统故障"]
[null,null," POPUP_TYPE_EXCEPTION"," 0u","   0u","   POPUP_IGN_ON","      POPUP_ID_Adaptive_Cruise_Failure","            NULL","                               0u","   POPUP_MSG_Adaptive_Cruise_Failure","           POPUP_MODE_SINGLE","   SND_New_ID_227","                 POPUP_MODE_SINGLE","     POPUP_DISP_2S","      POPUP_DISP_3S","}","    ",null," 200  L2.9 D2   否  集成式自适应巡航系统故障"]
[null,null," POPUP_TYPE_HINT","      0u","   0u","   POPUP_IGN_ON","      POPUP_ID_Hands_On_The_Wheel","                 NULL","                               0u","   POPUP_MSG_Hands_On_The_Wheel","                POPUP_MODE_SINGLE","   SND_New_ID_228","                 POPUP_MODE_SINGLE","     POPUP_DISP_2S","      POPUP_DISP_3S","}","    ",null," 201  L2.9 OP3  否  请保持手握方向盘，观察路况"]
[null,null," POPUP_TYPE_HINT","      0U","   0U","   POPUP_IGN_ON","      POPUP_ID_Key_Auto_Active_Assi","               NULL","                               0U","   POPUP_MSG_Key_Auto_Active_Assi","              POPUP_MODE_SINGLE","   SND_NONE","                       POPUP_MODE_SINGLE","     POPUP_DISP_2S","      POPUP_DISP_5S","}","    ",null," 202  L2.9 OP2  否  当前路段按AUTO键，可激活高速公路驾驶辅助"]
[null,null," POPUP_TYPE_HINT","      0u","   0u","   POPUP_IGN_ON","      POPUP_ID_Cruise_Exit_Vehicle","                NULL","                               0u","   POPUP_MSG_Cruise_Exit_Vehicle","               POPUP_MODE_SINGLE","   SND_New_ID_230","                 POPUP_MODE_SINGLE","     POPUP_DISP_2S","      POPUP_DISP_5S","}","    ",null," 203  L2.9 OP2  否  集成式自适应巡航已退出","请注意控制车辆"]
[null,null," POPUP_TYPE_HINT","      0u","   0u","   POPUP_IGN_ON","      POPUP_ID_Steering_Wheel","                     NULL","                               0u","   POPUP_MSG_Steering_Wheel","                    POPUP_MODE_SINGLE","   SND_New_ID_231","                 POPUP_MODE_SINGLE","     POPUP_DISP_2S","      POPUP_DISP_3S"," }","   ",null," 204  L2.9 OP3  否  请注意控制方向盘"]
[null,null," POPUP_TYPE_HINT","      0u","   0u","   POPUP_IGN_ON","      POPUP_ID_Recover_Driver_Off_Ramp","            NULL","                               0u","   POPUP_MSG_Recover_Driver_Off_Ramp","           POPUP_MODE_MULTI","    SND_New_ID_235","                 POPUP_MODE_SINGLE","     POPUP_DISP_2S","      POPUP_DISP_2S","}","    ",null," 205  L2.9 W1   否  前方下匝道，请恢复手动驾驶"]
[null,null," POPUP_TYPE_HINT","      0u","   0u","   POPUP_IGN_ON","      POPUP_ID_Environmental_Limit","                NULL","                               0u","   POPUP_MSG_Environmental_Limit","               POPUP_MODE_SINGLE","   SND_New_ID_236","                 POPUP_MODE_SINGLE","     POPUP_DISP_2S","      POPUP_DISP_3S","}","    ",null," 206  L2.9 OP4  否  环境限制，智能限速"]
[null,null," POPUP_TYPE_HINT","      0u","   0u","   POPUP_IGN_ON","      POPUP_ID_Auto_Limit_Through_Tunnel","          NULL","                               0u","   POPUP_MSG_Auto_Limit_Through_Tunnel","         POPUP_MODE_SINGLE","   SND_New_ID_237","                 POPUP_MODE_SINGLE","     POPUP_DISP_2S","      POPUP_DISP_3S","}","    ",null," 207  L2.9 OP4  否  经过隧道，车辆智能限速中"]
[null,null," POPUP_TYPE_FATAL","     0u","   0u","   POPUP_IGN_ON","      POPUP_ID_Toll_Station","                       NULL","                               0u","   POPUP_MSG_Toll_Station","                      POPUP_MODE_MULTI","    SND_New_ID_238","                 POPUP_MODE_MULTI","      POPUP_DISP_2S","      POPUP_DISP_2S","}","    ",null," 208  L2.9 W1   否  前方收费站，请恢复手动驾驶"]
[null,null," POPUP_TYPE_HINT","      0u","   0u","   POPUP_IGN_ON","      POPUP_ID_Emergency_Braking","                  NULL","                               0u","   POPUP_MSG_Emergency_Braking","                 POPUP_MODE_SINGLE","   SND_New_ID_239","                 POPUP_MODE_SINGLE","     POPUP_DISP_2S","      POPUP_DISP_3S","}","    ",null," 209  L2.9 OP4  否  车辆紧急制动，请注意"]
[null,null," POPUP_TYPE_HINT","      0u","   0u","   POPUP_IGN_ON","      POPUP_ID_SMART_LIMIT","                        NULL","                               0u","   POPUP_MSG_SMART_LIMIT","                       POPUP_MODE_SINGLE","   SND_New_ID_240","                 POPUP_MODE_SINGLE","     POPUP_DISP_2S","      POPUP_DISP_3S","}","    ",null," 210  L2.9 OP4  否  车辆智能限速中"]
[null,null," POPUP_TYPE_HINT","      1u","   0u","   POPUP_IGN_ON","      POPUP_ID_CruisePark_Caution","                 NULL","                               0u","   POPUP_MSG_CruisePark_Caution","                POPUP_MODE_MULTI","    SND_NONE","                       POPUP_MODE_SINGLE","     POPUP_DISP_2S","      POPUP_DISP_2S"," }","   ",null," 211  L2.9 W1   否  第一行显示巡航驻车，恢复请按RES键”，第二行显示（红色）：“"]
[null,null," POPUP_TYPE_HINT","      0u","   0u","   POPUP_IGN_ON","      POPUP_ID_SET_LIMIT_SPEED","                    NULL","                               0u","   POPUP_MSG_SET_LIMIT_SPEED","                   POPUP_MODE_SINGLE","   SND_New_ID_241","                 POPUP_MODE_SINGLE","     POPUP_DISP_2S","      POPUP_DISP_3S","}","    ",null," 212  L2.9 OP4  否  按方向盘左侧set-键，将限速值设置为巡航车速"]
[null,null," POPUP_TYPE_HINT","      0u","   0u","   POPUP_IGN_ON","      POPUP_ID_Open_The_Lamp","                      NULL","                               0u","   POPUP_MSG_Open_The_Lamp","                     POPUP_MODE_SINGLE","   SND_New_ID_242","                 POPUP_MODE_SINGLE","     POPUP_DISP_2S","      POPUP_DISP_5S"," }","   ",null," 213  L2.9 OP2  否  请打开车灯"]
[null,null," POPUP_TYPE_HINT","      0u","   0u","   POPUP_IGN_ON","      POPUP_ID_Turn_Steering_Wheel_Gently_1","       NULL","                               0u","   POPUP_MSG_Turn_Steering_Wheel_Gently_1","      POPUP_MODE_MULTI","    SND_NONE","                       POPUP_MODE_SINGLE","     POPUP_DISP_2S","      POPUP_DISP_2S","}","    ",null," 215  L2.9 W1   否  请轻转方向盘，注意观察路况  无声音"]
[null,null," POPUP_TYPE_HINT","      0u","   0u","   POPUP_IGN_ON","      POPUP_ID_Turn_Steering_Wheel_Gently_2","       NULL","                               0u","   POPUP_MSG_Turn_Steering_Wheel_Gently_2","      POPUP_MODE_MULTI","    SND_New_ID_249","                 POPUP_MODE_MULTI","      POPUP_DISP_2S","      POPUP_DISP_2S","}","    ",null," 214  L2.9 W1   否  请轻转方向盘，注意观察路况  声音"]
[null,null," POPUP_TYPE_HINT","      0u","   0u","   POPUP_IGN_ON","      POPUP_ID_Turn_Steering_Wheel_Gently_3","       NULL","                               0u","   POPUP_MSG_Turn_Steering_Wheel_Gently_3","      POPUP_MODE_MULTI","    SND_New_ID_250","                 POPUP_MODE_MULTI","      POPUP_DISP_2S","      POPUP_DISP_2S","}","    ",null," 214  L2.9 W1   否  请轻转方向盘，注意观察路况  声音"]
[null,null," POPUP_TYPE_HINT","      0u","   0u","   POPUP_IGN_ON","      POPUP_ID_Controlling_Disable_AutoDec","        NULL","                               0u","   POPUP_MSG_Controlling_Disable_AutoDec","       POPUP_MODE_SINGLE","   SND_NONE","                       POPUP_MODE_SINGLE","     POPUP_DISP_2S","      POPUP_DISP_3S","}","    ",null," 216  L2.9 D2   否  您正在控制油门，系统无法自动减速"]
[null,null," POPUP_TYPE_HINT","      0u","   0u","   POPUP_IGN_ON","      POPUP_ID_Control_Vehicle_Cruise_EXIT","        NULL","                               0u","   POPUP_MSG_Control_Vehicle_Cruise_EXIT","       POPUP_MODE_SINGLE","   SND_New_ID_251","                 POPUP_MODE_SINGLE","     POPUP_DISP_2S","      POPUP_DISP_3S","}","    ",null," 217  L2.9 D2   否  请注意控制车辆","集成式自适应巡航临时退出"]
[null,null," POPUP_TYPE_HINT","      0u","   0u","   POPUP_IGN_ON","      POPUP_ID_Turn_Off_The_Turn_Signal","           NULL","                               0u","   POPUP_MSG_Turn_Off_The_Turn_Signal","          POPUP_MODE_SINGLE","   SND_NONE","                       POPUP_MODE_SINGLE","     POPUP_DISP_2S","      POPUP_DISP_3S","}","    ",null," 218  L2.9 OP3  否  请注意关闭转向灯"]
[null,null," POPUP_TYPE_HINT","      0u","   0u","   POPUP_IGN_ON","      POPUP_ID_Left_Lane_Changingk","                NULL","                               0u","   POPUP_MSG_Left_Lane_Changingk","               POPUP_MODE_SINGLE","   SND_New_ID_252","                 POPUP_MODE_SINGLE","     POPUP_DISP_2S","      POPUP_DISP_3S","}","    ",null," 219  L2.9 OP2  否  推荐您向左换道"]
[null,null," POPUP_TYPE_HINT","      0u","   0u","   POPUP_IGN_ON","      POPUP_ID_Right_Lane_Changingk","               NULL","                               0u","   POPUP_MSG_Right_Lane_Changingk","              POPUP_MODE_SINGLE","   SND_New_ID_253","                 POPUP_MODE_SINGLE","     POPUP_DISP_2S","      POPUP_DISP_3S","}","    ",null," 220  L2.9 OP2  否  推荐您向右换道"]
[null,null," POPUP_TYPE_HINT","      0u","   0u","   POPUP_IGN_ON","      POPUP_ID_Ramp_Change_Track","                  NULL","                               0u","   POPUP_MSG_Ramp_Change_Track","                 POPUP_MODE_SINGLE","   SND_New_ID_254","                 POPUP_MODE_SINGLE","     POPUP_DISP_2S","      POPUP_DISP_3S","}","    ",null," 221  L2.9 OP3  否  前方匝道，请提前换道"]
[null,null," POPUP_TYPE_HINT","      0u","   0u","   POPUP_IGN_ON","      POPUP_ID_Timeout_WayTerminate","               NULL","                               0u","   POPUP_MSG_Timeout_WayTerminate","              POPUP_MODE_SINGLE","   SND_New_ID_255","                 POPUP_MODE_SINGLE","     POPUP_DISP_2S","      POPUP_DISP_3S","}","    ",null," 222  L2.9 OP3  否  等待超时，换道终止"]
[null,null," POPUP_TYPE_HINT","      0u","   0u","   POPUP_IGN_ON","      POPUP_ID_45KM_Lane_Changing_Auxiliary","       NULL","                               0u","   POPUP_MSG_45KM_Lane_Changing_Auxiliary","      POPUP_MODE_SINGLE","   SND_New_ID_256","                 POPUP_MODE_SINGLE","     POPUP_DISP_2S","      POPUP_DISP_3S","}","    ",null," 223  L2.9 OP4  否  请先提速到45km","h，再激活换道辅助"]
[null,null," POPUP_TYPE_HINT","      0u","   0u","   POPUP_IGN_ON","      POPUP_ID_Lane_Changing_Auxiliary_Fault","      NULL","                               0u","   POPUP_MSG_Lane_Changing_Auxiliary_Fault","     POPUP_MODE_SINGLE","   SND_NONE","                       POPUP_MODE_SINGLE","     POPUP_DISP_2S","      POPUP_DISP_5S","}","    ",null," 224  L2.9 OP2  否  换道辅助系统故障"]
[null,null," POPUP_TYPE_HINT","      0u","   0u","   POPUP_IGN_ON","      POPUP_ID_Change_Track_dissatisfy","            NULL","                               0u","   POPUP_MSG_Change_Track_dissatisfy","           POPUP_MODE_SINGLE","   SND_NONE","                       POPUP_MODE_SINGLE","     POPUP_DISP_2S","      POPUP_DISP_3S","}","    ",null," 225  L2.9 OP3  否  换道条件不满足"]
[null,null," POPUP_TYPE_HINT","      0u","   0u","   POPUP_IGN_ON","      POPUP_ID_Car_Ahead_Change_Track","             NULL","                               0u","   POPUP_MSG_Car_Ahead_Change_Track","            POPUP_MODE_SINGLE","   SND_New_ID_257","                 POPUP_MODE_SINGLE","     POPUP_DISP_2S","      POPUP_DISP_5S","}","    ",null," 226  L2.9 OP2  否  前方有车辆汇入，推荐换道行驶"]
[null,null," POPUP_TYPE_HINT","      0u","   0u","   POPUP_IGN_ON","      POPUP_ID_Switch_To_Auxiliary_Cancel","         NULL","                               0u","   POPUP_MSG_Switch_To_Auxiliary_Cancel","        POPUP_MODE_SINGLE","   SND_NONE","                       POPUP_MODE_SINGLE","     POPUP_DISP_2S","      POPUP_DISP_3S","}","    ",null," 227  L2.9 OP3  否  换道辅助取消"]
[null,null," POPUP_TYPE_HINT","      0u","   0u","   POPUP_IGN_ON_OFF","  POPUP_ID_No_Open_Left_Door","                  NULL","                               0u","   POPUP_MSG_No_Open_Left_Door","                 POPUP_MODE_SINGLE","   SND_NONE","                       POPUP_MODE_SINGLE","     POPUP_DISP_2S","      POPUP_DISP_8S","}","    ",null," 228  L2.9 W2   否  请勿打开左侧车门"]
[null,null," POPUP_TYPE_HINT","      0u","   0u","   POPUP_IGN_ON_OFF","  POPUP_ID_No_Open_Right_Door","                 NULL","                               0u","   POPUP_MSG_No_Open_Right_Door","                POPUP_MODE_SINGLE","   SND_NONE","                       POPUP_MODE_SINGLE","     POPUP_DISP_2S","      POPUP_DISP_8S","}","    ",null," 229  L2.9 W2   否  请勿打开右侧车门"]
[null,null," POPUP_TYPE_HINT","      0u","   0u","   POPUP_IGN_ON_OFF","  POPUP_ID_No_Open_Door","                       NULL","                               0u","   POPUP_MSG_No_Open_Door","                      POPUP_MODE_SINGLE","   SND_NONE","                       POPUP_MODE_SINGLE","     POPUP_DISP_2S","      POPUP_DISP_8S","}","    ",null," 230  L2.9 W2   否  请勿打开车门"]
[null,null," POPUP_TYPE_HINT","      0u","   0u","   POPUP_IGN_ON_OFF","  POPUP_ID_OpenDoorDanger_Left","                NULL","                               0u","   POPUP_MSG_OpenDoorDanger_Left","               POPUP_MODE_MULTI","    SND_New_ID_258","                 POPUP_MODE_MULTI","      POPUP_DISP_2S","      POPUP_DISP_2S","}","    ",null," 231  L2.9 W1   否  开门碰撞危险左侧二级"]
[null,null," POPUP_TYPE_HINT","      0u","   0u","   POPUP_IGN_ON_OFF","  POPUP_ID_OpenDoorDanger_Right","               NULL","                               0u","   POPUP_MSG_OpenDoorDanger_Right","              POPUP_MODE_MULTI","    SND_New_ID_260","                 POPUP_MODE_MULTI","      POPUP_DISP_2S","      POPUP_DISP_2S","}","    ",null," 232  L2.9 W1   否  开门碰撞危险右侧二级"]
[null,null," POPUP_TYPE_HINT","      0u","   0u","   POPUP_IGN_ON_OFF","  POPUP_ID_OpenDoorDanger_Both","                NULL","                               0u","   POPUP_MSG_OpenDoorDanger_Both","               POPUP_MODE_MULTI","    SND_New_ID_262","                 POPUP_MODE_MULTI","      POPUP_DISP_2S","      POPUP_DISP_2S","}","    ",null," 233  L2.9 W1   否  开门碰撞危险两侧二级"]
[null,null," POPUP_TYPE_HINT","      0u","   0u","   POPUP_IGN_OFF","     POPUP_ID_OpenDoorWarningClosed","              NULL","                               0u","   POPUP_MSG_OpenDoorWarningClosed","             POPUP_MODE_SINGLE","   SND_NONE","                       POPUP_MODE_SINGLE","     POPUP_DISP_2S","      POPUP_DISP_3S","}","    ",null," 234  L2.9 OP5  否  开门预警功能已关闭"]
[null,null," POPUP_TYPE_HINT","      1u","   0u","   POPUP_IGN_ON","      POPUP_ID_BeCarefulRearCar","                   NULL","                               0u","   POPUP_MSG_BeCarefulRearCar","                  POPUP_MODE_SINGLE","   SND_New_ID_264","                 POPUP_MODE_MULTI","      POPUP_DISP_2S","      POPUP_DISP_8S","}","    ",null," 235  L2.9 OP1  否  请注意后方车辆"]
[null,null," POPUP_TYPE_HINT","      4u","   0u","   POPUP_IGN_ON","      POPUP_ID_RearEndCollisionDanger","             NULL","                               0u","   POPUP_MSG_RearEndCollisionDanger","            POPUP_MODE_MULTI","    SND_New_ID_266","                 POPUP_MODE_MULTI","      POPUP_DISP_2S","      POPUP_DISP_2S","}","    ",null," 236  L2.9 W1   否  后方追尾危险"]
[null,null," POPUP_TYPE_HINT","      6u","   0u","   POPUP_IGN_ON","      POPUP_ID_KeepSafeDistance","                   NULL","                               0u","   POPUP_MSG_KeepSafeDistance","                  POPUP_MODE_SINGLE","   SND_New_ID_267","                 POPUP_MODE_SINGLE","     POPUP_DISP_2S","      POPUP_DISP_8S","}","    ",null," 237  L2.9 OP1  否  请保持安全车距"]
[null,null," POPUP_TYPE_HINT","      2u","   0u","   POPUP_IGN_ON","      POPUP_ID_CollisionRisk_Left","                 NULL","                               0u","   POPUP_MSG_CollisionRisk","                     POPUP_MODE_SINGLE","   SND_New_ID_268","                 POPUP_MODE_SINGLE","     POPUP_DISP_2S","      POPUP_DISP_8S","}","    ",null," 238  L2.9 OP1  否  碰撞危险"]
[null,null," POPUP_TYPE_HINT","      2u","   0u","   POPUP_IGN_ON","      POPUP_ID_CollisionRisk_Right","                NULL","                               0u","   POPUP_MSG_CollisionRisk","                     POPUP_MODE_SINGLE","   SND_New_ID_310","                 POPUP_MODE_SINGLE","     POPUP_DISP_2S","      POPUP_DISP_8S","}","    ",null," 238  L2.9 OP1  否  碰撞危险"]
[null,null," POPUP_TYPE_HINT","      0u","   0u","   POPUP_IGN_ON","      POPUP_ID_Risk_Of_Collision","                  NULL","                               0u","   POPUP_MSG_Risk_Of_Collision","                 POPUP_MODE_MULTI","    SND_New_ID_269","                 POPUP_MODE_MULTI","      POPUP_DISP_2S","      POPUP_DISP_2S","}","    ",null," 239  L2.9 W1   否  碰撞危险  12-1  13"]
[null,null," POPUP_TYPE_HINT","      0u","   0u","   POPUP_IGN_ON","      POPUP_ID_Collision_emergency_Braking_Q","      NULL","                               0u","   POPUP_MSG_Collision_emergency_Braking_Q","     POPUP_MODE_MULTI","    SND_New_ID_270","                 POPUP_MODE_MULTI","      POPUP_DISP_2S","      POPUP_DISP_2S","}","    ",null," 240  L2.9 W1   否  碰撞危险，自动紧急制动"]
[null,null," POPUP_TYPE_HINT","      0u","   0u","   POPUP_IGN_ON","      POPUP_ID_Collision_emergency_Braking_h","      NULL","                               0u","   POPUP_MSG_Collision_emergency_Braking_h","     POPUP_MODE_MULTI","    SND_New_ID_271","                 POPUP_MODE_MULTI","      POPUP_DISP_2S","      POPUP_DISP_2S","}","    ",null," 241  L2.9 W1   否  碰撞危险，自动紧急制动（后向）"]
[null,null," POPUP_TYPE_EXCEPTION"," 0u","   0u","   POPUP_IGN_ON","      POPUP_ID_ACC_Communication_Abnormal","         NULL","                               0u","   POPUP_MSG_ACC_Communication_Abnormal","        POPUP_MODE_SINGLE","   SND_New_ID_272","                 POPUP_MODE_SINGLE","     POPUP_DISP_2S","      POPUP_DISP_3S","}","    ",null," 242  L2.9 OP4  是  自适应巡航系统通讯异常"]
[null,null," POPUP_TYPE_EXCEPTION"," 0u","   0u","   POPUP_IGN_ON","      POPUP_ID_Adaptive_Communication_Abnormal","    NULL","                               0u","   POPUP_MSG_Adaptive_Communication_Abnormal","   POPUP_MODE_SINGLE","   SND_New_ID_273","                 POPUP_MODE_SINGLE","     POPUP_DISP_2S","      POPUP_DISP_3S","}","    ",null," 243  L2.9 OP4  是  集成式自适应巡航系统通讯异常"]
[null,null," POPUP_TYPE_EXCEPTION"," 0u","   0u","   POPUP_IGN_ON","      POPUP_ID_Automatic_Emergency_Brake_Not","PopupMbrListAEBSysFault","sizeof(PopupMbrListAEBSysFault)","POPUP_MSG_Automatic_Emergency_Brake_Not","POPUP_MODE_SINGLE","SND_New_ID_275","                 POPUP_MODE_SINGLE","     POPUP_DISP_2S","      POPUP_DISP_3S","}","    ",null," 244  L2.9 OP4  是  自动紧急制动系统不可用"]
[null,null," POPUP_TYPE_EXCEPTION"," 0u","   0u","   POPUP_IGN_ON","      POPUP_ID_Automatic_Emergency_Brake_Not","      NULL","                               0u","   POPUP_MSG_Automatic_Emergency_Brake_Not","     POPUP_MODE_SINGLE","   SND_New_ID_275","                 POPUP_MODE_SINGLE","     POPUP_DISP_2S","      POPUP_DISP_3S","}","    ",null," 244  L2.9 OP4  是  自动紧急制动系统不可用"]
[null,null," POPUP_TYPE_EXCEPTION"," 0u","   0u","   POPUP_IGN_ON","      POPUP_ID_Automatic_Emergency_Brake_Not","      NULL","                               0u","   POPUP_MSG_Automatic_Emergency_Brake_Not","     POPUP_MODE_SINGLE","   SND_New_ID_275","                 POPUP_MODE_SINGLE","     POPUP_DISP_2S","      POPUP_DISP_3S","}","    ",null," 244  L2.9 OP4  是  自动紧急制动系统不可用"]
[null,null," POPUP_TYPE_EXCEPTION"," 0u","   0u","   POPUP_IGN_ON","      POPUP_ID_Automatic_Emergency_Brake_Not","      NULL","                               0u","   POPUP_MSG_Automatic_Emergency_Brake_Not","     POPUP_MODE_SINGLE","   SND_New_ID_275","                 POPUP_MODE_SINGLE","     POPUP_DISP_2S","      POPUP_DISP_3S","}","    ",null," 244  L2.9 OP4  是  自动紧急制动系统不可用"]
[null,null," POPUP_TYPE_EXCEPTION"," 0u","   0u","   POPUP_IGN_ON","      POPUP_ID_Automatic_Emergency_Brake_Not","      NULL","                               0u","   POPUP_MSG_Automatic_Emergency_Brake_Not","     POPUP_MODE_SINGLE","   SND_New_ID_275","                 POPUP_MODE_SINGLE","     POPUP_DISP_2S","      POPUP_DISP_3S","}","    ",null," 244  L2.9 OP4  是  自动紧急制动系统不可用"]
[null,null," POPUP_TYPE_EXCEPTION"," 0u","   0u","   POPUP_IGN_ON","      POPUP_ID_Automatic_Emergency_Brake_Not","      NULL","                               0u","   POPUP_MSG_Automatic_Emergency_Brake_Not","     POPUP_MODE_SINGLE","   SND_New_ID_275","                 POPUP_MODE_SINGLE","     POPUP_DISP_2S","      POPUP_DISP_3S","}","    ",null," 244  L2.9 OP4  是  自动紧急制动系统不可用"]
[null,null," POPUP_TYPE_EXCEPTION"," 0u","   0u","   POPUP_IGN_ON","      POPUP_ID_Automatic_Emergency_Brake_Not","      NULL","                               0u","   POPUP_MSG_Automatic_Emergency_Brake_Not","     POPUP_MODE_SINGLE","   SND_New_ID_275","                 POPUP_MODE_SINGLE","     POPUP_DISP_2S","      POPUP_DISP_3S","}","    ",null," 244  L2.9 OP4  是  自动紧急制动系统不可用"]
[null,null," POPUP_TYPE_EXCEPTION"," 0u","   0u","   POPUP_IGN_ON","      POPUP_ID_Automatic_Emergency_Brake_Not","      NULL","                               0u","   POPUP_MSG_Automatic_Emergency_Brake_Not","     POPUP_MODE_SINGLE","   SND_New_ID_275","                 POPUP_MODE_SINGLE","     POPUP_DISP_2S","      POPUP_DISP_3S","}","    ",null," 244  L2.9 OP4  是  自动紧急制动系统不可用"]
[null,null," POPUP_TYPE_EXCEPTION"," 0u","   0u","   POPUP_IGN_ON","      POPUP_ID_Automatic_Emergency_Brake_Not","      NULL","                               0u","   POPUP_MSG_Automatic_Emergency_Brake_Not","     POPUP_MODE_SINGLE","   SND_New_ID_275","                 POPUP_MODE_SINGLE","     POPUP_DISP_2S","      POPUP_DISP_3S","}","    ",null," 244  L2.9 OP4  是  自动紧急制动系统不可用"]
[null,null," POPUP_TYPE_EXCEPTION"," 0u","   0u","   POPUP_IGN_ON","      POPUP_ID_Automatic_Emergency_Brake_Not","      NULL","                               0u","   POPUP_MSG_Automatic_Emergency_Brake_Not","     POPUP_MODE_SINGLE","   SND_New_ID_275","                 POPUP_MODE_SINGLE","     POPUP_DISP_2S","      POPUP_DISP_3S","}","    ",null," 244  L2.9 OP4  是  自动紧急制动系统不可用"]
[null,null," POPUP_TYPE_EXCEPTION"," 0u","   0u","   POPUP_IGN_ON","      POPUP_ID_Automatic_Emergency_Brake_Not","      NULL","                               0u","   POPUP_MSG_Automatic_Emergency_Brake_Not","     POPUP_MODE_SINGLE","   SND_New_ID_275","                 POPUP_MODE_SINGLE","     POPUP_DISP_2S","      POPUP_DISP_3S","}","    ",null," 244  L2.9 OP4  是  自动紧急制动系统不可用"]
[null,null," POPUP_TYPE_EXCEPTION"," 0u","   0u","   POPUP_IGN_ON","      POPUP_ID_Automatic_Emergency_Brake_Not","      NULL","                               0u","   POPUP_MSG_Automatic_Emergency_Brake_Not","     POPUP_MODE_SINGLE","   SND_New_ID_275","                 POPUP_MODE_SINGLE","     POPUP_DISP_2S","      POPUP_DISP_3S","}","    ",null," 244  L2.9 OP4  是  自动紧急制动系统不可用"]
[null,null," POPUP_TYPE_EXCEPTION"," 0u","   0u","   POPUP_IGN_ON","      POPUP_ID_Lane_Assist_System_Failure","PopupMbrListLDWLKASysFault","sizeof(PopupMbrListLDWLKASysFault)","POPUP_MSG_Lane_Assist_System_Failure","POPUP_MODE_SINGLE","SND_New_ID_277","                 POPUP_MODE_SINGLE","     POPUP_DISP_2S","      POPUP_DISP_3S","}","    ",null," 245  L2.9 OP4  是  车道辅助系统故障"]
[null,null," POPUP_TYPE_EXCEPTION"," 0u","   0u","   POPUP_IGN_ON","      POPUP_ID_Lane_Assist_System_Failure","         NULL","                               0u","   POPUP_MSG_Lane_Assist_System_Failure","        POPUP_MODE_SINGLE","   SND_New_ID_277","                 POPUP_MODE_SINGLE","     POPUP_DISP_2S","      POPUP_DISP_3S","}","    ",null," 245  L2.9 OP4  是  车道辅助系统故障"]
[null,null," POPUP_TYPE_EXCEPTION"," 0u","   0u","   POPUP_IGN_ON","      POPUP_ID_Lane_Assist_System_Failure","         NULL","                               0u","   POPUP_MSG_Lane_Assist_System_Failure","        POPUP_MODE_SINGLE","   SND_New_ID_277","                 POPUP_MODE_SINGLE","     POPUP_DISP_2S","      POPUP_DISP_3S","}","    ",null," 245  L2.9 OP4  是  车道辅助系统故障"]
[null,null," POPUP_TYPE_EXCEPTION"," 0u","   0u","   POPUP_IGN_ON","      POPUP_ID_Lane_Communication_Abnormal","PopupMbrListLDWLKACommLost","sizeof(PopupMbrListLDWLKACommLost)","POPUP_MSG_Lane_Communication_Abnormal","POPUP_MODE_SINGLE","SND_New_ID_278","               POPUP_MODE_SINGLE","     POPUP_DISP_2S","      POPUP_DISP_3S","}","    ",null," 246  L2.9 OP4  是  车道辅助系统通讯异常"]
[null,null," POPUP_TYPE_EXCEPTION"," 0u","   0u","   POPUP_IGN_ON","      POPUP_ID_Lane_Communication_Abnormal","        NULL","                               0u","   POPUP_MSG_Lane_Communication_Abnormal","       POPUP_MODE_SINGLE","   SND_New_ID_278","                 POPUP_MODE_SINGLE","     POPUP_DISP_2S","      POPUP_DISP_3S","}","    ",null," 246  L2.9 OP4  是  车道辅助系统通讯异常"]
[null,null," POPUP_TYPE_EXCEPTION"," 0u","   0u","   POPUP_IGN_ON","      POPUP_ID_Lane_Communication_Abnormal","        NULL","                               0u","   POPUP_MSG_Lane_Communication_Abnormal","       POPUP_MODE_SINGLE","   SND_New_ID_278","                 POPUP_MODE_SINGLE","     POPUP_DISP_2S","      POPUP_DISP_3S","}","    ",null," 246  L2.9 OP4  是  车道辅助系统通讯异常"]
[null,null," POPUP_TYPE_EXCEPTION","      0u","   0u","   POPUP_IGN_ON","      POPUP_ID_Backward_Auxiliary_System_Error","    NULL","                               0u","   POPUP_MSG_Backward_Auxiliary_System_Error","   POPUP_MODE_SINGLE","   SND_New_ID_279","                 POPUP_MODE_SINGLE","     POPUP_DISP_2S","      POPUP_DISP_3S","}","    ",null," 247  L2.9 OP4  是  后向辅助系统异常"]
[null,null," POPUP_TYPE_EXCEPTION"," 0u","   0u","   POPUP_IGN_ON","      POPUP_ID_RearAssistanceRadarShelter_Left","    NULL","                               0u","   POPUP_MSG_RearAssistanceRadarShelter_Left","   POPUP_MODE_SINGLE","   SND_New_ID_280","                 POPUP_MODE_SINGLE","     POPUP_DISP_2S","      POPUP_DISP_5S","}","    ",null," 248  L2.9 OP4  是  后向辅助雷达遮挡 左"]
[null,null," POPUP_TYPE_EXCEPTION"," 0u","   0u","   POPUP_IGN_ON","      POPUP_ID_RearAssistanceRadarShelter_Right","   NULL","                               0u","   POPUP_MSG_RearAssistanceRadarShelter_Right","  POPUP_MODE_SINGLE","   SND_New_ID_280","                 POPUP_MODE_SINGLE","     POPUP_DISP_2S","      POPUP_DISP_5S","}","    ",null," 249  L2.9 OP4  是  后向辅助雷达遮挡 右"]
[null,null," POPUP_TYPE_EXCEPTION"," 0u","   0u","   POPUP_IGN_ON","      POPUP_ID_RearAssistanceRadarShelter_Both","    NULL","                               0u","   POPUP_MSG_RearAssistanceRadarShelter_Both","   POPUP_MODE_SINGLE","   SND_New_ID_280","                 POPUP_MODE_SINGLE","     POPUP_DISP_2S","      POPUP_DISP_5S","}","    ",null," 250  L2.9 OP4  是  后向辅助雷达遮挡 左+右"]
[null,null," POPUP_TYPE_EXCEPTION"," 0u","   0u","   POPUP_IGN_ON","      POPUP_ID_RearAssistanceSysInvalid_Left","      NULL","                               0u","   POPUP_MSG_RearAssistanceSysInvalid_Left","     POPUP_MODE_SINGLE","   SND_New_ID_282","                 POPUP_MODE_SINGLE","     POPUP_DISP_2S","      POPUP_DISP_3S","}","    ",null," 251  L2.9 OP4  是  后向辅助雷达故障 左"]
[null,null," POPUP_TYPE_EXCEPTION"," 0u","   0u","   POPUP_IGN_ON","      POPUP_ID_RearAssistanceSysInvalid_Right","     NULL","                               0u","   POPUP_MSG_RearAssistanceSysInvalid_Right","    POPUP_MODE_SINGLE","   SND_New_ID_282","                 POPUP_MODE_SINGLE","     POPUP_DISP_2S","      POPUP_DISP_3S","}","    ",null," 252  L2.9 OP4  是  后向辅助雷达故障 右"]
[null,null," POPUP_TYPE_EXCEPTION"," 0u","   0u","   POPUP_IGN_ON","      POPUP_ID_RearAssistanceSysInvalid_Both","      NULL","                               0u","   POPUP_MSG_RearAssistanceSysInvalid_Both","     POPUP_MODE_SINGLE","   SND_New_ID_282","                 POPUP_MODE_SINGLE","     POPUP_DISP_2S","      POPUP_DISP_3S","}","    ",null," 253  L2.9 OP4  是  后向辅助雷达故障 左+右"]
[null,null," POPUP_TYPE_HINT","      1u","   0u","   POPUP_IGN_ON","      POPUP_ID_RearAssistanceRadarDemarcate_L","     NULL","                               0u","   POPUP_MSG_RearAssistanceRadarDemarcate_L","    POPUP_MODE_SINGLE","   SND_NONE","                       POPUP_MODE_SINGLE","     POPUP_DISP_2S","      POPUP_DISP_3S","}","    ",null," 254  L2.9 OP4  否  后向辅助雷达标定中 左"]
[null,null," POPUP_TYPE_HINT","      1u","   0u","   POPUP_IGN_ON","      POPUP_ID_RearAssistanceRadarDemarcate_R","     NULL","                               0u","   POPUP_MSG_RearAssistanceRadarDemarcate_R","    POPUP_MODE_SINGLE","   SND_NONE","                       POPUP_MODE_SINGLE","     POPUP_DISP_2S","      POPUP_DISP_3S","}","    ",null," 254  L2.9 OP4  否  后向辅助雷达标定中 左"]
[null,null," POPUP_TYPE_EXCEPTION"," 0u","   0u","   POPUP_IGN_ON","      POPUP_ID_Forward_Radar_Occlusion","            NULL","                               0u","   POPUP_MSG_Forward_Radar_Occlusion","           POPUP_MODE_SINGLE","   SND_New_ID_284","                 POPUP_MODE_SINGLE","     POPUP_DISP_2S","      POPUP_DISP_3S","}","    ",null," 255  L2.9 OP4  是  前向毫米波雷达遮挡"]
[null,null," POPUP_TYPE_EXCEPTION"," 0u","   0u","   POPUP_IGN_ON","      POPUP_ID_ADS_FLC_Radar_Occlusion","            NULL","                               0u","   POPUP_MSG_ADS_FLC_Radar_Occlusion","           POPUP_MODE_SINGLE","   SND_New_ID_285","                 POPUP_MODE_SINGLE","     POPUP_DISP_2S","      POPUP_DISP_3S","}","    ",null," 256  L2.9 OP4  是  前向辅助雷达遮挡（左图标）"]
[null,null," POPUP_TYPE_EXCEPTION"," 0u","   0u","   POPUP_IGN_ON","      POPUP_ID_ADS_FRC_Radar_Occlusion","            NULL","                               0u","   POPUP_MSG_ADS_FRC_Radar_Occlusion","           POPUP_MODE_SINGLE","   SND_New_ID_286","                 POPUP_MODE_SINGLE","     POPUP_DISP_2S","      POPUP_DISP_3S","}","    ",null," 257  L2.9 OP4  是  前向辅助雷达遮挡（右图标）"]
[null,null," POPUP_TYPE_EXCEPTION"," 0u","   0u","   POPUP_IGN_ON","      POPUP_ID_Front_Landscape_Not_Available","      NULL","                               0u","   POPUP_MSG_Front_Landscape_Not_Available","     POPUP_MODE_SINGLE","   SND_New_ID_287","                 POPUP_MODE_SINGLE","     POPUP_DISP_2S","      POPUP_DISP_3S","}","    ",null," 258  L2.9 OP4  是  前方横向碰撞辅助不可用"]
[null,null," POPUP_TYPE_HINT","      0u","   0u","   POPUP_IGN_ON","      POPUP_ID_In_The_Calibration","                 NULL","                               0u","   POPUP_MSG_In_The_Calibration","                POPUP_MODE_SINGLE","   SND_NONE","                       POPUP_MODE_SINGLE","     POPUP_DISP_2S","      POPUP_DISP_3S","}","    ",null," 259  L2.9 OP4  否  前向辅助雷达标定中"]
[null,null," POPUP_TYPE_EXCEPTION"," 0u","   0u","   POPUP_IGN_ON","      POPUP_ID_Fornt_Smart_Camera","                 NULL","                               0u","   POPUP_MSG_Fornt_Smart_Camera","                POPUP_MODE_SINGLE","   SND_New_ID_289","                 POPUP_MODE_SINGLE","     POPUP_DISP_2S","      POPUP_DISP_3S","}","    ",null," 260  L2.9 OP4  是  前置智能摄像头遮挡"]
[null,null," POPUP_TYPE_EXCEPTION"," 0u","   0u","   POPUP_IGN_ON","      POPUP_ID_Emergency_Lane_Work","                NULL","                               0u","   POPUP_MSG_Emergency_Lane_Work","               POPUP_MODE_MULTI","    SND_New_ID_290","                 POPUP_MODE_MULTI","      POPUP_DISP_2S","      POPUP_DISP_2S","}","    ",null," 261  L2.9 W1   是  紧急车道保持工作中"]
[null,null," POPUP_TYPE_EXCEPTION"," 0u","   0u","   POPUP_IGN_ON","      POPUP_ID_Intelligent_Drive_Approve","          NULL","                               0u","   POPUP_MSG_Intelligent_Drive_Approve","         POPUP_MODE_SINGLE","   SND_New_ID_291","                 POPUP_MODE_SINGLE","     POPUP_DISP_2S","      POPUP_DISP_5S","}","    ",null," 262  L2.9 OP2  是  智能驾驶辅助需重新认证，请检查维修"]
[null,null," POPUP_TYPE_HINT","      0u","   0u","   POPUP_IGN_ON","      POPUP_ID_Observe_Traffic_Light","              NULL","                               0u","   POPUP_MSG_Observe_Traffic_Light","             POPUP_MODE_SINGLE","   SND_NONE","                       POPUP_MODE_SINGLE","     POPUP_DISP_2S","      POPUP_DISP_3S","}","    ",null," 263  L2.9 OP1  否  请注意观察交通灯"]
[null,null," POPUP_TYPE_HINT","      0u","   0u","   POPUP_IGN_ON","      POPUP_ID_Into_Ramp_left_Lane_Changing","       NULL","                               0u","   POPUP_MSG_Into_Ramp_left_Lane_Changing","      POPUP_MODE_SINGLE","   SND_NONE ","*no sound *",null,"         POPUP_MODE_SINGLE","     POPUP_DISP_2S","      POPUP_DISP_8S","}","    ",null," 264  L2.9 OP1  否  前方接近匝道，即将向左换道"]
[null,null," POPUP_TYPE_HINT","      0u","   0u","   POPUP_IGN_ON","      POPUP_ID_Into_Ramp_Right_Lane_Changing","      NULL","                               0u","   POPUP_MSG_Into_Ramp_Right_Lane_Changing","     POPUP_MODE_SINGLE","   SND_NONE ","*no sound *",null,"         POPUP_MODE_SINGLE","     POPUP_DISP_2S","      POPUP_DISP_8S","}","    ",null," 265  L2.9 OP1  否  前方接近匝道，即将向右换道"]
[null,null," POPUP_TYPE_HINT","      0u","   0u","   POPUP_IGN_ON","      POPUP_ID_Auto_Lane_Changing","                 NULL","                               0u","   POPUP_MSG_Auto_Lane_Changing","                POPUP_MODE_SINGLE","   SND_NONE ","*no sound *",null,"         POPUP_MODE_SINGLE","     POPUP_DISP_2S","      POPUP_DISP_8S","}","    ",null," 266  L2.9 OP1  否  前方汇入主路，即将自动换道"]
[null,null," POPUP_TYPE_HINT","      0u","   0u","   POPUP_IGN_ON","      POPUP_ID_left_Lane_Changing","                 NULL","                               0u","   POPUP_MSG_left_Lane_Changing","                POPUP_MODE_SINGLE","   SND_NONE ","*no sound *",null,"         POPUP_MODE_SINGLE","     POPUP_DISP_2S","      POPUP_DISP_8S","}","    ",null," 267  L2.9 OP1  否  即将向左换道"]
[null,null," POPUP_TYPE_HINT","      0u","   0u","   POPUP_IGN_ON","      POPUP_ID_Right_Lane_Changing","                NULL","                               0u","   POPUP_MSG_Right_Lane_Changing","               POPUP_MODE_SINGLE","   SND_NONE ","*no sound *",null,"         POPUP_MODE_SINGLE","     POPUP_DISP_2S","      POPUP_DISP_8S","}","    ",null," 268  L2.9 OP1  否  即将向右换道"]
[null,null," POPUP_TYPE_HINT","      0u","   0u","   POPUP_IGN_ON","      POPUP_ID_left_To_Overtake","                   NULL","                               0u","   POPUP_MSG_left_To_Overtake","                  POPUP_MODE_SINGLE","   SND_NONE ","*no sound *",null,"         POPUP_MODE_SINGLE","     POPUP_DISP_2S","      POPUP_DISP_8S","}","    ",null," 269  L2.9 OP1  否  即将向左超车"]
[null,null," POPUP_TYPE_HINT","      0u","   0u","   POPUP_IGN_ON","      POPUP_ID_Right_To_Overtake","                  NULL","                               0u","   POPUP_MSG_Right_To_Overtake","                 POPUP_MODE_SINGLE","   SND_NONE ","*no sound *",null,"         POPUP_MODE_SINGLE","     POPUP_DISP_2S","      POPUP_DISP_8S","}","    ",null," 270  L2.9 OP1  否  即将向右超车"]
[null,null," POPUP_TYPE_HINT","      0u","   0u","   POPUP_IGN_ON","      POPUP_ID_EXIT_NDA","                           NULL","                               0u","   POPUP_MSG_EXIT_NDA","                          POPUP_MODE_SINGLE","   SND_New_ID_305","                 POPUP_MODE_SINGLE","     POPUP_DISP_2S","      POPUP_DISP_3S","}","    ",null," 271  L2.9 OP3  否  NDA已退出"]
[null,null," POPUP_TYPE_HINT","      0u","   0u","   POPUP_IGN_ON","      POPUP_ID_Start_NDA","                          NULL","                               0u","   POPUP_MSG_Start_NDA","                         POPUP_MODE_SINGLE","   SND_New_ID_306","                 POPUP_MODE_SINGLE","     POPUP_DISP_2S","      POPUP_DISP_3S","}","    ",null," 272  L2.9 OP3  否  NDA已启动"]
[null,null," POPUP_TYPE_HINT","      0u","   0u","   POPUP_IGN_ON","      POPUP_ID_NDA_EXIT_Restore_Manually","          NULL","                               0u","   POPUP_MSG_NDA_EXIT_Restore_Manually","         POPUP_MODE_SINGLE","   SND_NONE ","*no sound *",null,"         POPUP_MODE_SINGLE","     POPUP_DISP_2S","      POPUP_DISP_8S","}","    ",null," 273  L2.9 W2   否  NDA即将退出，请恢复手动驾驶"]
[null,null," POPUP_TYPE_HINT","      0u","   0u","   POPUP_IGN_ON","      POPUP_ID_Complex_Road_Restore_Manually","      NULL","                               0u","   POPUP_MSG_Complex_Road_Restore_Manually","     POPUP_MODE_SINGLE","   SND_NONE ","*no sound *",null,"         POPUP_MODE_SINGLE","     POPUP_DISP_2S","      POPUP_DISP_8S","}","    ",null," 274  L2.9 W2   否  路况较为复杂，请手动换道"]
[null,null," POPUP_TYPE_HINT","      0u","   0u","   POPUP_IGN_ON","      POPUP_ID_NDA_EXIT_Bad_Weather","               NULL","                               0u","   POPUP_MSG_NDA_EXIT_Bad_Weather","              POPUP_MODE_SINGLE","   SND_NONE ","*no sound *",null,"         POPUP_MODE_SINGLE","     POPUP_DISP_2S","      POPUP_DISP_8S","}","    ",null," 275  L2.9 OP1  否  天气条件差，NDA即将退出"]
[null,null," POPUP_TYPE_HINT","      0u","   0u","   POPUP_IGN_ON","      POPUP_ID_NDA_EXIT_Big_Bend","                  NULL","                               0u","   POPUP_MSG_NDA_EXIT_Big_Bend","                 POPUP_MODE_SINGLE","   SND_NONE ","*no sound *",null,"         POPUP_MODE_SINGLE","     POPUP_DISP_2S","      POPUP_DISP_8S","}","    ",null," 276  L2.9 OP1  否  弯道过大，NDA即将退出"]
[null,null," POPUP_TYPE_HINT","      0u","   0u","   POPUP_IGN_ON","      POPUP_ID_NDA_EXIT_Want","                      NULL","                               0u","   POPUP_MSG_NDA_EXIT_Want","                     POPUP_MODE_SINGLE","   SND_NONE ","*no sound *",null,"         POPUP_MODE_SINGLE","     POPUP_DISP_2S","      POPUP_DISP_8S","}","    ",null," 277  L2.9 OP1  否  NDA即将退出"]
[null,null," POPUP_TYPE_HINT","      0u","   0u","   POPUP_IGN_ON","      POPUP_ID_NDA_EXIT_Want_Toll_Gate","            NULL","                               0u","   POPUP_MSG_NDA_EXIT_Want_Toll_Gate","           POPUP_MODE_SINGLE","   SND_NONE ","*no sound *",null,"         POPUP_MODE_SINGLE","     POPUP_DISP_2S","      POPUP_DISP_8S","}","    ",null," 278  L2.9 OP1  否  前方收费站，NDA即将退出"]
[null,null," POPUP_TYPE_HINT","      0u","   0u","   POPUP_IGN_ON","      POPUP_ID_NDA_EXIT_Want_Accident","             NULL","                               0u","   POPUP_MSG_NDA_EXIT_Want_Accident","            POPUP_MODE_SINGLE","   SND_NONE ","*no sound *",null,"         POPUP_MODE_SINGLE","     POPUP_DISP_2S","      POPUP_DISP_8S","}","    ",null," 279  L2.9 OP1  否  前方交通事故，NDA即将退出"]
[null,null," POPUP_TYPE_HINT","      0u","   0u","   POPUP_IGN_ON","      POPUP_ID_NDA_EXIT_Want_Build","                NULL","                               0u","   POPUP_MSG_NDA_EXIT_Want_Build","               POPUP_MODE_SINGLE","   SND_NONE ","*no sound *",null,"         POPUP_MODE_SINGLE","     POPUP_DISP_2S","      POPUP_DISP_8S","}","    ",null," 280  L2.9 OP1  否  前方道路施工，NDA即将退出"]
[null,null," POPUP_TYPE_HINT","      0u","   0u","   POPUP_IGN_ON","      POPUP_ID_M_NDA_EXIT_Want","                    NULL","                               0u","   POPUP_MSG_M_NDA_EXIT_Want","                   POPUP_MODE_SINGLE","   SND_NONE ","*no sound *",null,"         POPUP_MODE_SINGLE","     POPUP_DISP_2S","      POPUP_DISP_8S","}","    ",null," 281  L2.9 OP1  否  x米后将退出NDA"]
[null,null," POPUP_TYPE_HINT","      0u","   0u","   POPUP_IGN_ON","      POPUP_ID_Hands_Wheel_Observe_NDA","            NULL","                               0u","   POPUP_MSG_Hands_Wheel_Observe_NDA","           POPUP_MODE_MULTI","    SND_NONE ","*no sound *",null,"         POPUP_MODE_SINGLE","     POPUP_DISP_2S","      POPUP_DISP_2S","}","    ",null," 282  L2.9 W1   否  请保持手握方向盘，观察路况"]
[null,null," POPUP_TYPE_HINT","      0u","   0u","   POPUP_IGN_ON","      POPUP_ID_Observe_WAY","                        NULL","                               0u","   POPUP_MSG_Observe_WAY","                       POPUP_MODE_MULTI","    SND_NONE ","*no sound *",null,"         POPUP_MODE_SINGLE","     POPUP_DISP_2S","      POPUP_DISP_2S","}","    ",null," 283  L2.9 W1   否  请注意观察路况"]
[null,null," POPUP_TYPE_HINT","      0u","   0u","   POPUP_IGN_ON","      POPUP_ID_Nend_Take_Over_Wheel","               NULL","                               0u","   POPUP_MSG_Nend_Take_Over_Wheel","              POPUP_MODE_SINGLE","   SND_NONE ","*no sound *",null,"         POPUP_MODE_SINGLE","     POPUP_DISP_2S","      POPUP_DISP_8S","}","    ",null," 284  L2.9 OP1  否  前方急弯，请注意接管方向盘"]
[null,null," POPUP_TYPE_HINT","      0u","   0u","   POPUP_IGN_ON","      POPUP_ID_Into_The_Ramp","                      NULL","                               0u","   POPUP_MSG_Into_The_Ramp","                     POPUP_MODE_SINGLE","   SND_NONE ","*no sound *",null,"         POPUP_MODE_SINGLE","     POPUP_DISP_2S","      POPUP_DISP_3S","}","    ",null," 285  L2.9 OP4  否  即将进入匝道"]
[null,null," POPUP_TYPE_HINT","      0u","   0u","   POPUP_IGN_ON","      POPUP_ID_Into_The_main_Road","                 NULL","                               0u","   POPUP_MSG_Into_The_main_Road","                POPUP_MODE_SINGLE","   SND_NONE ","*no sound *",null,"         POPUP_MODE_SINGLE","     POPUP_DISP_2S","      POPUP_DISP_3S","}","    ",null," 286  L2.9 OP4  否  即将汇入主路"]
[null,null," POPUP_TYPE_HINT","      0u","   0u","   POPUP_IGN_ON","      POPUP_ID_High_Speed_Observe_WAY","             NULL","                               0u","   POPUP_MSG_High_Speed_Observe_WAY","            POPUP_MODE_SINGLE","   SND_NONE ","*no sound *",null,"         POPUP_MODE_SINGLE","     POPUP_DISP_2S","      POPUP_DISP_8S","}","    ",null," 287  L2.9 OP1  否  车速过高，请注意观察路况"]
[null,null," POPUP_TYPE_HINT","      0u","   0u","   POPUP_IGN_ON","      POPUP_ID_FollowTimeGapSet","                   NULL","                               0u","   POPUP_MSG_FollowTimeGapSet","                  POPUP_MODE_SINGLE","   SND_NONE","                       POPUP_MODE_SINGLE","     POPUP_DISP_2S","      POPUP_DISP_5S","}","    ",null," 288  L2.9 OP2  否  时距设置"]
[null,null," POPUP_TYPE_HINT","      0u","   0u","   POPUP_IGN_ON","      POPUP_ID_FollowTimeGapSet"," PopupMbrListTimeGapSet","   sizeof(PopupMbrListTimeGapSet)","   POPUP_MSG_FollowTimeGapSet","                  POPUP_MODE_SINGLE","   SND_NONE","                       POPUP_MODE_SINGLE","     POPUP_DISP_1S5","     POPUP_DISP_5S","}","    ",null," 289  L2.9 OP2  否  时距设置_1"]
[null,null," POPUP_TYPE_HINT","      0u","   0u","   POPUP_IGN_ON","      POPUP_ID_FollowTimeGapSet"," PopupMbrListTimeGapSet","   sizeof(PopupMbrListTimeGapSet)","   POPUP_MSG_FollowTimeGapSet","                  POPUP_MODE_SINGLE","   SND_NONE","                       POPUP_MODE_SINGLE","     POPUP_DISP_1S5","     POPUP_DISP_5S","}","    ",null," 290  L2.9 OP2  否  时距设置_2"]
[null,null," POPUP_TYPE_HINT","      0u","   0u","   POPUP_IGN_ON","      POPUP_ID_FollowTimeGapSet"," PopupMbrListTimeGapSet","   sizeof(PopupMbrListTimeGapSet)","   POPUP_MSG_FollowTimeGapSet","                  POPUP_MODE_SINGLE","   SND_NONE","                       POPUP_MODE_SINGLE","     POPUP_DISP_1S5","     POPUP_DISP_5S","}","    ",null," 291  L2.9 OP2  否  时距设置_3"]
[null,null," POPUP_TYPE_HINT","      0u","   0u","   POPUP_IGN_ON","      POPUP_ID_FollowTimeGapSet"," PopupMbrListTimeGapSet","   sizeof(PopupMbrListTimeGapSet)","   POPUP_MSG_FollowTimeGapSet","                  POPUP_MODE_SINGLE","   SND_NONE","                       POPUP_MODE_SINGLE","     POPUP_DISP_1S5","     POPUP_DISP_5S","}","    ",null," 292  L2.9 OP2  否  时距设置_4"]
[null,null," POPUP_TYPE_HINT","      0u","   0u","   POPUP_IGN_ON","      POPUP_ID_FollowTimeGapSet"," PopupMbrListTimeGapSet","   sizeof(PopupMbrListTimeGapSet)","   POPUP_MSG_FollowTimeGapSet","                  POPUP_MODE_SINGLE","   SND_NONE","                       POPUP_MODE_SINGLE","     POPUP_DISP_1S5","     POPUP_DISP_5S","}","    ",null," 293  L2.9 OP2  否  时距设置_ACCMODE_2_3"]
[null,null," POPUP_TYPE_HINT","      0u","   0u","   POPUP_IGN_ON","      POPUP_ID_FollowTimeGapSet"," PopupMbrListTimeGapSet","   sizeof(PopupMbrListTimeGapSet)","   POPUP_MSG_FollowTimeGapSet","                  POPUP_MODE_SINGLE","   SND_NONE","                       POPUP_MODE_SINGLE","     POPUP_DISP_1S5","     POPUP_DISP_5S","}","    ",null," 294  L2.9 OP2  否  时距设置_accmode_2_6_3"]
[null,null," POPUP_TYPE_HINT","      0u","   0u","   POPUP_IGN_ON","      POPUP_ID_Open_Self_Adaption_L2","              NULL","                               0u","   POPUP_MSG_Open_Self_Adaption_L2","             POPUP_MODE_SINGLE","   SND_New_ID_185","                 POPUP_MODE_SINGLE","     POPUP_DISP_2S","      POPUP_DISP_3S","}","    ",null," 175  L2.9 OP3  否  请在车辆中心开启集成式自适应巡航","智能驾驶辅助"]
[null,null," POPUP_TYPE_EXCEPTION"," 0u","   0u","   POPUP_IGN_ON","      POPUP_ID_Cruise_EXIT_L2","                     NULL","                               0u","   POPUP_MSG_Cruise_EXIT_L2","                    POPUP_MODE_SINGLE","   SND_New_ID_226","                 POPUP_MODE_SINGLE","     POPUP_DISP_2S","      POPUP_DISP_3S","}","    ",null," 199  L2.9 D2   否  集成式自适应巡航已退出"]
[null,null," POPUP_TYPE_EXCEPTION"," 0u","   0u","   POPUP_IGN_ON","      POPUP_ID_Adaptive_Cruise_Failure_L2","         NULL","                               0u","   POPUP_MSG_Adaptive_Cruise_Failure_L2","        POPUP_MODE_SINGLE","   SND_New_ID_227","                 POPUP_MODE_SINGLE","     POPUP_DISP_2S","      POPUP_DISP_3S","}","    ",null," 200  L2.9 D2   否  集成式自适应巡航系统故障"]
[null,null," POPUP_TYPE_HINT","      0u","   0u","   POPUP_IGN_ON","      POPUP_ID_Cruise_Exit_Vehicle_L2","             NULL","                               0u","   POPUP_MSG_Cruise_Exit_Vehicle_L2","            POPUP_MODE_SINGLE","   SND_New_ID_230","                 POPUP_MODE_SINGLE","     POPUP_DISP_2S","      POPUP_DISP_5S","}","    ",null," 203  L2.9 OP2  否  集成式自适应巡航已退出","请注意控制车辆"]
[null,null," POPUP_TYPE_HINT","      0u","   0u","   POPUP_IGN_ON","      POPUP_ID_Control_Vehicle_Cruise_EXIT_L2","     NULL","                               0u","   POPUP_MSG_Control_Vehicle_Cruise_EXIT_L2","    POPUP_MODE_SINGLE","   SND_New_ID_251","                 POPUP_MODE_SINGLE","     POPUP_DISP_2S","      POPUP_DISP_3S","}","    ",null," 217  L2.9 D2   否  请注意控制车辆","集成式自适应巡航临时退出"]
[null,null," POPUP_TYPE_EXCEPTION"," 0u","   0u","   POPUP_IGN_ON","      POPUP_ID_Adaptive_Communication_Abnormal_L2"," NULL","                               0u","   POPUP_MSG_Adaptive_Communication_Abnormal_L2","POPUP_MODE_SINGLE","   SND_New_ID_273","                 POPUP_MODE_SINGLE","     POPUP_DISP_2S","      POPUP_DISP_3S","}","    ",null," 243  L2.9 OP4  是  集成式自适应巡航系统通讯异常"]

{"sheet":"多媒体","index":3,"n_rows":54,"n_cols":9,"rows_kept":54,"cut":false,"hidden":true,"merged":[]}
[null,"Byte6"]
[null,"媒体信息界面"]
[null,"0x0默认界面\n0x1本地音乐\n0x2USB音乐\n0x4蓝牙音乐\n0x8在线电台\n0x10在线音乐\n0x20在线节目\n0x40FM\n0x80AM\n通过按键或通过滑动事件触发直接进入显示媒体播放界面，通知或响应HU发来的播放信息"]
{"$rows_empty":36}
["输入","蓝牙状态"]
[null,"HU主题"]
[null,"媒体源状态"]
[null,"选中的媒体源","AM/FM","在线电台","在线节目"]
[null,null,"播放状态:播放/暂停"]
[null,null,"当前频率","播放:状态"]
[]
[]
[]
[null,"截屏声音请求"]
[]
[]
["输入","状态类信息","报文ID"]
[null,null,"0x13（50ms）","BT_ConnectStatus","BT_PhoneStatus","sourceStatus","sourceHDD/\nsourceUSB/\nsourceBT/\n\n","SetTheme/\nTBTStatus/","OnlineMusic/\nOnlinePrograms "]
[null,null,null,"Bit0:  0蓝牙未连接\n         1蓝牙已连接\nBit1:  0联系人未同步\n         1联系人已同步 ","电话状态Bit0~7\n0x00: 无通话\n0x01: 来电中 \n0x02: 去电中 \n0x03: 通话中 \n0x04: 挂断电话\n"]

{"sheet":"行车电脑","index":4,"n_rows":18,"n_cols":3,"rows_kept":18,"cut":false,"hidden":true,"merged":[]}
["行车电脑          FS11 "]
[null,"Byte5"]
["小计，行驶时间\n平均油耗 平均车速","行车电脑数据0\n0x00","小计里程：最大值9999，系数0.1  0xFFFF时--.--\nByte6:小计高字节Byte7:小计低字节\n平均油耗: 最大值999，系数0.1       0xFFFF时--.--\nByte8:油耗高字节Byte9:油耗低字节\n驾驶时间最大99小时59分钟\nByte10:0~99，Byte11:0~59\n平均车速最大值240  0xFF时---\nByte12:0~240\nByte13单位\n0:km(小计),     L/100km (油耗)  km/h(平均车速)\n1:km(小计)，  km/L (油耗)        km/h(平均车速)\n2:mies(小计)，mpg (油耗)        mph  (平均车速)"]
[]
["可续航里程和油耗","行车电脑数据1\n0x01","可续航里程最大值9999   0xFFFF时 ---\nByte6:里程高字节 Byte7:里程低字节 \n瞬时油耗: 最大值999，系数0.1       0xFFFF时--.--\nByte8:油耗高字节Byte9:油耗低字节\nByte10单位\n0:km(小计),     L/100km (油耗)\n1:km(小计)，  km/L (油耗) \n2:mies(小计)，mpg (油耗)"]
[]
["轮胎状态","行车电脑数据2 （可配置）\n0x02","左前轮                                             右前轮                          \n压力 显示控制                                  压力 显示控制  \nByte6：Bit7:0不显示,1显示            Byte12：Bit7:0不显示,1显示  \nByte6：Bit6:0白色,1红色                Byte12：Bit6:0白色,1红色  \n温度 显示控制                                  温度 显示控制  \nByte6：Bit5:0不显示,1显示            Byte12：Bit5:0不显示,1显示  \nByte6：Bit4:0白色,1红色                Byte12：Bit4:0白色,1红色   \nByte6：Bit3: 0无‘-’   1有‘-’             Byte12：Bit3: 0无‘-’    1有‘-’\n压力值  （0x7FF表示--.-）           压力值   （0x7FF表示--.-）      \nByte6：Bit0~2: 胎压高字节           Byte12：Bit0~2: 胎压高字节         \nByte7：胎压低字节                         Byte13：胎压低字节             \nByte8：轮胎温度 （FF表示--）  Byte14：轮胎温度 （FF表示--）\n左后轮                                              右后轮                          \n压力 显示控制                                  压力 显示控制  \nByte9：Bit7:0不显示,1显示            Byte15：Bit7:0不显示,1显示  \nByte9：Bit6:0白色,1红色                Byte15：Bit6:0白色,1红色  \n温度 显示控制                                  温度 显示控制  \nByte9：Bit5:0不显示,1显示            Byte15：Bit5:0不显示,1显示  \nByte9：Bit4:0白色,1红色                Byte15：Bit4:0白色,1红色   \nByte9：Bit3: 0无‘-’   1有‘-’             Byte15：Bit3: 0无‘-’    1有‘-’\n压力值  （0x7FF表示--.-）             压力值   （0x7FF表示--.-）      \nByte9：Bit0~2: 胎压高字节            Byte15：Bit0~2: 胎压高字节         \nByte10：胎压低字节                       Byte16：胎压低字节             \nByte11：轮胎温度 （FF表示--）  Byte17：轮胎温度（FF表示--）    \n压力单位 Byte18 ：                                 温度单位  Byte18 ：\nBit 0~3:  压力单位 0 kPa, 1 psi, 2 bar    Bit4~7:  0为℃ ,1为℉  "]
[]
["能量回收","行车电脑数据3（可配置）\n0x03","能量回收（20格进度条对应数据0-100，0表示没有100表示满）\nByte 6：0~100,"]
[]
["机油液位","行车电脑数据4（可配置）\n0x04","Byte6：机油液位  \nBit0~3：液位4个 等级绑定颜色 \n              0红色 1黄色 2绿色 3红色\nBit4~7：文字\n 0 “油位正常”白色    1“油位过低”红\n 2 “油位过低”白        3 “油位”白\n 4 “油位高” 红          5 “油位错误”红"]
[]
["转速","行车电脑数据5\n0x05","转速 \nByte6 转速高字节  Byte7 转速低字节"]
[]
["加速度","行车电脑数据6（可配置）\n0x06","G-Force  红点，灰点 坐标（相对圆心）\n偏移值40 最大值80\n红点：\nByte6：X坐标      Byte7：Y坐标\n灰点：\nByte8：X坐标      Byte9：Y坐标\nByte10：0 灰点不显示  1灰点显示"]
[]
["换挡提醒","行车电脑数据7（可配置）\n0x07","Byte6挡位提示  \n当0时全部挡位都无高亮效果当非零值时 对应数值高亮，\n高亮时挡位光晕与主题颜色关联\n0x0 全灰色  \n0x1 P            \n0x2 R             \n0x3 N           \n0x4 D            \n0x5 M     \n0x6 M+ \n0x7 M-      \n0x8~0xFF Reserve无效按0处理"]
["清空显示区","清空行车电脑显示\n0xFF","数据0xFF 无意义"]

{"sheet":"交通信号","index":5,"n_rows":54,"n_cols":14,"rows_kept":54,"cut":false,"hidden":true,"merged":[[1,7,8,7],[1,8,8,8],[1,9,8,9],[1,10,8,10],[16,13,17,13],[16,1,16,5],[16,6,16,12],[16,0,17,0],[2,1,4,1],[5,1,8,1],[1,2,2,2],[3,2,6,2],[2,3,4,3],[5,3,8,3],[1,4,2,4],[3,4,6,4],[7,4,8,4],[2,5,4,5],[5,5,8,5],[1,6,2,6],[3,6,6,6]]}
[null,"Byte5","Byte6","Byte7","Byte8","Byte9","Byte10","Byte11","Byte12","Byte13","Byte14"]
["Bit0","左车道交通信号灯：\n0：不显示\n1：显示","左车道交通信号灯状态：\n0x0:不显示\n0x1:常亮\n0x2:闪烁，频率：\n0x3:即将消失，闪烁，频率：XX","本车道交通信号灯：\n0：不显示\n1：显示","本车道交通信号灯状态：\n0x0:不显示\n0x1:常亮\n0x2:闪烁，频率：\n0x3:即将消失，闪烁，频率：XX","右车道交通信号灯：\n0：不显示\n1：显示","右车道交通信号灯状态：\n0x0:不显示\n0x1:常亮\n0x2:闪烁，频率：\n0x3:即将消失，闪烁，频率：XX","停止线：\n0x0-0xFA = 0-250m；\n0xFB-0xFE = Reserved；\n0xFF = Out of Range；","本车道/道路禁令标志：\n0x0：no display；\n0x1：禁止通行；\n0x2：禁止驶入；\n0x3：禁止机动车通行；\n0x4：禁止向左转弯；\n0x5：禁止向右转弯；\n0x6：禁止直行；\n0x7：禁止掉头；\n0x8：禁止超车；\n0x9：解除禁止超车；\n0xA：禁止车辆临时或长时停放；0xB：禁止车辆长时停放；\n0xC：禁止鸣喇叭；\n0xD：停车让行；\n0xE：减速让行；\n0xF：会车让行；\n0x10~0x1F：reserved","本车道/道路警告标志：\n0x0：no display；\n0x1：反向弯路；\n0x2：连续弯路；\n0x3：注意行人；\n0x4：注意儿童；\n0x5：易滑；\n0x6：隧道；\n0x7：慢行；\n0x8：施工；\n0x9~0xF：reserved","本车道/道路指示标志：\n0x0：no display；\n0x1：单行路(直行)；\n0x2：步行；\n0x3：干路先行；\n0x4：会车先行；\n0x5：人行横道；\n0x6：公交线路专用车道；\n0x7~0xF：reserved"]
["Bit1","左车道交通信号灯颜色：\n0：不显示\n1：红\n2：黄\n3：绿",null,"本车道交通信号灯颜色：\n0：不显示\n1：红\n2：黄\n3：绿",null,"右车道交通信号灯颜色：\n0：不显示\n1：红\n2：黄\n3：绿"]
["Bit2",null,"左车道交通信号灯方向\n0x0:不显示\n0x1:直行\n0x2:左转或左掉头\n0x3:直行+左转/左掉头\n0x4:右转\n0x5:直行+右转\n0x6:左转+右转\n0x7:左转、右转、直行共用",null,"本车道交通信号灯方向\n0x0:不显示\n0x1:直行\n0x2:左转或左掉头\n0x3:直行+左转/左掉头\n0x4:右转\n0x5:直行+右转\n0x6:左转+右转\n0x7:左转、右转、直行共用",null,"右车道交通信号灯方向\n0x0:不显示\n0x1:直行\n0x2:左转或左掉头\n0x3:直行+左转/左掉头\n0x4:右转\n0x5:直行+右转\n0x6:左转+右转\n0x7:左转、右转、直行共用"]
["Bit3"]
["Bit4","左车道交通信号灯类型：\n0x0：不显示\n0x1：圆形\n0x2：箭头\n0x3：掉头\n0x4：禁行\n0x5：直行+转向\n0x6-0x7:reserved",null,"本车道交通信号灯类型：\n0x0：不显示\n0x1：圆形\n0x2：箭头\n0x3：掉头\n0x4：禁行\n0x5：直行+转向\n0x6-0x7:reserved",null,"右车道交通信号灯类型：\n0x0：不显示\n0x1：圆形\n0x2：箭头\n0x3：掉头\n0x4：禁行\n0x5：直行+转向\n0x6-0x7:reserved"]
["Bit5"]
["Bit6",null,null,null,"本车道交通报警等级：\n0：无报警\n1：Level1\n2：Level2\n3：Level3"]
["Bit7"]
{"$rows_empty":7}
["HMI参考方案","类型",{"$nulls":4},"方向",{"$nulls":6},"备注"]
[null,"0x1：Round;（圆形）","0x2：Arrow;（箭头）","0x3:Turn Round;（掉头）","0x4：X-type;（禁行）","0x5:Arrow+Trun（直行+转向）","0x1:Forward;（直行）","0x2:Left;（左转或左掉头）","0x3: Forward +Left;（直行+左转/左掉头）","0x4:Right;（右转）","0x5: Forward +Right;（直行+右转）","0x6:Right+Left;（左转+右转）","0x7:Left+ Forward +Right;（左转、右转、直行共用）"]
[null,"√"]
[null,null,"√",null,null,null,"√"]
[null,null,"√",{"$nulls":4},"√",{"$nulls":5},"该交通灯用\n左转代替"]
[null,null,"√",{"$nulls":5},"√"]
[null,null,"√",{"$nulls":6},"√",null,null,null,"该交通灯用\n右转代替"]
[null,null,"√",{"$nulls":7},"√"]
[null,null,"√",{"$nulls":8},"√"]
[null,null,null,"√",null,null,null,"√"]
[null,null,null,"√",{"$nulls":5},"√"]
[{"$nulls":4},"√"]
[{"$nulls":5},"√",null,null,"√"]
[{"$nulls":5},"√",{"$nulls":4},"√"]
[null,null,"√",{"$nulls":9},"√"]
[]
[]
[]
[]
["反向弯路","连续弯路","注意行人","注意儿童","易滑"]
[]
["隧道","慢行","施工","注意危险"]
[]
[]
[]
[null,"禁止驶入","禁止机动车通行","禁止向左转弯","禁止向右转弯"]
[]
["禁止直行","禁止掉头","禁止超车","解除禁止超车","禁止车辆临时或长时停放"]
[]
["禁止车辆长时停放",null,"限制速度","解除限制速度","停车让行"]
[]
["禁止通行","禁止鸣喇叭",null,"减速让行","会车让行"]
[]
[]
[]
[null,"单行路(直行)","步行","干路先行","会车先行","人行横道"]
[]
[null,"公交线路专用车道"]

{"sheet":"ADAS","index":6,"n_rows":45,"n_cols":24,"rows_kept":45,"cut":false,"hidden":true,"merged":[[41,9,44,9],[37,10,40,10],[41,10,44,10],[41,6,44,6],[37,6,40,6],[37,7,40,7],[41,7,44,7],[37,8,40,8],[41,8,44,8],[19,11,22,11],[23,11,26,11],[28,11,31,11],[32,11,35,11],[10,12,13,12],[14,12,17,12],[19,12,22,12],[23,12,25,12],[37,9,40,9],[1,13,8,13],[10,13,13,13],[14,13,16,13],[19,13,26,13],[28,13,35,13],[1,14,4,14],[5,14,8,14],[10,14,17,14],[1,15,8,15],[28,14,35,15],[10,15,17,16],[19,14,26,15],[1,16,8,16],[1,23,8,23],[1,17,4,17],[5,17,8,17],[4,18,5,18],[6,18,8,18],[1,19,8,19],[2,20,3,20],[4,20,8,20],[1,21,4,21],[1,22,8,22],[1,9,8,9],[10,9,17,9],[1,10,8,10],[1,11,4,11],[5,11,8,11],[1,12,8,12],[28,7,31,7],[32,7,34,7],[1,8,4,8],[5,8,8,8],[10,8,13,8],[14,8,16,8],[19,8,26,8],[1,7,8,7],[10,7,13,7],[14,7,17,7],[19,7,22,7],[23,7,25,7],[28,9,35,10],[19,9,26,10],[10,10,17,11],[28,12,31,12],[32,12,34,12],[28,8,35,8],[1,6,2,6],[3,6,8,6],[19,6,22,6],[23,6,26,6],[32,6,35,6],[28,6,31,6],[41,4,42,4],[43,4,44,4],[28,4,35,5],[39,4,40,4],[37,5,44,5],[10,5,17,6],[19,4,26,5],[1,3,8,3],[10,3,13,3],[14,3,16,3],[19,3,26,3],[1,5,8,5],[1,4,4,4],[5,4,8,4],[10,4,17,4],[37,4,38,4],[28,3,35,3],[37,3,38,3],[39,3,40,3],[23,1,26,1],[28,1,31,1],[32,1,35,1],[38,1,44,1],[23,2,25,2],[28,2,31,2],[32,2,34,2],[37,2,44,2],[41,3,42,3],[43,3,44,3],[1,2,4,2],[5,2,8,2],[10,2,13,2],[14,2,17,2],[19,2,22,2],[1,1,2,1],[3,1,8,1],[10,1,12,1],[13,1,17,1],[19,1,22,1]]}
[null,"Byte5","Byte6","Byte7","Byte8","Byte9","Byte10","Byte11","Byte12","Byte13","Byte14","Byte15","Byte16","Byte17","Byte18","Byte19","Byte20","Byte21","Byte22","Byte23","Byte24","Byte25","Byte26","Byte27"]
["Bit0","\n左左侧车道线\n0x0=不显示\n0x1=虚线\n0x2=实线\n0x3=路沿","左侧车道线：\n0x0=白色\n0x1=红色\n0x2=灰色\n0x3=绿色\n0x4=橙色\n0x5=无色\n","车辆中心到左侧车道线的距离\n\n\n代表车道线三次多项式方程参数C0\n\n0x0-0x78=-1-5；\n0x79-0x6F=reserved；","右侧车道线：\n0x0=白色\n0x1=红色\n0x2=灰色\n0x3=绿色\n0x4=橙色\n0x5=无色","车辆中心到右侧车道线的距离\n\n\n代表车道线三次多项式方程参数C0\n\n0x0-0x78=-1-5；\n0x79-0x5F=reserved；","右右侧车道线\n0x0=不显示\n0x1=虚线\n0x2=实线\n0x3=路沿","车道线方程-近端\nC1高字节\n\n车道线曲线方程为：\ny=C0+C1*x+(1/2)*C2*x^2+(1/6)*C3*x^3\n\n其中C0为车道线的横向距离\n其中C1为车辆相对预期轨迹的角度，\n换算公式为-1+(0x0 ~ 0xFFE)*2^(-11))\n\n其中C2为车道线曲率，\n换算公式为(-2047 + (0x0 ~ 0xFFE))*2^(-16))\n\n其中C3为车道线曲率变化率，\n换算公式为(-2047 + (0x0 ~ 0xFFE))*2^(-21))","车道线方程-近端\nC1低字节","车道线方程-近端\nC2低字节","车道线方程-近端\nC3高字节","车道线方程-近端\nC3低字节","\n近端与远端车道线的拼接点纵向位置\n\n\n0-200m\n\n此数据固定发80","车道线方程-远端\nC1高字节\n方程坐标系以拼接点为原点，X向前为正，Y向左为正\n\n形状方程为：\ny=C1*x+(1/2)*C2*x^2+(1/6)*C3*x^3，\n\n其中C3为车道线曲率变化率，\n换算公式为(-2047 + (0x0 ~ 0xFFE))*2^(-21))\n0xFFF=INVALID","车道线方程-远端\nC1低字节","车道线方程-远端\nC2低字节","车道线方程-远端\nC3高字节","车道线方程-远端\nC3低字节","坡道显示标志：\n0：不显示\n1：显示","匝道距离：\n高字节\n本车与匝道口的纵向距离\n\n0-400m","匝道距离：\n低字节","隧道距离：\n低字节\n\n\n本车与隧道入口的纵向距离\n\n0-400m","本车与前方限速变化点的\n纵向距离\n低字节\n\n\n0x0~0x190=0~400；\n0x191~0x1FE=reserved；\n0x1FF=no display\n\n\n","下一个限速值：\n\n0x0=不显示；\n0x1=SL5；\n0x2=SL10；\n…\n32=SL160；\n33=253= Reserved；\n254= 解除限速；\n255= 不显示"]
["Bit1",{"$nulls":17},"匝道状态：\n0x0=不显示；\n0x1=显示；",null,"隧道的状态：\n\n0x0=no display；\n0x1=nearTunnel；\n0x2=inTunnel；\n0x3=reserved；"]
["Bit2","车辆中心到左左侧车道线的距离\n\n\n代表车道线三次多项式方程参数C0\n\n0x0-0x3C=0-12；\n0x3D-0x3F=reserved\n",{"$nulls":4},"车辆中心到右右侧车道线的距离\n\n代表车道线三次多项式方程参数C0\n\n0x0-0x3C=0-12；\n0x3D-0x3F=reserved",{"$nulls":11},"箭头状态：\n0x0=不显示；\n0x1=显示；"]
["Bit3",{"$nulls":17},"匝道方向：\n0x0=左侧；（箭头向左）\n0x1=右侧；（箭头向右）",null,"隧道距离：\n高字节"]
["Bit4",null,"左侧车道线类型：\n0x0=不显示\n0x1=虚线\n0x2=实线\n0x3=路沿",null,"右侧车道线类型：\n0x0=不显示\n0x1=虚线\n0x2=实线\n0x3=路沿",null,null,null,"车道线方程-近端\nC2高字节",null,null,"道路拼接标志位\n0x0=不显示远端道路\n0x1=显示远端道路",null,null,"车道线方程-远端\nC2高字节",null,null,"道路类型：\n0x0=无；\n0x1=城市主要道路，城市快速路；\n0x2=省道，县道，国道，高速路，次要道路，普通道路，乡公路，县乡内部路；\n0x3 = 隧道背景"]
["Bit5",{"$nulls":17},"匝道颜色：\n0x0=灰色；\n0x1=蓝色；\n"]
["Bit6"]
["Bit7",{"$nulls":20},"本车与前方限速变化点的纵向距离：高字节"]
[null,"Byte28","Byte29","Byte30","Byte31","Byte32","Byte33","Byte34","Byte35","Byte36","Byte37","Byte38","Byte39","Byte40","Byte41","Byte42","Byte43"]
["Bit0","ACC跟车距离等级：\n0：无\n1：红\n2：橙\n3：绿","本车道目标1状态：\n0：无\n1：红色\n2：绿色\n3：蓝色\n4：白色\n5：灰色\n6：黄色","本车道目标1类型：\n0x0=不显示；\n0x1=卡车；\n0x2=轿车；\n0x3=摩托车","本车道目标1纵距离：\n低字节\n0x0~0x1F4=-70~180；\n0x1F5~0x1FE=reserved；\n0x1FF=no display","本车道目标1横距离：\n\nByte35：高字节\nByte36：低字节\n\n\n向左为正，向右为负\n0x0-0x3E8：-50-50m；\n0x3E9-0x3FF：reserved",null,"本车道目标2状态：\n0：无\n1：红色\n2：绿色\n3：蓝色\n4：白色\n5：灰色\n6：黄色","本车道目标2类型：\n0x0=不显示；\n0x1=卡车；\n0x2=轿车；\n0x3=摩托车","本车道目标2纵距离：\n低字节\n0x0~0x1F4=-70~180；\n0x1F5~0x1FE=reserved；\n0x1FF=no display","本车道目标2横距离：\n\nByte35：高字节\nByte36：低字节\n\n\n向左为正，向右为负\n0x0-0x3E8：-50-50m；\n0x3E9-0x3FF：reserved",null,"本车道后方目标状态：\n0：无\n1：红色\n2：绿色\n3：蓝色\n4：白色\n5：灰色\n6：黄色","本车道后方目标类型：\n0x0=不显示；\n0x1=卡车；\n0x2=轿车；\n0x3=摩托车","本车道后方目标纵距离：\n低字节\n0x0~0x1F4=-70~180；\n0x1F5~0x1FE=reserved；\n0x1FF=no display","本车道后方目标横距离：\n\nByte35：高字节\nByte36：低字节\n\n\n向左为正，向右为负\n0x0-0x3E8：-50-50m；\n0x3E9-0x3FF：reserved"]
["Bit1"]
["Bit2"]
["Bit3","ACC跟车距离目标ID\n0-15\n\n纵向距离=目标ID的纵向距离"]
["Bit4",null,"本车道目标1—ID：\n0-15\n\n\n跟车目标ID","本车道目标1方向：\n0x0=同向目标；\n0x1=对向目标；\n0x2=左侧横向来车；\n0x3=右侧横向来车；",null,null,null,"本车道目标2—ID：\n0-15\n\n\n跟车目标ID","本车道目标2方向：\n0x0=同向目标；\n0x1=对向目标；\n0x2=左侧横向来车；\n0x3=右侧横向来车；",null,null,null,"本车道后方目标—ID：\n0-15\n\n\n跟车目标ID","本车道后方目标方向：\n0x0=同向目标；\n0x1=对向目标；\n0x2=左侧横向来车；\n0x3=右侧横向来车；"]
["Bit5"]
["Bit6"]
["Bit7",null,null,"本车道目标1纵距离：\n高字节",{"$nulls":4},"本车道目标2纵距离：\n高字节",{"$nulls":4},"本车道后方目标纵距离：\n高字节"]
[null,"Byte44","Byte45","Byte46","Byte47","Byte48","Byte49","Byte50","Byte51","Byte52","Byte53","Byte54","Byte55","Byte56","Byte57","Byte58"]
["Bit0","左车道目标1状态：\n0：无\n1：红色\n2：绿色\n3：蓝色\n4：白色\n5：灰色\n6：黄色","左车道目标1类型：\n0x0=不显示；\n0x1=卡车；\n0x2=轿车；\n0x3=摩托车","左车道目标1纵距离：\n低字节\n0x0~0x1F4=-70~180；\n0x1F5~0x1FE=reserved；\n0x1FF=no display","左车道目标1横距离：\n\nByte35：高字节\nByte36：低字节\n\n\n向左为正，向右为负\n0x0-0x3E8：-50-50m；\n0x3E9-0x3FF：reserved",null,"左车道目标2状态：\n0：无\n1：红色\n2：绿色\n3：蓝色\n4：白色\n5：灰色\n6：黄色","左车道目标2类型：\n0x0=不显示；\n0x1=卡车；\n0x2=轿车；\n0x3=摩托车","左车道目标2纵距离：\n低字节\n0x0~0x1F4=-70~180；\n0x1F5~0x1FE=reserved；\n0x1FF=no display","左车道目标2横距离：\n\nByte35：高字节\nByte36：低字节\n\n\n向左为正，向右为负\n0x0-0x3E8：-50-50m；\n0x3E9-0x3FF：reserved",null,"左车道后方目标状态：\n0：无\n1：红色\n2：绿色\n3：蓝色\n4：白色\n5：灰色\n6：黄色","左车道后方目标类型：\n0x0=不显示；\n0x1=卡车；\n0x2=轿车；\n0x3=摩托车","左车道后方目标纵距离：\n低字节\n0x0~0x1F4=-70~180；\n0x1F5~0x1FE=reserved；\n0x1FF=no display","左车道后方目标横距离：\n\nByte35：高字节\nByte36：低字节\n\n\n向左为正，向右为负\n0x0-0x3E8：-50-50m；\n0x3E9-0x3FF：reserved"]
["Bit1"]
["Bit2"]
["Bit3"]
["Bit4","左车道目标1—ID：\n0-15\n\n\n跟车目标ID","左车道目标1方向：\n0x0=同向目标；\n0x1=对向目标；\n0x2=左侧横向来车；\n0x3=右侧横向来车；",null,null,null,"左车道目标2—ID：\n0-15\n\n跟车目标ID","左车道目标2方向：\n0x0=同向目标；\n0x1=对向目标；\n0x2=左侧横向来车；\n0x3=右侧横向来车；",null,null,null,"左车道后方目标—ID：\n0-15\n\n\n跟车目标ID","左车道后方目标方向：\n0x0=同向目标；\n0x1=对向目标；\n0x2=左侧横向来车；\n0x3=右侧横向来车；"]
["Bit5"]
["Bit6"]
["Bit7",null,"左车道目标1纵距离：\n高字节",{"$nulls":4},"左车道目标2纵距离：\n高字节",{"$nulls":4},"左车道后方目标纵距离：\n高字节"]
[null,"Byte59","Byte60","Byte61","Byte62","Byte63","Byte64","Byte65","Byte66","Byte67","Byte68","Byte69","Byte70","Byte71","Byte72","Byte73"]
["Bit0","右车道目标1状态：\n0：无\n1：红色\n2：绿色\n3：蓝色\n4：白色\n5：灰色\n6：黄色","右车道目标1类型：\n0x0=不显示；\n0x1=卡车；\n0x2=轿车；\n0x3=摩托车","右车道目标1纵距离：\n低字节\n0x0~0x1F4=-70~180；\n0x1F5~0x1FE=reserved；\n0x1FF=no display","右车道目标1横距离：\n\nByte35：高字节\nByte36：低字节\n\n\n向左为正，向右为负\n0x0-0x3E8：-50-50m；\n0x3E9-0x3FF：reserved",null,"右车道目标2状态：\n0：无\n1：红色\n2：绿色\n3：蓝色\n4：白色\n5：灰色\n6：黄色","右车道目标2类型：\n0x0=不显示；\n0x1=卡车；\n0x2=轿车；\n0x3=摩托车","右车道目标2纵距离：\n低字节\n0x0~0x1F4=-70~180；\n0x1F5~0x1FE=reserved；\n0x1FF=no display","右车道目标2横距离：\n\nByte35：高字节\nByte36：低字节\n\n\n向左为正，向右为负\n0x0-0x3E8：-50-50m；\n0x3E9-0x3FF：reserved",null,"右车道后方目标状态：\n0：无\n1：灰色\n2：绿色\n\n\n暂定，不确定颜色","右车道后方目标类型：\n0x0=不显示；\n0x1=卡车；\n0x2=轿车；\n0x3=摩托车","右车道后方目标纵距离：\n低字节\n0x0~0x1F4=-70~180；\n0x1F5~0x1FE=reserved；\n0x1FF=no display","右车道后方目标横距离：\n\nByte35：高字节\nByte36：低字节\n\n\n向左为正，向右为负\n0x0-0x3E8：-50-50m；\n0x3E9-0x3FF：reserved"]
["Bit1"]
["Bit2"]
["Bit3"]
["Bit4","右车道目标1—ID：\n0-15\n\n\n跟车目标ID","右车道目标1方向：\n0x0=同向目标；\n0x1=对向目标；\n0x2=左侧横向来车；\n0x3=右侧横向来车；",null,null,null,"右车道目标2—ID：\n0-15\n\n\n跟车目标ID","右车道目标2方向：\n0x0=同向目标；\n0x1=对向目标；\n0x2=左侧横向来车；\n0x3=右侧横向来车；",null,null,null,"右车道后方目标—ID：\n0-15\n\n\n跟车目标ID","本车道后方目标方向：\n0x0=同向目标；\n0x1=对向目标；\n0x2=左侧横向来车；\n0x3=右侧横向来车；"]
["Bit5"]
["Bit6"]
["Bit7",null,"右车道目标1纵距离：\n高字节",{"$nulls":4},"右车道目标2纵距离：\n高字节",{"$nulls":4},"右车道后方目标纵距离：\n高字节"]
[null,"Byte74","Byte75","Byte76","Byte77","Byte78","Byte79","Byte80","Byte81","Byte82","Byte83"]
["Bit0","本车道行人目标1：\n0：未检测到\n1：检测到","本车道行人目标1纵向：\n0x0-0x78=0-120m\n\n0x79-0xFF:无效","本车道行人目标1颜色：\n0：无\n1：橙色\n2：红色\n3：灰色","左车道行人目标状态：\n1：不闪烁\n2：闪烁，2HZ：","近端与远端车道线的拼接点纵向位置\n\n\n0-200m","本车道目标1—ID：\n0-15\n\n\n相同ID，换车道要有动画","本车道后方目标—ID：\n0-15\n\n\n相同ID，换车道要有动画","左车道目标2—ID：\n0-15\n\n\n相同ID，换车道要有动画","右车道目标1—ID：\n0-15\n\n\n相同ID，换车道要有动画","右车道后方目标—ID：\n0-15\n\n\n相同ID，换车道要有动画"]
["Bit1","本车道行人目标1横向：\n\n\n0x00-0x50 = -40-40m\n偏移量-40\nfactor：0.1\n\n0x51-0x7F:无效"]
["Bit2",null,null,"本车道行人目标状态：\n1：不闪烁\n2：闪烁，2HZ","右车道行人：\n0：无目标\n1：一个行人"]
["Bit3"]
["Bit4",null,null,"左车道行人：\n0：无目标\n1：一个行人","右车道行人颜色：\n0：无\n1：橙色\n2：红色\n3：灰色",null,"本车道目标2—ID：\n0-15\n\n\n相同ID，换车道要有动画","左车道目标1—ID：\n0-15\n\n\n相同ID，换车道要有动画","左车道后方目标—ID：\n0-15\n\n\n相同ID，换车道要有动画","右车道目标2—ID：\n0-15\n\n\n相同ID，换车道要有动画"]
["Bit5"]
["Bit6",null,null,"左车道行人颜色：\n0：无\n1：橙色\n2：红色\n3：灰色","右车道行人目标状态：\n1：不闪烁\n2：闪烁，2HZ："]
["Bit7"]

{"sheet":"交通信号灯","index":7,"n_rows":31,"n_cols":14,"rows_kept":31,"cut":false,"hidden":true,"merged":[[16,0,17,0],[16,1,16,5],[16,6,16,12],[16,13,17,13],[3,6,6,6],[5,1,8,1],[5,3,8,3],[5,5,8,5],[7,4,8,4],[1,2,2,2],[1,4,2,4],[1,6,2,6],[2,1,4,1],[2,3,4,3],[2,5,4,5],[3,2,6,2],[3,4,6,4]]}
[null,"Byte5","Byte6","Byte7","Byte8","Byte9","Byte10"]
["Bit0","左车道交通信号灯：\n0：不显示\n1：显示","左车道交通信号灯状态：\n0x0:不显示\n0x1:点亮\n0x2:闪烁，频率：2HZ\n0x3:即将消失，闪烁，频率：XX","本车道交通信号灯：\n0：不显示\n1：显示","本车道交通信号灯状态：\n0x0:不显示\n0x1:点亮\n0x2:闪烁，频率：2HZ\n0x3:即将消失，闪烁，频率：XX","右车道交通信号灯：\n0：不显示\n1：显示","右车道交通信号灯状态：\n0x0:不显示\n0x1:点亮\n0x2:闪烁，频率：2HZ\n0x3:即将消失，闪烁，频率：XX"]
["Bit1","左车道交通信号灯颜色：\n0：不显示\n1：红\n2：黄\n3：绿",null,"本车道交通信号灯颜色：\n0：不显示\n1：红\n2：黄\n3：绿",null,"右车道交通信号灯颜色：\n0：不显示\n1：红\n2：黄\n3：绿"]
["Bit2",null,"左车道交通信号灯方向\n0x0:不显示\n0x1:直行\n0x2:左转或左掉头\n0x3:直行+左转/左掉头\n0x4:右转\n0x5:直行+右转\n0x6:左转+右转\n0x7:左转、右转、直行共用",null,"本车道交通信号灯方向\n0x0:不显示\n0x1:直行\n0x2:左转或左掉头\n0x3:直行+左转/左掉头\n0x4:右转\n0x5:直行+右转\n0x6:左转+右转\n0x7:左转、右转、直行共用",null,"右车道交通信号灯方向\n0x0:不显示\n0x1:直行\n0x2:左转或左掉头\n0x3:直行+左转/左掉头\n0x4:右转\n0x5:直行+右转\n0x6:左转+右转\n0x7:左转、右转、直行共用"]
["Bit3"]
["Bit4","左车道交通信号灯类型：\n0x0：不显示\n0x1：圆形\n0x2：箭头\n0x3：掉头\n0x4：禁行\n0x5：直行+转向\n0x6-0x7:reserved",null,"本车道交通信号灯类型：\n0x0：不显示\n0x1：圆形\n0x2：箭头\n0x3：掉头\n0x4：禁行\n0x5：直行+转向\n0x6-0x7:reserved",null,"右车道交通信号灯类型：\n0x0：不显示\n0x1：圆形\n0x2：箭头\n0x3：掉头\n0x4：禁行\n0x5：直行+转向\n0x6-0x7:reserved"]
["Bit5"]
["Bit6",null,null,null,"本车道交通报警等级：\n0：无报警\n1：Level1\n2：Level2\n3：Level3"]
["Bit7"]
{"$rows_empty":7}
["HMI参考方案","类型",{"$nulls":4},"方向",{"$nulls":6},"备注"]
[null,"0x1：Round;（圆形）","0x2：Arrow;（箭头）","0x3:Turn Round;（掉头）","0x4：X-type;（禁行）","0x5:Arrow+Trun（直行+转向）","0x1:Forward;（直行）","0x2:Left;（左转或左掉头）","0x3: Forward +Left;（直行+左转/左掉头）","0x4:Right;（右转）","0x5: Forward +Right;（直行+右转）","0x6:Right+Left;（左转+右转）","0x7:Left+ Forward +Right;（左转、右转、直行共用）"]
[null,"√"]
[null,null,"√",null,null,null,"√"]
[null,null,"√",{"$nulls":4},"√",{"$nulls":5},"该交通灯用\n左转代替"]
[null,null,"√",{"$nulls":5},"√"]
[null,null,"√",{"$nulls":6},"√",null,null,null,"该交通灯用\n右转代替"]
[null,null,"√",{"$nulls":7},"√"]
[null,null,"√",{"$nulls":8},"√"]
[null,null,null,"√",null,null,null,"√"]
[null,null,null,"√",{"$nulls":5},"√"]
[{"$nulls":4},"√"]
[{"$nulls":5},"√",null,null,"√"]
[{"$nulls":5},"√",{"$nulls":4},"√"]
[null,null,"√",{"$nulls":9},"√"]

{"sheet":"调试信息","index":8,"n_rows":38,"n_cols":5,"rows_kept":38,"cut":false,"hidden":true,"merged":[[1,0,25,0],[27,0,30,0],[32,0,35,0],[32,4,35,4]]}
[null,null,"字节数","说明"]
["基础数据区","Byte 5~6",2,"DTE   10进制显示"]
[null,"Byte 7~8",2,"CFE   10进制显示"]
[null,"Byte 9~10",2,"AVG   10进制显示"]
[null,"Byte 11~12",2,"AFD   10进制显示"]
[null,"Byte 13~14",2,"RTO   10进制显示"]
[null,"Byte 15",1,"DPO   10进制显示"]
[null,"Byte 16~17",2,"ADP   10进制显示"]
[null,"Byte 18~19",2,"RTR   10进制显示"]
[null,"Byte 20~21",2,"RSP   10进制显示"]
[null,"Byte 22~23",2,"RRP   10进制显示"]
[null,"Byte 24~25",2,"RFF   10进制显示"]
[null,"Byte 26~27",2,"RFV   10进制显示"]
[null,"Byte 28",1,"RFA   10进制显示"]
[null,"Byte 29~30",2,"RFU   10进制显示"]
[null,"Byte 31~32",2,"RFD   10进制显示"]
[null,"Byte 33~34",2,"RFC   10进制显示"]
[null,"Byte 35",1,"SSU   10进制显示"]
[null,"Byte 36",1,"RWT   10进制显示"]
[null,"Byte 37",1,"OUT   10进制显示       （可以带负号， 显示值偏移40）"]
[null,"Byte 38~41",4,"ODO   10进制显示"]
[null,"Byte 42~45",4,"TRIP  10进制显示"]
[null,"Byte 46",1,"FDV   16进制显示       （高4位.低4位， 例如0x96,显示为9.6）"]
[null,"Byte 47",1,"DTV   16进制显示       （高4位.低4位， 例如0xAB,显示为A.B）"]
[null,"Byte 48~49",2,"SW    16进制显示       （例如0x0B01，显示B.0.1)"]
[null,"Byte 50~51",2,"HW    16进制显示       （例如0x0B01，显示B.0.1)"]
[null,null,"字节数","说明"]
["可编辑数","Byte 52",1,"Data       10进制显示      (0~9)   燃油报文控制"]
[null,"Byte 53",1,"BackLight  10进制显示      (0~21)  背光控制"]
[null,"Byte 54~69",16,"OCC_0\n...\nOCC_15\n16进制显示     下线配置"]
[null,"Byte 70",1,"光标位置 \n0~31=OCC，32=Data，33=Backlight，34=Save，35=Back，\n36=Exit，37=Page，255 不显示"]
[null,null,"字节数","说明"]
["燃油数据区","Byte 71",1,"index    10进制显示    当前页码","每页最多显示80个数据，当翻页后（index发生变化后）数据编号会从0开始发送，对于旧数据可以一次性清空除之后按照新数据填充"]
[null,"Byte 72",1,"total    10进制显示    总页码  "]
[null,"Byte 73~74",2,"数字     16进制显示"]
[null,"Byte75",1,"数据编号 （0~79） "]
["内部版本号MCU","Byte76",2,"0x02，16进制【发送数据为0时隐藏显示，非零值时显示】【预留先不做】"]
["内部版本号\nSOC","Byte77",3,"0x02，16进制【发送数据为1时隐藏显示，非零值时显示】【预留先不做】"]

{"sheet":"调试信息1","index":9,"n_rows":85,"n_cols":15,"rows_kept":85,"cut":false,"hidden":true,"merged":[[0,0,0,6],[1,0,1,6],[68,5,83,6],[8,7,32,11],[33,1,33,6],[34,1,34,6],[35,1,35,6],[65,1,65,6],[26,5,26,6],[15,5,15,6],[16,5,16,6],[17,5,17,6],[18,5,18,6],[19,5,19,6],[20,5,20,6],[8,5,8,6],[84,1,84,6],[66,1,66,6],[3,1,3,6],[4,1,4,6],[2,1,2,6],[27,5,27,6],[28,5,28,6],[29,5,29,6],[30,5,30,6],[31,5,31,6],[32,5,32,6],[21,5,21,6],[22,5,22,6],[23,5,23,6],[24,5,24,6],[25,5,25,6],[7,7,7,11],[7,1,7,6],[9,5,9,6],[10,5,10,6],[11,5,11,6],[38,7,64,11],[39,1,39,6],[40,5,40,6],[41,5,41,6],[42,5,42,6],[43,5,43,6],[45,5,45,6],[38,5,38,6],[44,5,44,6],[46,5,46,6],[47,5,47,6],[48,5,48,6],[49,5,49,6],[50,5,50,6],[51,5,51,6],[52,5,52,6],[67,5,67,6],[61,5,61,6],[62,5,62,6],[63,5,63,6],[64,5,64,6],[60,5,60,6],[53,5,53,6],[54,5,54,6],[55,5,55,6],[56,5,56,6],[57,5,57,6],[5,1,5,6],[37,1,37,6],[36,1,36,6],[58,5,58,6],[59,5,59,6],[14,5,14,6],[12,5,12,6],[13,5,13,6]]}
["Byte6 Bit4-Bit7"]
["页面"]
["0：密码页面","请输入密码\n密码：10110000"]
[null,"Byte7 密码：二进制"]
[null,"Byte8 光标：0~7"]
[null,"Byte9 密码显隐控制：0隐藏  1显示  一位控制一位密码"]
["1：DATA"]
[null,"Byte7：当前页码 数据范围1-2，超过此范围 默认显示第一页（第一页序号从001-018）（第二页从019-025），总页固定显示2",{"$nulls":5},"26-29不适用，删除不显示或固定显示即可"]
[null,"序号001        ","DTE ","Byte8-Byte9",2,"10进制显示",null,"只有最大值根据数据实时变化，其他均为固定值"]
[null,"序号002        ","CFE","Byte10-Byte11",2,"10进制显示"]
[null,"序号003","AVG","Byte12-Byte13",2,"10进制显示"]
[null,"序号004","AFD","Byte14-Byte15",2,"10进制显示"]
[null,"序号005","RTO","Byte16-Byte17",2,"10进制显示"]
[null,"序号006","DPO","Byte18",1,"10进制显示"]
[null,"序号007","ADP","Byte19-Byte20",2,"10进制显示"]
[null,"序号008","RTR","Byte21-Byte22",2,"10进制显示"]
[null,"序号009","RSP","Byte23-Byte24",2,"10进制显示"]
[null,"序号010","RRP","Byte25-Byte26",2,"10进制显示"]
[null,"序号011","RFF","Byte27-Byte28",2,"10进制显示"]
[null,"序号012","RFV","Byte29-Byte30",2,"10进制显示"]
[null,"序号013","RFA","Byte31",1,"10进制显示"]
[null,"序号014","RFU","Byte31-Byte32",2,"10进制显示"]
[null,"序号015","RFD","Byte33-Byte34",2,"10进制显示"]
[null,"序号016","RFC","Byte35-Byte36",2,"10进制显示"]
[null,"序号017","SSU","Byte37",1,"10进制显示"]
[null,"序号018","RWT","Byte38",1,"10进制显示"]
[null,"序号019","FDV","Byte39",1,"16进制显示 （高4位.低4位， 例如0x96,显示为9.6）"]
[null,"序号020","DTV","Byte40",1,"16进制显示 （高4位.低4位， 例如0xAB,显示为A.B）"]
[null,"序号021","SW","Byte41-Byte42",2,"16进制显示 （例如0x0B01，显示B.0.1)"]
[null,"序号022","HW","Byte43-Byte44",2,"16进制显示 （例如0x0B01，显示B.0.1)"]
[null,"序号023","LVDS","Byte45",1,"Y/N（0：N 1:Y）"]
[null,"序号024","USB","Byte46",1,"Y/N（0：N 1:Y）"]
[null,"序号025","私CAN","Byte47",1,"Y/N（0：N 1:Y）"]
["2：FUEL"]
[null,"Byte7:当前页码"]
[null,"Byte8:总页"]
[null,"Byte9:有效数据长度，代表Byte10-ByteN需要显示的数据长度"]
[null,"Byte10-ByteN:数据内容，每页最多显示100个数据",{"$nulls":12},{"$f":"L39&M39","v":""}]
["3：DTC","显隐控制","显示码","高、中字节","低字节","描述",null,"显示码、高中字节、低字节、描述属于规定信息，底板只控制整行显隐",{"$nulls":6},""]
[null,"Byte7:当前页码1-2，总页码固定显示2",{"$nulls":12},""]
["0：不显示","Byte8","U10A187","D0A1",87,"InfoCAN节点总线关闭",{"$nulls":8},""]
["1：显示","Byte9","B110516","9105",16,"电池电压小于阀值",{"$nulls":8},""]
[null,"Byte10","B110617","9106",17,"电池电压超出阀值",{"$nulls":8},""]
[null,"Byte11","B110762","9107",62,"硬线点火信号和CAN信号(1A6)不同",{"$nulls":8},""]
[null,"Byte12","U108A87","D08A",87,"与RRS通讯丢失",{"$nulls":8},""]
[null,"Byte13","U108087","D080",87,"与BCM通讯丢失",{"$nulls":8},""]
[null,"Byte14","U108187","D081",87,"与GW通讯丢失",{"$nulls":8},{"$f":"L47&M47","v":""}]
[null,"Byte15","U108287","D082",87,"与HU通讯丢失",{"$nulls":8},{"$f":"L48&M48","v":""}]
[null,"Byte16","U108381","D083",81,"与AC通讯丢失",{"$nulls":8},""]
[null,"Byte17","U109081","D090",81,"EMS节点丢失",{"$nulls":8},""]
[null,"Byte18","U109181","D091",81,"EPBi/ESP/ABS节点丢失",{"$nulls":8},""]
[null,"Byte19","U109281","D092",81,"EPS节点丢失",{"$nulls":8},""]
[null,"Byte20","U109381","D093",81,"SRS节点丢失",{"$nulls":8},""]
[null,"Byte21","U109481","D094",81,"TCU节点丢失",{"$nulls":8},""]
[null,"Byte22","U109581","D095",81,"APA节点丢失",{"$nulls":8},""]
[null,"Byte23","U109681","D096",81,"ACC35E节点丢失",{"$nulls":8},""]
[null,"Byte24","U109781","D097",81,"LAS_332节点丢失",{"$nulls":8},""]
[null,"Byte25","U109881","D098",81,"LCDAL_ 2AE节点丢失",{"$nulls":8},""]
[null,"Byte26","U109981","D099",81,"LCDAR_ 2AF 节点丢失",{"$nulls":8},""]
[null,"Byte27","U10EE87","D0EE",87,"ADS 节点丢失"]
[null,"Byte28","U108C87","D08C",87,"ACM 节点丢失"]
[null,"Byte29","U109787","D097",87,"SAS 节点丢失"]
[null,"Byte30","B110211","9102",11,"燃油输入电压在非法范围内低于正常值"]
[null,"Byte31","B110315","9103",15,"燃油输入电压在非法范围内（该范围未定义）高于正常值"]
[null,"Byte32","B110800","9108","00","10.25 inch显示屏故障"]
["4：EOL",{"$nulls":13},""]
[null,"Byte7：当前页码 数据范围1-8，超过此范围 默认显示第一页，总页固定显示8",{"$nulls":12},""]
[null,"显示字节",null,"协议字节","字节数","描述"]
[null,"Byte0","/","Byte8",1,"整字节发送，当前配置值按照图中数据分解\n\n其他都是固定显示，只有当前配置值根据数据变化",{"$nulls":8},""]
[null,"Byte1","/","Byte9",1]
[null,"Byte2","/","Byte10",1]
[null,"Byte3","/","Byte11",1]
[null,"Byte4","/","Byte12",1]
[null,"Byte5","/","Byte13",1]
[null,"Byte6","/","Byte14",1]
[null,"Byte7","/","Byte15",1]
[null,"Byte8","/","Byte16",1]
[null,"Byte9","/","Byte17",1]
[null,"Byte10","/","Byte18",1]
[null,"Byte11","/","Byte19",1]
[null,"Byte12","/","Byte20",1]
[null,"Byte13","/","Byte21",1]
[null,"Byte14","/","Byte22",1]
[null,"Byte15","/","Byte23",1]
["5：EXIT","按下OK键退出"]

{"sheet":"(中间区)TBT导航","index":10,"n_rows":44,"n_cols":5,"rows_kept":44,"cut":false,"hidden":true,"merged":[[1,0,1,4]]}
["通讯协议!A36",null,null,"Byte6","仅传递转向图标其他信息不属于此类，也不在这里传递"]
["AMAP转向图标"]
["分类","中文","TBT对外通知图标ID","对应ID","图标示例"]
["DirIcon_NULL","无定义",0,0]
["DirIcon_Car","自车图标",1,1]
["DirIcon_Turn_Left","左转图标",2,2]
["DirIcon_Turn_Right","右转图标",3,3]
["DirIcon_Slight_Left","左前方图标",4,4]
["DirIcon_Slight_Right","右前方图标",5,5]
["DirIcon_Turn_Hard_Left","左后方图标",6,6]
["DirIcon_Turn_Hard_Right","右后方图标",7,7]
["DirIcon_UTurn","左转掉头图标",8,8]
["DirIcon_Continue","直行图标",9,9]
["DirIcon_Way","到达途经点图标",10,10]
["iconid=11,12","逆时针环岛逆时针第1出口","m_RoundAboutNum=1",11]
["iconid=11,12","逆时针环岛第2出口","m_RoundAboutNum=2",12]
["iconid=11,12","逆时针环岛第3出口","m_RoundAboutNum=3",13]
["iconid=11,12","逆时针环岛第4出口","m_RoundAboutNum=4",14]
["iconid=11,12","逆时针环岛第5出口","m_RoundAboutNum=5",15]
["iconid=11,12","逆时针环岛第6出口","m_RoundAboutNum=6",16]
["iconid=11,12","逆时针环岛第7出口","m_RoundAboutNum=7",17]
["iconid=11,12","逆时针环岛第8出口","m_RoundAboutNum=8",18]
["iconid=11,12","逆时针环岛第9出口","m_RoundAboutNum=9",19]
["iconid=11,12","逆时针环岛第10出口","m_RoundAboutNum=10",20]
["DirIcon_SAPA","到达服务区图标",13,21]
["DirIcon_TollGate","到达收费站图标",14,22]
["DirIcon_Destination","到达目的地图标",15,23]
["DirIcon_Tunnel","进入隧道图标",16,24]
["iconid=17,18","顺时针环岛逆时针第1出口","m_RoundAboutNum=1",25]
["iconid=17,18","顺时针环岛第2出口","m_RoundAboutNum=2",26]
["iconid=17,18","顺时针环岛第3出口","m_RoundAboutNum=3",27]
["iconid=17,18","顺时针环岛第4出口","m_RoundAboutNum=4",28]
["iconid=17,18","顺时针环岛第5出口","m_RoundAboutNum=5",29]
["iconid=17,18","顺时针环岛第6出口","m_RoundAboutNum=6",30]
["iconid=17,18","顺时针环岛第7出口","m_RoundAboutNum=7",31]
["iconid=17,18","顺时针环岛第8出口","m_RoundAboutNum=8",32]
["iconid=17,18","顺时针环岛第9出口","m_RoundAboutNum=9",33]
["iconid=17,18","顺时针环岛第10出口","m_RoundAboutNum=10",34]
[null,"进入环岛图标，右侧通行逆时针环岛",null,35]
[null,"驶出环岛图标，右侧通行逆时针环岛",null,36]
[null,"进入环岛图标，左侧通行顺时针环岛",null,37]
[null,"驶出环岛图标，左侧通行顺时针环岛",null,38]
[null,"右转掉头图标，左侧通行地区的掉头",null,39]
[null,"顺行图标",null,40]

{"sheet":"(中间区)蓝牙电话","index":11,"n_rows":16,"n_cols":89,"rows_kept":16,"cut":false,"hidden":true,"merged":[[5,73,11,88],[5,15,11,19],[5,20,11,24],[5,41,11,44],[5,45,11,50],[5,51,11,56],[5,9,11,11],[5,12,11,14],[5,57,11,63],[5,64,11,68],[5,25,11,40],[2,81,2,88],[3,0,11,0],[13,0,28,0],[5,5,11,5],[15,1,28,9],[15,10,28,18],[15,19,28,27],[15,28,28,36],[15,37,28,45],[13,1,14,9],[13,10,14,18],[13,19,14,27],[13,28,14,36],[13,37,14,45],[4,1,11,4],[5,6,11,8],[2,41,2,48],[2,49,2,56],[2,57,2,64],[2,65,2,72],[2,73,2,80],[2,1,2,8],[2,9,2,16],[2,17,2,24],[2,25,2,32],[2,33,2,40]]}
[]
[]
["Byte5","Byte6",{"$nulls":7},"Byte7",{"$nulls":7},"Byte8",{"$nulls":7},"…",{"$nulls":7},"Byte(N*2)+8=B0",{"$nulls":7},"Byte(B0+1)",{"$nulls":7},"Byte(B0+2)",{"$nulls":7},"Byte(B0+3)",{"$nulls":7},"Byte(B0+4)=B1",{"$nulls":7},"…",{"$nulls":7},"Byte(N*2)+B1"]
["0x06蓝牙电话",7,6,5,4,3,2,1,0,7,6,5,4,3,2,1,0,7,6,5,4,3,2,1,0,"…","…","…","…","…","…","…","…","…","…","…","…","…","…","…","…",7,6,5,4,3,2,1,0,7,6,5,4,3,2,1,0,7,6,5,4,3,2,1,0,7,6,5,4,3,2,1,0,"…","…","…","…","…","…","…","…","…","…","…","…","…","…","…","…"]
[{"$nulls":5},0]
[{"$nulls":5},"1\n蓝牙\n已连接","0：空闲状态\n1：来电中 \n2：通话中 \n3：拨打中 \n4：通话结束\n5：等待中 \n6,7：保留 ",{"$nulls":8},"文字数量N=0~31\n(实际字节数N*2)",{"$nulls":9},"仪表显示人名或者号码，二者不同时显示",{"$nulls":19},"通话时间秒",{"$nulls":5},"通话时间分钟",{"$nulls":5},"通话时间小时",{"$nulls":6},"蓝牙配对识别设备型号名称字符数量N=0~31\n(实际字节数N*2)",{"$nulls":8},"蓝牙配对识别设备型号名称"]
{"$rows_empty":7}
["蓝牙电话状态和显示样式","拨打中",{"$nulls":8},"通话中",{"$nulls":8},"通话结束",{"$nulls":8},"来电中",{"$nulls":8},"等待/保留/空闲"]
[]
[{"$nulls":37},"未见显示样式/不处理"]

{"sheet":"(中间区)媒体","index":12,"n_rows":21,"n_cols":7,"rows_kept":21,"cut":false,"hidden":true,"merged":[[5,3,5,4],[20,3,20,4],[4,1,5,1]]}
["通讯协议!A46","属于公共区界面类0x02  菜单 时从Byte8字节开始"]
[null,"Byte8 媒体源 Bit0~3","Byte9","Byte10~(N-1)","ByteN","ByteN+1~(N+M)","ByteN+1~(N+M+1)"]
[null,"属于公共区界面类0x04  多媒体信息 时从Byte6字节开始"]
[null,"Byte6 媒体源 Bit0~3","Byte7","Byte8~(N-1)","ByteN","ByteN+1~(N+M)","ByteN+1~(N+M+1)"]
[null,"\n0x0:AM\n0x1:FM","忽略","Byte8  频段信息 低字节","Byte9  频段信息 高字节"]
[null,null,"0x0","\nFM: 8750-10800；    FM=Value/100 MHz\nAM: 522-1728 ；      精度为1KHz"]
[null,"0x2:USB\n0x3:HDD\n0x4:Ipod\n0x5:BT AUDIO\n0x6:手机互联\n0x7:other\n0x9:On Line","Bit0:当前是否有专辑封面\n0无 1有(未见显示,评估使用)\nBit1~2:歌曲名标识符(0x0)\nBit3~7:歌曲名文字数量N=0~31(实际字节数N*2)","(Unicode编码)如文字超过文本框部分显示省略号“...”，不滚动显示","\nBit0:无意义\nBit1~2:歌手名标识符(0x1)\nBit3~7:歌手名文字数量M=0~31(实际字节数N*2)","(Unicode编码)如文字超过文本框部分显示省略号“...”，不滚动显示","Bit0~1音乐播放状态\n1：Play 2.Pause \n0,3 Reserved \nBit2~7音量\n范围（0~39）(音量未见显示,评估使用)"]
[null,"0x8:设备断开\n0xA:初始化\n其他:reserve","数据无意义\n显示\"无多媒体信息\""]
[]
[null,"举例："]
[null,"输入源：USB"]
[null,"歌曲名：Ocean Lab"]
[null,"歌手名：Michael Jackson"]
[]
[null,"0x2","0x48\n字数9,\n歌曲名\n无专辑封面","0x4f 0x00 0x63 0x00 \n\"O\"               \"c\" \n0x65 0x00 0x61 0x00  \"e\"              \"a\"         0x6e 0x00  0x20 0x00 \"n\"             \"space\"    0x4c 0x00  0x61 0x00\n \"L\"             \"a\" \n 0x62 0x00                                                \"b\"","7A\n字数15\n歌手名","0x4d  0x00 0x69 0x00 \n“M”             \"i\"\n0x63  0x00 0x68 0x00 \n\"c\"              \"h\"\n0x61  0x00 0x65 0x00 \n\"a\"              \"e\"\n0x6c 0x00  0x20 0x00 \n\"l\"               \"space\"\n0x4a 0x00 0x61 0x00 \n\"J\"              \"a\"\n0x63 0x00 0x6b 0x00\n\"c\"             \"k\"\n0x73 0x00 0x6f 0x00\n\"s\"              \"o\"\n0x6e 0x00 \n\"n\"","0x01\n播放，音量0"]
[]
[null,"举例："]
[null,"输入源：FM"]
[null,"频率：101.1MHz"]
[null,"0x01","0x00","0x7E","0x27"]
[null,"FM ",null,"10110(101.1MH)"]

{"sheet":"媒体消息文字  ","index":13,"n_rows":35,"n_cols":89,"rows_kept":35,"cut":false,"hidden":true,"merged":[[32,1,33,9],[32,10,33,18],[32,19,33,27],[32,28,33,36],[32,37,33,45],[34,1,47,9],[34,10,47,18],[34,19,47,27],[34,28,47,36],[34,37,47,45],[32,0,47,0],[6,5,12,5],[16,16,21,16],[16,48,21,48],[16,79,21,80],[16,73,21,78],[16,49,21,72],[16,9,21,13],[16,5,21,8],[16,14,21,15],[16,46,21,47],[16,41,21,45],[6,25,12,40],[6,73,12,88],[6,15,12,19],[6,20,12,24],[24,5,24,8],[24,9,24,16],[4,0,12,0],[13,0,21,0],[22,0,30,0],[23,1,30,4],[5,1,12,4],[6,6,12,8],[6,9,12,11],[6,12,12,14],[14,9,15,16],[14,1,21,4],[2,81,2,88],[3,1,3,8],[14,5,14,8],[15,5,15,8],[23,5,23,8],[23,9,23,16],[6,64,12,68],[6,41,12,44],[6,45,12,50],[6,51,12,56],[6,57,12,63],[14,17,15,32],[16,17,21,40],[2,41,2,48],[2,49,2,56],[2,57,2,64],[2,65,2,72],[2,73,2,80],[2,1,2,8],[2,9,2,16],[2,17,2,24],[2,25,2,32],[2,33,2,40]]}
["媒体消息文字"]
["媒体消息类型"]
["Byte5","Byte6",{"$nulls":7},"Byte7",{"$nulls":7},"Byte8",{"$nulls":7},"…",{"$nulls":7},"Byte(N*2)+8=B0",{"$nulls":7},"Byte(B0+1)",{"$nulls":7},"Byte(B0+2)",{"$nulls":7},"Byte(B0+3)",{"$nulls":7},"Byte(B0+4)=B1",{"$nulls":7},"…",{"$nulls":7},"Byte(N*2)+B1"]
["0x00无媒体消息","不显示内容无消息显示"]
["0x01蓝牙电话",7,6,5,4,3,2,1,0,7,6,5,4,3,2,1,0,7,6,5,4,3,2,1,0,"…","…","…","…","…","…","…","…","…","…","…","…","…","…","…","…",7,6,5,4,3,2,1,0,7,6,5,4,3,2,1,0,7,6,5,4,3,2,1,0,7,6,5,4,3,2,1,0,"…","…","…","…","…","…","…","…","…","…","…","…","…","…","…","…"]
[{"$nulls":5},0]
[{"$nulls":5},"1\n蓝牙\n已连接","0：空闲状态\n1：来电中 \n2：通话中 \n3：拨打中 \n4：通话结束\n5：等待中 \n6,7：保留 ",{"$nulls":8},"文字数量N=0~31\n(实际字节数N*2)",{"$nulls":9},"仪表显示人名或者号码，二者不同时显示",{"$nulls":19},"通话时间秒",{"$nulls":5},"通话时间分钟",{"$nulls":5},"通话时间小时",{"$nulls":6},"蓝牙配对识别设备型号名称字符数量N=0~31\n(实际字节数N*2)",{"$nulls":8},"蓝牙配对识别设备型号名称"]
[]
[]
[]
[]
[]
[]
["0x02音乐/电台",7,6,5,4,3,2,1,0,7,6,5,4,3,2,1,0,7,6,5,4,3,2,1,0,7,6,5,4,3,2,1,0,"…","…","…","…","…","…","…","…",7,6,5,4,3,2,1,0,"…","…","…","…","…","…","…","…","…","…","…","…","…","…","…","…","…","…","…","…","…","…","…","…",7,6,5,4,3,2,1,0]
[{"$nulls":5},"0:AM",{"$nulls":11},"FM: 8750-10800；    FM=Value/100 MHz\nAM: 522-1728 ；      精度为1KHz",{"$nulls":24}," "]
[{"$nulls":5},"1:FM"]
[{"$nulls":5},"2:USB\n3:HDD\n4:iPod\n5:BT Audio\n0x6:手机互联\n0x7:other\n0x9:On Line\n其他:reserve",null,null,null,"歌曲名文字数量N=0~31(实际字节数N*2)",{"$nulls":4},"歌曲名标识符(0x0)",null,0,"歌曲名(在消息模式时样表只显示歌曲名其歌手和播放状态信息可以忽略)",{"$nulls":23},"歌手名文字数量N=0~31(实际字节数N*2)",{"$nulls":4},"歌手名标识符(0x1)",null,0,"歌手名",{"$nulls":23},"音量信息 ",{"$nulls":5},"音乐播放状态\n1Play\n2Pause"]
[]
[]
[]
[]
[]
["0x03操作提示",7,6,5,4,3,2,1,0,7,6,5,4,3,2,1,0,7,6,5,4,3,2,1,0]
[{"$nulls":5},"0(关联语言)",null,null,null,"按''ok''键切换至简洁导航模式"]
[{"$nulls":5},"1(关联语言)",null,null,null,"按''ok''键切换至全屏导航模式"]
{"$rows_empty":7}
["蓝牙电话状态和显示样式","拨打中",{"$nulls":8},"通话中",{"$nulls":8},"通话结束",{"$nulls":8},"来电中",{"$nulls":8},"等待/保留/空闲"]
[]
[{"$nulls":37},"未见显示样式"]

{"sheet":"导航信息","index":14,"n_rows":65,"n_cols":74,"rows_kept":65,"cut":false,"hidden":true,"merged":[[56,1,56,16],[56,17,56,32],[56,33,56,48],[56,49,56,56],[56,57,56,64],[62,1,62,13],[63,1,63,13],[64,1,64,13],[55,1,55,8],[55,9,55,16],[55,17,55,24],[55,25,55,32],[55,33,55,40],[55,41,55,48],[55,49,55,56],[55,57,55,64],[37,1,42,64],[48,1,48,8],[48,9,48,16],[48,17,48,24],[48,25,48,32],[48,33,48,40],[48,41,48,48],[48,49,48,56],[48,57,48,64],[46,6,46,11],[46,13,46,28],[46,30,46,43],[46,44,46,56],[46,57,46,61],[47,6,47,11],[47,13,47,28],[47,30,47,43],[47,44,47,56],[45,62,47,62],[45,63,47,63],[45,64,47,64],[46,1,47,4],[22,17,22,24],[22,25,22,32],[22,33,22,40],[22,41,22,48],[22,49,22,56],[22,57,22,64],[22,65,22,72],[22,73,22,80],[35,1,35,64],[25,65,32,80],[24,1,32,4],[25,13,32,28],[25,6,32,11],[25,57,32,61],[25,44,32,56],[25,30,32,43],[25,5,32,5],[25,12,32,12],[25,29,32,29],[25,62,32,62],[25,63,32,63],[25,64,32,64],[19,2,19,3],[19,4,19,5],[19,6,19,7],[19,8,19,9],[20,2,20,3],[20,4,20,5],[20,6,20,7],[20,8,20,9],[22,1,22,8],[22,9,22,16],[19,10,20,13],[17,50,17,51],[17,52,17,53],[17,54,17,55],[18,2,18,3],[18,4,18,5],[18,6,18,7],[18,8,18,9],[18,10,18,13],[18,27,18,28],[18,29,18,30],[18,31,18,32],[18,33,18,34],[18,35,18,36],[18,37,18,40],[18,44,18,45],[18,46,18,47],[18,48,18,49],[18,50,18,51],[18,52,18,53],[18,54,18,55],[17,27,17,28],[17,29,17,30],[17,31,17,32],[17,33,17,34],[17,35,17,36],[17,37,17,40],[17,44,17,45],[17,46,17,47],[17,48,17,49],[15,52,15,53],[15,54,15,55],[16,27,16,28],[16,29,16,30],[16,31,16,32],[16,33,16,34],[16,35,16,36],[16,37,16,40],[16,44,16,45],[16,46,16,47],[16,48,16,49],[16,50,16,51],[16,52,16,53],[16,54,16,55],[15,29,15,30],[15,31,15,32],[15,33,15,34],[15,35,15,36],[15,37,15,40],[15,44,15,45],[15,46,15,47],[15,48,15,49],[15,50,15,51],[15,2,15,3],[15,4,15,5],[15,6,15,7],[15,8,15,9],[15,16,15,17],[15,18,15,19],[15,20,15,21],[15,22,15,24],[15,27,15,28],[14,10,15,13],[13,52,13,53],[13,54,13,55],[14,2,14,3],[14,4,14,5],[14,6,14,7],[14,8,14,9],[14,16,14,17],[14,18,14,19],[14,20,14,21],[14,22,14,24],[14,27,14,28],[14,33,14,34],[14,35,14,36],[14,37,14,40],[14,44,14,45],[14,46,14,47],[14,48,14,49],[14,50,14,51],[14,52,14,53],[14,54,14,55],[13,2,13,3],[13,4,13,5],[13,6,13,7],[13,8,13,9],[13,10,13,13],[13,44,13,45],[13,46,13,47],[13,48,13,49],[13,50,13,51],[11,44,11,45],[11,46,11,47],[11,48,11,49],[11,50,11,51],[11,52,11,53],[11,54,11,55],[12,44,12,45],[12,46,12,47],[12,48,12,49],[12,50,12,51],[12,52,12,53],[12,54,12,55],[9,46,9,47],[9,48,9,49],[9,50,9,51],[9,52,9,53],[9,54,9,55],[9,62,9,63],[9,64,9,68],[10,44,10,45],[10,46,10,47],[10,48,10,49],[10,50,10,51],[10,52,10,53],[10,54,10,55],[3,56,18,59],[7,62,7,63],[7,64,7,68],[8,46,8,47],[8,48,8,49],[8,50,8,51],[8,52,8,53],[8,54,8,55],[8,62,8,63],[8,64,8,68],[6,46,6,47],[6,48,6,49],[6,50,6,51],[6,52,6,53],[6,54,6,55],[7,46,7,47],[9,2,9,3],[9,4,9,5],[9,6,9,7],[9,8,9,9],[9,10,9,11],[9,12,9,13],[9,14,9,15],[9,16,9,17],[9,44,9,45],[7,8,7,9],[7,10,7,11],[7,12,7,13],[7,14,7,15],[7,16,7,17],[7,44,7,45],[8,2,8,3],[8,4,8,5],[8,6,8,7],[8,8,8,9],[8,10,8,11],[8,12,8,13],[8,14,8,15],[8,16,8,17],[8,44,8,45],[5,46,5,47],[5,48,5,49],[5,50,5,51],[5,52,5,53],[5,54,5,55],[4,2,4,3],[4,4,4,5],[4,6,4,7],[7,48,7,49],[7,50,7,51],[7,52,7,53],[7,54,7,55],[6,2,6,3],[6,4,6,5],[6,6,6,7],[6,8,6,9],[6,10,6,11],[6,12,6,13],[6,14,6,15],[6,16,6,17],[6,44,6,45],[7,2,7,3],[7,4,7,5],[7,6,7,7],[5,2,5,3],[5,4,5,5],[5,6,5,7],[5,8,5,9],[5,10,5,11],[5,12,5,13],[5,14,5,15],[5,16,5,17],[5,44,5,45],[4,8,4,9],[4,10,4,11],[4,12,4,13],[4,14,4,15],[4,16,4,17],[4,34,4,35],[2,50,2,51],[2,52,2,53],[2,54,2,55],[4,36,4,41],[4,44,4,45],[4,46,4,47],[4,48,4,49],[4,50,4,51],[4,52,4,53],[4,54,4,55],[2,56,2,59],[3,2,3,3],[3,4,3,5],[3,6,3,7],[3,8,3,9],[3,10,3,11],[3,12,3,13],[3,14,3,15],[3,16,3,17],[3,34,3,35],[3,36,3,41],[3,44,3,45],[3,46,3,47],[3,48,3,49],[3,50,3,51],[3,52,3,53],[3,54,3,55],[1,2,1,10],[1,34,1,37],[1,46,1,49],[2,2,2,3],[2,4,2,5],[2,6,2,7],[2,8,2,9],[2,10,2,11],[2,12,2,13],[2,14,2,15],[2,16,2,17],[2,34,2,35],[2,36,2,41],[2,44,2,45],[2,46,2,47],[2,48,2,49]]}
["通讯协议!A63"]
[null,null,"Signal description",{"$nulls":31},"导航状态",{"$nulls":11},"导航方向"]
[null,null,7,null,6,null,5,null,4,null,3,null,2,null,1,null,0,{"$nulls":17},"bit03",null,"导航状态",{"$nulls":7},"bit2",null,"bit1",null,"bit0",null,"bit15",null,"bit14",null,"bit13",null,"导航方向"]
[null,null,15,null,14,null,13,null,12,null,11,null,10,null,9,null,8,{"$nulls":17},0,null,"导航未规划路线",{"$nulls":7},0,null,0,null,0,null,0,null,0,null,0]
[null,null,23,null,22,null,21,null,20,null,19,null,18,null,17,null,16,{"$nulls":17},1,null,"导航规划路线成功",{"$nulls":7},0,null,0,null,0,null,0,null,0,null,1]
[null,null,31,null,30,null,29,null,28,null,27,null,26,null,25,null,24,{"$nulls":27},0,null,0,null,0,null,0,null,1,null,0]
[null,null,39,null,38,null,37,null,36,null,35,null,34,null,33,null,32,{"$nulls":27},0,null,0,null,0,null,0,null,1,null,1]
[null,null,47,null,46,null,45,null,44,null,43,null,42,null,41,null,40,{"$nulls":27},0,null,0,null,0,null,1,null,0,null,0,{"$nulls":7},"bit57",null,"导航完成标识"]
[null,null,55,null,54,null,53,null,52,null,51,null,50,null,49,null,48,{"$nulls":27},0,null,0,null,0,null,1,null,0,null,1,{"$nulls":7},0,null,"否"]
[null,null,63,null,62,null,61,null,60,null,59,null,58,null,57,null,56,{"$nulls":27},0,null,0,null,0,null,1,null,1,null,0,{"$nulls":7},1,null,"是"]
[{"$nulls":44},0,null,0,null,0,null,1,null,1,null,1]
[{"$nulls":44},0,null,0,null,1,null,0,null,0,null,0]
[null,null,"距离目标地距离，bit12为距离单位（0为km,1为m)",{"$nulls":41},0,null,0,null,1,null,0,null,0,null,1]
[null,null,"bit11",null,"……",null,"bit28",null,"Bit12",null,"距离",{"$nulls":5},"预计到达目的地时间",{"$nulls":10},"文字数量",{"$nulls":16},0,null,0,null,1,null,0,null,1,null,0]
[null,null,0,null,"……",null,0,null,0,null,"Max\n6553.5km",{"$nulls":5},"bit44",null,"~",null,"bit48",null,"Value",{"$nulls":4},"bit63",null,"bit62",null,"bit61",null,"bit60",null,"bit59",null,"文字数量",{"$nulls":6},0,null,0,null,1,null,0,null,1,null,1]
[null,null,1,null,"……",null,1,null,1,{"$nulls":7},1,null,1,null,1,null,"8191min",{"$nulls":4},0,null,0,null,0,null,0,null,0,null,0,{"$nulls":6},0,null,0,null,1,null,1,null,0,null,0]
[{"$nulls":27},0,null,0,null,0,null,0,null,1,null,1,{"$nulls":6},0,null,0,null,1,null,1,null,0,null,1]
[null,null,"距离下一路口距离,bit27为距离单位（0为km,1为m)",{"$nulls":24},"~",null,"~",null,"~",null,"~",null,"~",null,"2~30",{"$nulls":6},"~",null,"~",null,"~",null,"~",null,"~",null,"~"]
[null,null,"bit26",null,"……",null,"bit45",null,"bit27",null,"距离",{"$nulls":16},1,null,1,null,1,null,1,null,1,null,31,{"$nulls":6},1,null,1,null,1,null,1,null,1,null,1]
[null,null,0,null,"……",null,0,null,0,null,"Max\n1638.3km\n"]
[null,null,1,null,"……",null,1,null,1]
[]
[null,"Byte5",{"$nulls":7},"Byte6",{"$nulls":7},"Byte7",{"$nulls":7},"Byte8",{"$nulls":7},"Byte9",{"$nulls":7},"Byte10",{"$nulls":7},"Byte11",{"$nulls":7},"Byte12",{"$nulls":7},"…",{"$nulls":7},"Byte(2*N)+12"]
[null,7,6,5,4,3,2,1,0,15,14,13,12,11,10,9,8,23,22,21,20,19,18,17,16,31,30,29,28,27,26,25,24,39,38,37,36,35,34,33,32,47,46,45,44,43,42,41,40,55,54,53,52,51,50,49,48,63,62,61,60,59,58,57,56]
[{"$nulls":5},0]
[{"$nulls":5},1,"导航方向",{"$nulls":5},"目标地距离单位","距离目标地距离\nMMI发送信号：实际距离*10\n仪表显示：距离*0.1",{"$nulls":15},"下一路口距离单位0\nkm1m","距离下一路口距离\nMMI发送信号：实际距离*10\n仪表显示：距离*0.1",{"$nulls":13},"预计到达目的地时间\n(当时间为0时显示\"<1分钟\")",{"$nulls":12},"文字数量N=0~31(实际字节数N*2)",{"$nulls":5},"导航完成标识0否1是",null,"显示下一个道路名称"]
{"$rows_empty":9}
[null,"注：导航未规划路线时不显示\n1）阴影标注部分为reserve位， 仪表软件不对该位进行判断。\n2）当前道路名和下一个道路名轮流发送给仪表。\n3）bit57导航完成标识当出现导航完成时，连发三帧1之后跳变回0，仪表端显示2秒导航完成之后显示“当前道路未规划”。\n4) bit57导航完成标识:MMI接收导航广播10019\"EXTRA_STATE\" 模拟导航停止12 正常导航停止9 导航退出2时，通知仪表导航已完成1，收到其他状态通知仪表导航未完成0，仪表接收到该信号从0切到1时弹出提示\"导航已完成\"。\n"]
[]
[null,"举例：\n导航规划成功；\n导航方向：左转\n距离目标距离:13Km 目标距离单位: Km\n下一路口距离:900m 下一路口距离单位: m 下一道路名称：软件大道\n预计到达目的地时间：27 分钟\n"]
[]
[]
[]
[]
[]
[]
[null,7,6,5,4,3,2,1,0,15,14,13,12,11,10,9,8,23,22,21,20,19,18,17,16,31,30,29,28,27,26,25,24,39,38,37,36,35,34,33,32,47,46,45,44,43,42,41,40,55,54,53,52,51,50,49,48,63,62,61,60,59,58,57,56]
[null,0,0,0,0,1,0,0,0,0,1,0,0,0,0,0,0,0,0,0,0,1,0,0,0,0,0,1,0,1,1,0,0,0,1,1,0,0,1,0,1,0,0,0,0,0,0,0,0,0,0,0,1,1,0,1,1,0,0,1,0,0,1,0,1]
[null,"0x00",null,null,null,1,"0x02",{"$nulls":5},0,"0x82",{"$nulls":15},1,"0x2328",{"$nulls":13},"0x1B",{"$nulls":12},"0x04"]
[{"$nulls":5},1,"左转",{"$nulls":5},0,"13Km",{"$nulls":15},1,"900m",{"$nulls":13},"27min",{"$nulls":12},"文字数量4"]
[null,"0x08",{"$nulls":7},"0x40",{"$nulls":7},"0x08",{"$nulls":7},"0x2C",{"$nulls":7},"0x65",{"$nulls":7},"0x00",{"$nulls":7},"0x1B",{"$nulls":7},"0x20"]
[]
[]
[]
[]
[null,7,6,5,4,3,2,1,0,7,6,5,4,3,2,1,0,7,6,5,4,3,2,1,0,7,6,5,4,3,2,1,0,7,6,5,4,3,2,1,0,7,6,5,4,3,2,1,0,7,6,5,4,3,2,1,0,7,6,5,4,3,2,1,0]
[null,0,1,1,0,1,1,1,1,1,0,0,0,1,1,1,1,1,1,1,1,0,1,1,0,0,1,0,0,1,1,1,0,0,0,1,0,0,1,1,1,0,1,0,1,1,0,0,1,0,1,0,1,0,0,1,1,1,0,0,1,0,0,0,0]
[null,"0x6F",{"$nulls":7},"0x8F",{"$nulls":7},"0xF6",{"$nulls":7},"0x4E",{"$nulls":7},"0x27",{"$nulls":7},"0x59",{"$nulls":7},"0x53",{"$nulls":7},"0x90"]
[null,"\"软\"",{"$nulls":15},"\"件\"",{"$nulls":15},"\"大\"",{"$nulls":15},"\"道\"",{"$nulls":7},"\"道\""]
[]
[]
[]
[]
[]
["显示距离下一个路口的距离","精度：1km以上，精度为0.1km；1公里以下就，精度为m\n显示：\n1）距离<1000m，直接显示距离；\n2）距离≧1000m，换算为km。如果是整数，不保留小数；非整数则四舍五入保留一位小数。如2160，显示为2.2km, 2040显示为2km。\n"]
["显示距离目标地预计时间","精度：分钟。\n显示：\n1）小于1分钟，显示<1分钟；\n2）1~59分钟，显示xx分钟；\n3）1~24小时，显示xx小时xx分钟。如2小时10分钟；分钟为0，则显示xx小时；如120分钟，则显示2小时。\n4）大于24小时，按照xx小时xx分钟格式显示（分钟四舍五）"]
["距离目的地进度条","\n每次导航“导航状态”从“导航未规划路线”到“导航规划路线成功”时的“距离目标地距离”为最大里程，后续的根据实时的“距离目标地距离”/最大里程来显示进度条。"]